Capital or Revenue,Directorate,SERCOP High Level Category,SERCOP Detailed Category,Transaction Number,Date,Service Area,Expenses Type,Amount,Supplier Name
Revenue,Adult Services,Adult Social Care,Central Codes (to be reallocated),5105665788,10.02.2021,Gouldings Resource Centre,Consumable Cleaning Materials,168.00,A & M APPLIANCE CARE
Revenue,Adult Services,Adult Social Care,Learning Disab Supp (to be reallocated),5105664972,05.02.2021,Plean Dene,Consumable Cleaning Materials,84.00,A & M APPLIANCE CARE
Revenue,Fire & Rescue,Fire & Rescue Services,Fire fighting and Rescue Operations,5105666806,19.02.2021,Business Support  - Fire,Property Services - Day to day Maintenance,60.00,A & M APPLIANCE CARE
Revenue,Childrens Services,Children's & Education Services,Children Looked After,5105665244,03.02.2021,Beaulieu House,Minor Works,81.61,A & M APPLIANCE CARE
Revenue,Fire & Rescue,Fire & Rescue Services,Fire fighting and Rescue Operations,5105666807,19.02.2021,Fire Technical Support,Operational Equipment,130.00,A & M APPLIANCE CARE
Revenue,Fire & Rescue,Fire & Rescue Services,Fire fighting and Rescue Operations,5105666807,19.02.2021,Fire Technical Support,Operational Equipment,80.00,A & M APPLIANCE CARE
Revenue,Adult Services,Adult Social Care,Central Codes (to be reallocated),5105666175,12.02.2021,Adelaide Resource Centre,Consumable Cleaning Materials,256.00,A & M APPLIANCE CARE
Revenue,Neighbourhoods,Cultural and Related Services,Open Spaces,5105665553,05.02.2021,Tree Felling / Replacement,Payment to Private Contractors,"24,250.00",A GUSTAR T/A IVY TREE CARE
Revenue,Neighbourhoods,Cultural and Related Services,Open Spaces,5105665136,03.02.2021,Other Grounds Maintenance,Payment to Private Contractors,426.00,A GUSTAR T/A IVY TREE CARE
Revenue,Neighbourhoods,Cultural and Related Services,Open Spaces,5105665136,03.02.2021,Other Grounds Maintenance,Payment to Private Contractors,293.00,A GUSTAR T/A IVY TREE CARE
Revenue,Neighbourhoods,Cultural and Related Services,Open Spaces,5105665136,03.02.2021,Other Grounds Maintenance,Payment to Private Contractors,"1,636.00",A GUSTAR T/A IVY TREE CARE
Revenue,Neighbourhoods,Cultural and Related Services,Open Spaces,5105665136,03.02.2021,Other Grounds Maintenance,Payment to Private Contractors,"1,442.00",A GUSTAR T/A IVY TREE CARE
Revenue,Neighbourhoods,Cultural and Related Services,Open Spaces,5105665136,03.02.2021,Other Grounds Maintenance,Payment to Private Contractors,298.00,A GUSTAR T/A IVY TREE CARE
Revenue,Neighbourhoods,Cultural and Related Services,Open Spaces,5105665136,03.02.2021,Other Grounds Maintenance,Payment to Private Contractors,152.00,A GUSTAR T/A IVY TREE CARE
Revenue,Neighbourhoods,Cultural and Related Services,Open Spaces,5105665136,03.02.2021,Other Grounds Maintenance,Payment to Private Contractors,676.00,A GUSTAR T/A IVY TREE CARE
Revenue,Neighbourhoods,Cultural and Related Services,Open Spaces,5105665136,03.02.2021,Other Grounds Maintenance,Payment to Private Contractors,550.00,A GUSTAR T/A IVY TREE CARE
Revenue,Neighbourhoods,Cultural and Related Services,Open Spaces,5105665136,03.02.2021,Other Grounds Maintenance,Payment to Private Contractors,550.00,A GUSTAR T/A IVY TREE CARE
Revenue,Neighbourhoods,Cultural and Related Services,Open Spaces,5105665136,03.02.2021,Other Grounds Maintenance,Payment to Private Contractors,123.00,A GUSTAR T/A IVY TREE CARE
Revenue,Neighbourhoods,Cultural and Related Services,Open Spaces,5105665136,03.02.2021,Other Grounds Maintenance,Payment to Private Contractors,123.00,A GUSTAR T/A IVY TREE CARE
Revenue,Neighbourhoods,Cultural and Related Services,Open Spaces,5105665136,03.02.2021,Other Grounds Maintenance,Payment to Private Contractors,213.00,A GUSTAR T/A IVY TREE CARE
Revenue,Neighbourhoods,Cultural and Related Services,Open Spaces,5105665136,03.02.2021,Other Grounds Maintenance,Payment to Private Contractors,213.00,A GUSTAR T/A IVY TREE CARE
Revenue,Neighbourhoods,Cultural and Related Services,Open Spaces,5105665136,03.02.2021,Other Grounds Maintenance,Payment to Private Contractors,852.00,A GUSTAR T/A IVY TREE CARE
Revenue,Childrens Services,Children's & Education Services,Other Education and Community Budget,5105666228,17.02.2021,Home to School SEN Transport (LA),Taxis - Contract Hire,"1,102.00",AMAR CABS OF NEWPORT
Revenue,Childrens Services,Children's & Education Services,Other Education and Community Budget,5105665884,10.02.2021,Home to School Mainstream Transport,Taxis - Contract Hire,780.00,AMAR EXCLUSIVES
Revenue,Adult Services,Adult Social Care,Central Codes (to be reallocated),5105666721,19.02.2021,Community Reablement,Vehicle Maintenance Costs,295.67,ISLANDWIDE WINDSCREENS
Revenue,Regeneration,Planning services,Business Support,5105667105,24.02.2021,Somerton Industrial Park,Grounds Maintenance,100.00,C & J GROUND MAINTENANCE
Revenue,Childrens Services,Children's & Education Services,Other Education and Community Budget,5105665794,10.02.2021,Home to School SEN Transport (LA),Taxis - Contract Hire,880.00,CLARES CABS
Revenue,Childrens Services,Adult Social Care,Social Care Activities,5105666229,17.02.2021,Adult Social Care - Workforce Development,Training,"2,100.00",EDGE TRAINING & CONS LTD
Revenue,Resources,Children's & Education Services,Other Education and Community Budget,5105666417,17.02.2021,Specialist Cross-Council Training,Training,700.00,FRAN OSMAN-NEWBURY LTD
Revenue,Childrens Services,Children's & Education Services,Special Schools & Alternative Provision,5105666965,24.02.2021,Island Learning Centre,Bought in Prof Services - Curriculum (Schools),150.00,REDACTED PERSONAL DATA
Revenue,Childrens Services,Children's & Education Services,Special Schools & Alternative Provision,5105666965,24.02.2021,Island Learning Centre,Bought in Prof Services - Curriculum (Schools),"1,500.00",REDACTED PERSONAL DATA
Revenue,Childrens Services,Children's & Education Services,Special Schools & Alternative Provision,5105666965,24.02.2021,Island Learning Centre,Bought in Prof Services - Curriculum (Schools),"1,100.00",REDACTED PERSONAL DATA
Revenue,Childrens Services,Children's & Education Services,Special Schools & Alternative Provision,5105666965,24.02.2021,Island Learning Centre,Bought in Prof Services - Curriculum (Schools),90.00,REDACTED PERSONAL DATA
Revenue,Childrens Services,Children's & Education Services,Special Schools & Alternative Provision,5105666965,24.02.2021,Island Learning Centre,Bought in Prof Services - Curriculum (Schools),"1,100.00",REDACTED PERSONAL DATA
Revenue,Childrens Services,Children's & Education Services,Special Schools & Alternative Provision,5105666965,24.02.2021,Island Learning Centre,Bought in Prof Services - Curriculum (Schools),"1,500.00",REDACTED PERSONAL DATA
Revenue,Childrens Services,Children's & Education Services,Other Education and Community Budget,5105665775,10.02.2021,Home to School SEN Transport (LA),Taxis - Contract Hire,800.00,HAYLES TAXIS
Revenue,Childrens Services,Children's & Education Services,Other Education and Community Budget,5105665776,10.02.2021,Home to School SEN Transport (LA),Taxis - Contract Hire,760.00,HAYLES TAXIS
Revenue,Childrens Services,Children's & Education Services,Other Education and Community Budget,5105665777,10.02.2021,Home to College Post 16 Transport,Taxis - Contract Hire,640.00,HAYLES TAXIS
Capital,Resources,Capital,Capital,5105665173,03.02.2021,Capital Receipts,Property Services - Day to day Maintenance,240.00,ISLAND HIGHWAY & TRANSPORT
Revenue,Resources,Central Services,Support Services,5105665841,10.02.2021,ICT Contracts,Computer Maintenance,330.00,REDACTED PERSONAL DATA
Revenue,Regeneration,Planning services,Economic Development,5105665843,10.02.2021,Branstone Farm Project,Consultants Fees,175.00,LINSCH CONSULTANTS
Revenue,Public Health,Public Health,Miscellaneous Public Health Services,5105665774,12.02.2021,PEACH NP,Consultants Fees,"2,500.00",REDACTED PERSONAL DATA
Revenue,Adult Services,Adult Social Care,Social Care Activities,5105666123,12.02.2021,LSAB Conferences,Professional Services,650.00,MAKING CONNECTIONS (IW) LTD
Revenue,Childrens Services,Children's & Education Services,Other Education and Community Budget,5105665786,10.02.2021,Home to School SEN Transport (LA),Taxis - Contract Hire,"1,716.00",MR TAXIS
Capital,Place,Capital,Capital,5105667465,26.02.2021,Rights Of Way Capital Programme,Payment to Contractors - Capital,880.00,REDACTED PERSONAL DATA
Capital,Place,Capital,Capital,5105667468,26.02.2021,Rights Of Way Capital Programme,Payment to Contractors - Capital,"1,320.00",REDACTED PERSONAL DATA
Revenue,Resources,Children's & Education Services,Safeguarding Children/Young Peoples Svs,5105667087,24.02.2021,ASYE Programme,Training,750.00,MISSING SOLUTIONS LTD
Revenue,Resources,Children's & Education Services,Safeguarding Children/Young Peoples Svs,5105667085,24.02.2021,ASYE Programme,Training,500.00,MISSING SOLUTIONS LTD
Revenue,Resources,Children's & Education Services,Safeguarding Children/Young Peoples Svs,5105667085,24.02.2021,ASYE Programme,Training,500.00,MISSING SOLUTIONS LTD
Revenue,Resources,Children's & Education Services,Safeguarding Children/Young Peoples Svs,5105667085,24.02.2021,ASYE Programme,Training,500.00,MISSING SOLUTIONS LTD
Revenue,Resources,Children's & Education Services,Safeguarding Children/Young Peoples Svs,5105667085,24.02.2021,ASYE Programme,Training,500.00,MISSING SOLUTIONS LTD
Revenue,Resources,Children's & Education Services,Safeguarding Children/Young Peoples Svs,5105667086,24.02.2021,Safeguarding Training,Training,600.00,MISSING SOLUTIONS LTD
Revenue,Resources,Central Services,Support Services,5105665810,10.02.2021,Legal Services Section,Sundry Office Expenses,59.97,OD CONSULTANCY LTD
Revenue,Adult Services,Housing Services,Homelessness,5105666812,19.02.2021,Private Rented Sector Leasing Scheme,Accommodation Costs - Leaseholder Payments,695.89,REDACTED PERSONAL DATA
Revenue,Adult Services,Housing Services,Homelessness,5105666812,19.02.2021,Private Rented Sector Leasing Scheme,Accommodation Costs - Leaseholder Payments,695.89,REDACTED PERSONAL DATA
Revenue,Adult Services,Housing Services,Homelessness,5105666812,19.02.2021,Private Rented Sector Leasing Scheme,Accommodation Costs - Leaseholder Payments,695.89,REDACTED PERSONAL DATA
Revenue,Adult Services,Housing Services,Homelessness,5105666812,19.02.2021,Private Rented Sector Leasing Scheme,Accommodation Costs - Leaseholder Payments,695.89,REDACTED PERSONAL DATA
Revenue,Adult Services,Housing Services,Homelessness,5105666812,19.02.2021,Private Rented Sector Leasing Scheme,Accommodation Costs - Leaseholder Payments,695.89,REDACTED PERSONAL DATA
Revenue,Childrens Services,Children's & Education Services,Children Looked After,5105666414,17.02.2021,Adopt South Adoption Support Fund,Charges from Independent Providers,75.00,REDACTED PERSONAL DATA
Revenue,Regeneration,Central Services,Support Services,5105665287,03.02.2021,Strategic Assets Team,Professional Services,"3,250.00",PRINCIPAL SURVEYORS LTD
Revenue,Childrens Services,Children's & Education Services,Other Education and Community Budget,5105667447,26.02.2021,Non-Delegated Building Maintenance,Professional Services,375.00,PRINCIPAL SURVEYORS LTD
Revenue,Childrens Services,Children's & Education Services,Management & Support Services,5105665797,10.02.2021,Special Discretionary Grants,Charges from Independent Providers,"1,755.00",REDACTED PERSONAL DATA
Revenue,Childrens Services,Children's & Education Services,Other Education and Community Budget,5105666786,26.02.2021,Home to School SEN Transport (LA),Taxis - Contract Hire,700.00,ROUNSEVELLS TAXIS
Revenue,Childrens Services,Children's & Education Services,Other Education and Community Budget,5105666794,24.02.2021,Home to College Post 16 Transport,Taxis - Contract Hire,700.00,ROUNSEVELLS TAXIS
Revenue,Childrens Services,Children's & Education Services,Other Education and Community Budget,5105666786,26.02.2021,Home to College Post 16 Transport,Taxis - Contract Hire,140.00,ROUNSEVELLS TAXIS
Revenue,Childrens Services,Children's & Education Services,Children Looked After,5105665042,10.02.2021,Support for Looked After Children,Client Expenses,70.00,REDACTED PERSONAL DATA
Revenue,Childrens Services,Children's & Education Services,Children Looked After,5105666143,12.02.2021,Support for Looked After Children,Support Children,320.00,SCALLYWAGS FUN CLUB
Revenue,Childrens Services,Children's & Education Services,Children Looked After,5105666144,12.02.2021,Support for Looked After Children,Support Children,255.00,SCALLYWAGS FUN CLUB
Revenue,Childrens Services,Children's & Education Services,Other Education and Community Budget,5105665744,10.02.2021,Commissioning ACL,Grants to External Bodies,"6,000.00",THE CROSSLEY COMPANY (IOW) LTD
Revenue,Childrens Services,Children's & Education Services,Family Support Services,5400002932,26.02.2021,Short Breaks,Charges from Independent Providers,10.00,THE CROSSLEY COMPANY (IOW) LTD
Revenue,Childrens Services,Children's & Education Services,Other Education and Community Budget,5105665712,10.02.2021,Home to School SEN Transport (LA),Taxis - Contract Hire,"1,400.00",THOMPSON TAXI
Revenue,Childrens Services,Children's & Education Services,Other Education and Community Budget,5105665711,10.02.2021,Home to School Mainstream Transport,Taxis - Contract Hire,"1,400.00",THOMPSON TAXI
Revenue,Childrens Services,Children's & Education Services,Other Education and Community Budget,5105666201,17.02.2021,Home to College Post 16 Transport,Taxis - Contract Hire,400.00,TJ CAR SERVICES LTD
Revenue,Adult Services,Adult Social Care,Social Support - Social Isolation/Other,5105665880,17.02.2021,Social Isolation/Other Other ST Support,Professional Services,"1,176.00",TOP MOPS LIMITED
Revenue,Adult Services,Adult Social Care,Social Support - Social Isolation/Other,5105665881,17.02.2021,Social Isolation/Other Other ST Support,Professional Services,"1,470.00",TOP MOPS LIMITED
Revenue,Adult Services,Adult Social Care,Social Support - Social Isolation/Other,5105666983,24.02.2021,Social Isolation/Other Other ST Support,Professional Services,512.50,TOP MOPS LIMITED
Revenue,Childrens Services,Children's & Education Services,Special Schools & Alternative Provision,5105667474,26.02.2021,Island Learning Centre,Cleaning Contracts,"2,096.00",TOP MOPS LIMITED
Revenue,Childrens Services,Children's & Education Services,Special Schools & Alternative Provision,5105667476,26.02.2021,Island Learning Centre,Cleaning Contracts,819.60,TOP MOPS LIMITED
Revenue,Childrens Services,Children's & Education Services,Special Schools & Alternative Provision,5105665760,10.02.2021,Island Learning Centre,Consumable Cleaning Materials,51.60,TOP MOPS LIMITED
Revenue,Regeneration,Central Services,Support Services,5105666939,24.02.2021,Non-operational buildings,Security of Buildings,75.00,VECTIS GROUP SECURITY LTD
Revenue,Neighbourhoods,Cultural and Related Services,Recreation and Sport,5105665852,10.02.2021,Medina Leisure Centre,Payment to Private Contractors,52.00,VECTIS GROUP SECURITY LTD
Revenue,Regeneration,Central Services,Support Services,5105666940,26.02.2021,"Westridge, Ryde",Security of Buildings,112.00,VECTIS GROUP SECURITY LTD
Revenue,Childrens Services,Children's & Education Services,Special Schools & Alternative Provision,5105665848,10.02.2021,Island Learning Centre,Security of Buildings,12.00,VECTIS GROUP SECURITY LTD
Revenue,Neighbourhoods,Cultural and Related Services,Recreation and Sport,5105665849,12.02.2021,Westridge Squash Courts,Payment to Private Contractors,12.00,VECTIS GROUP SECURITY LTD
Revenue,Childrens Services,Children's & Education Services,Support Services,5105665835,10.02.2021,Grafton Street Sandown (ex Sandown Yth),Security of Buildings,87.00,VECTIS GROUP SECURITY LTD
Revenue,Neighbourhoods,Cultural and Related Services,Recreation and Sport,5105665839,12.02.2021,The Heights,Payment to Private Contractors,12.00,VECTIS GROUP SECURITY LTD
Revenue,Childrens Services,Children's & Education Services,Other Education and Community Budget,5105665672,10.02.2021,Home to School SEN Transport (LA),Taxis - Contract Hire,"2,090.00",W W CARS OF SEAVIEW
Revenue,Childrens Services,Children's & Education Services,Other Education and Community Budget,5105665673,10.02.2021,Home to School Mainstream Transport,Taxis - Contract Hire,"2,394.00",W W CARS OF SEAVIEW
Revenue,Childrens Services,Children's & Education Services,Other Education and Community Budget,5105665766,10.02.2021,Home to College Post 16 Transport,Taxis - Contract Hire,356.40,HAVEN TAXIS & PRIVATE HIRE
Revenue,Childrens Services,Children's & Education Services,Other Education and Community Budget,5105665767,10.02.2021,Home to School Mainstream Transport,Taxis - Contract Hire,998.00,HAVEN TAXIS & PRIVATE HIRE
Revenue,Adult Services,Adult Social Care,Central Codes (to be reallocated),5105666902,24.02.2021,Gouldings Resource Centre,Property Services - Day to day Maintenance,136.05,WIGHT HEATING LTD
Revenue,Adult Services,Adult Social Care,Central Codes (to be reallocated),5105666960,24.02.2021,Gouldings Resource Centre,Property Services - Day to day Maintenance,97.50,WIGHT HEATING LTD
Revenue,Adult Services,Adult Social Care,Central Codes (to be reallocated),5105666961,24.02.2021,Gouldings Resource Centre,Property Services - Day to day Maintenance,80.00,WIGHT HEATING LTD
Revenue,Neighbourhoods,Cultural and Related Services,Library Service,5105665531,05.02.2021,Cowes Library,Property Services - Day to day Maintenance,80.00,WIGHT HEATING LTD
Revenue,Neighbourhoods,Cultural and Related Services,Culture and Heritage,5105666954,24.02.2021,Archives,Property Services - Planned Maintenance,162.50,WIGHT HEATING LTD
Revenue,Fire & Rescue,Fire & Rescue Services,Fire fighting and Rescue Operations,5105666925,24.02.2021,Business Support  - Fire,Property Services - Planned Maintenance,115.00,WIGHT HEATING LTD
Revenue,Fire & Rescue,Fire & Rescue Services,Fire fighting and Rescue Operations,5105666957,24.02.2021,Business Support  - Fire,Property Services - Day to day Maintenance,115.00,WIGHT HEATING LTD
Revenue,Fire & Rescue,Fire & Rescue Services,Fire fighting and Rescue Operations,5105666959,24.02.2021,Business Support  - Fire,Property Services - Day to day Maintenance,80.00,WIGHT HEATING LTD
Revenue,Childrens Services,Children's & Education Services,Sure Start Children's Centres,5105664620,17.02.2021,Family Centres Maintenance,Minor Works,426.05,WIGHT HEATING LTD
Revenue,Childrens Services,Children's & Education Services,Sure Start Children's Centres,5105665781,17.02.2021,Family Centres Maintenance,Minor Works,-208.35,WIGHT HEATING LTD
Revenue,Childrens Services,Children's & Education Services,Sure Start Children's Centres,5105666956,24.02.2021,Family Centres Maintenance,Minor Works,539.37,WIGHT HEATING LTD
Revenue,Childrens Services,Children's & Education Services,Sure Start Children's Centres,5105666435,17.02.2021,Family Centres Maintenance,Minor Works,208.35,WIGHT HEATING LTD
Revenue,Neighbourhoods,Environmental & Regulatory Services,"Cemetery, Cremation & Mortuary Services",5105666958,24.02.2021,Crematorium,Property Services - Day to day Maintenance,227.88,WIGHT HEATING LTD
Revenue,Adult Services,Housing Services,Homelessness,5105666825,19.02.2021,Private Rented Sector Leasing Scheme,Accommodation Costs - Leaseholder Payments,866.67,2K PROPERTY
Revenue,Childrens Services,Children's & Education Services,Children Looked After,5105667406,26.02.2021,In-house Fostering,Support Children,50.00,REDACTED PERSONAL DATA
Revenue,Childrens Services,Children's & Education Services,Children Looked After,5105666871,19.02.2021,In-house Fostering,Support Children,50.00,REDACTED PERSONAL DATA
Revenue,Childrens Services,Children's & Education Services,Children Looked After,5105666547,19.02.2021,Special Guardianship Order Costs,Support Children,207.73,REDACTED PERSONAL DATA
Revenue,Childrens Services,Children's & Education Services,Children Looked After,5105665956,12.02.2021,Special Guardianship Order Costs,Support Children,207.73,REDACTED PERSONAL DATA
Revenue,Childrens Services,Children's & Education Services,Children Looked After,5105665324,05.02.2021,Special Guardianship Order Costs,Support Children,207.73,REDACTED PERSONAL DATA
Revenue,Childrens Services,Children's & Education Services,Children Looked After,5105667249,26.02.2021,Special Guardianship Order Costs,Support Children,207.73,REDACTED PERSONAL DATA
Revenue,Childrens Services,Children's & Education Services,Children Looked After,5105667249,26.02.2021,In-house Fostering,Boarding Out Allowances,286.47,REDACTED PERSONAL DATA
Revenue,Childrens Services,Children's & Education Services,Children Looked After,5105667249,26.02.2021,In-house Fostering,Boarding Out Allowances,286.47,REDACTED PERSONAL DATA
Revenue,Childrens Services,Children's & Education Services,Children Looked After,5105666547,19.02.2021,In-house Fostering,Boarding Out Allowances,286.47,REDACTED PERSONAL DATA
Revenue,Childrens Services,Children's & Education Services,Children Looked After,5105666547,19.02.2021,In-house Fostering,Boarding Out Allowances,286.47,REDACTED PERSONAL DATA
Revenue,Childrens Services,Children's & Education Services,Children Looked After,5105665324,05.02.2021,In-house Fostering,Boarding Out Allowances,286.47,REDACTED PERSONAL DATA
Revenue,Childrens Services,Children's & Education Services,Children Looked After,5105665324,05.02.2021,In-house Fostering,Boarding Out Allowances,286.47,REDACTED PERSONAL DATA
Revenue,Childrens Services,Children's & Education Services,Children Looked After,5105665956,12.02.2021,In-house Fostering,Boarding Out Allowances,286.47,REDACTED PERSONAL DATA
Revenue,Childrens Services,Children's & Education Services,Children Looked After,5105665956,12.02.2021,In-house Fostering,Boarding Out Allowances,286.47,REDACTED PERSONAL DATA
Revenue,Adult Services,Housing Services,Homelessness,5105666822,19.02.2021,Private Rented Sector Leasing Scheme,Accommodation Costs - Leaseholder Payments,510.25,REDACTED PERSONAL DATA
Revenue,Adult Services,Housing Services,Homelessness,5105666822,19.02.2021,Private Rented Sector Leasing Scheme,Accommodation Costs - Leaseholder Payments,510.25,REDACTED PERSONAL DATA
Revenue,Adult Services,Housing Services,Homelessness,5105666822,19.02.2021,Private Rented Sector Leasing Scheme,Accommodation Costs - Leaseholder Payments,510.25,REDACTED PERSONAL DATA
Revenue,Adult Services,Housing Services,Homelessness,5105666822,19.02.2021,Private Rented Sector Leasing Scheme,Accommodation Costs - Leaseholder Payments,510.25,REDACTED PERSONAL DATA
Revenue,Adult Services,Housing Services,Homelessness,5105666822,19.02.2021,Private Rented Sector Leasing Scheme,Accommodation Costs - Leaseholder Payments,510.25,REDACTED PERSONAL DATA
Revenue,Adult Services,Housing Services,Homelessness,5105666822,19.02.2021,Private Rented Sector Leasing Scheme,Accommodation Costs - Leaseholder Payments,510.25,REDACTED PERSONAL DATA
Revenue,Adult Services,Housing Services,Homelessness,5105666822,19.02.2021,Private Rented Sector Leasing Scheme,Accommodation Costs - Leaseholder Payments,510.25,REDACTED PERSONAL DATA
Revenue,Childrens Services,Children's & Education Services,Children Looked After,5105665946,12.02.2021,Adoption Costs,Support Children,225.83,REDACTED PERSONAL DATA
Revenue,Childrens Services,Children's & Education Services,Children Looked After,5105667239,26.02.2021,Adoption Costs,Support Children,225.83,REDACTED PERSONAL DATA
Revenue,Childrens Services,Children's & Education Services,Children Looked After,5105665314,05.02.2021,Adoption Costs,Support Children,225.83,REDACTED PERSONAL DATA
Revenue,Childrens Services,Children's & Education Services,Children Looked After,5105666537,19.02.2021,Adoption Costs,Support Children,225.83,REDACTED PERSONAL DATA
Revenue,Adult Services,Adult Social Care,Support - Memory /Cognition-older people (65+),5105666312,17.02.2021,Memory & Cognition Residential 65+,Charges from Independent Providers,"3,200.12",ABBERDALE LIMITED
Revenue,Resources,Central Services,Support Services,5105666989,24.02.2021,ICT Contracts,Computer Maintenance,225.35,ABSOFT LIMITED
Revenue,Resources,Central Services,Support Services,5105666736,19.02.2021,Human Resources,Training,110.00,ACAS
Revenue,Resources,Central Services,Support Services,5105666737,19.02.2021,Human Resources,Training,110.00,ACAS
Revenue,Adult Services,Adult Social Care,Learning Disab Supp (to be reallocated),5105666995,24.02.2021,"41 Newport Road, Cowes",Charges from Independent Providers,"5,684.00",TRACSCARE WELLCARE LIFESTYLES
Revenue,Adult Services,Adult Social Care,Learning Disab Supp (to be reallocated),5105666995,24.02.2021,"41 Newport Road, Cowes",Charges from Independent Providers,"2,190.72",TRACSCARE WELLCARE LIFESTYLES
Revenue,Adult Services,Adult Social Care,Learning Disab Supp (to be reallocated),5105666995,24.02.2021,"17 Newport Road, Ventnor",Charges from Independent Providers,"4,553.00",TRACSCARE WELLCARE LIFESTYLES
Revenue,Adult Services,Adult Social Care,Learning Disab Supp (to be reallocated),5105666995,24.02.2021,"17 Newport Road, Ventnor",Charges from Independent Providers,"2,190.72",TRACSCARE WELLCARE LIFESTYLES
Revenue,Adult Services,Adult Social Care,Learning Disab Supp (to be reallocated),5105666995,24.02.2021,Westhorpe Supported Living,Charges from Independent Providers,"5,684.00",TRACSCARE WELLCARE LIFESTYLES
Revenue,Adult Services,Adult Social Care,Learning Disab Supp (to be reallocated),5105666995,24.02.2021,Westhorpe Supported Living,Charges from Independent Providers,"4,060.00",TRACSCARE WELLCARE LIFESTYLES
Revenue,Adult Services,Adult Social Care,Learning Disab Supp (to be reallocated),5105666995,24.02.2021,Westhorpe Supported Living,Charges from Independent Providers,"2,030.00",TRACSCARE WELLCARE LIFESTYLES
Revenue,Adult Services,Adult Social Care,Learning Disab Supp (to be reallocated),5105666995,24.02.2021,"Greengates, Ryde",Charges from Independent Providers,"5,684.00",TRACSCARE WELLCARE LIFESTYLES
Revenue,Adult Services,Adult Social Care,Learning Disab Supp (to be reallocated),5105666995,24.02.2021,"Greengates, Ryde",Charges from Independent Providers,"2,190.72",TRACSCARE WELLCARE LIFESTYLES
Revenue,Adult Services,Adult Social Care,Long Term Support,5105666995,24.02.2021,Seagulls,Charges from Independent Providers,"26,945.12",TRACSCARE WELLCARE LIFESTYLES
Revenue,Adult Services,Adult Social Care,Learning Disab Supp (to be reallocated),5105666995,24.02.2021,"Heath Road, Lake",Charges from Independent Providers,"4,553.00",TRACSCARE WELLCARE LIFESTYLES
Revenue,Adult Services,Adult Social Care,Learning Disab Supp (to be reallocated),5105666995,24.02.2021,"Heath Road, Lake",Charges from Independent Providers,"2,190.72",TRACSCARE WELLCARE LIFESTYLES
Revenue,Adult Services,Adult Social Care,Learning Disab Supp (to be reallocated),5105666995,24.02.2021,"Winton Street, Ryde",Charges from Independent Providers,"5,684.00",TRACSCARE WELLCARE LIFESTYLES
Revenue,Adult Services,Adult Social Care,Learning Disab Supp (to be reallocated),5105666995,24.02.2021,"Winton Street, Ryde",Charges from Independent Providers,"2,190.72",TRACSCARE WELLCARE LIFESTYLES
Revenue,Adult Services,Adult Social Care,Long Term Support,5105666995,24.02.2021,40 Venner Avenue,Charges from Independent Providers,"28,129.64",TRACSCARE WELLCARE LIFESTYLES
Revenue,Adult Services,Adult Social Care,Assistive Equipment & Technology,5105667210,26.02.2021,Community Equipment Store,Operational Equipment,95.50,ACCORA  LIMITED
Revenue,Childrens Services,Children's & Education Services,Management & Support Services,5105666184,17.02.2021,Education Out of School,Professional Services,555.00,A-DAY CONSULTANTS LTD
Revenue,Childrens Services,Children's & Education Services,Management & Support Services,5105665030,03.02.2021,Education Out of School,Professional Services,555.00,A-DAY CONSULTANTS LTD
Revenue,Childrens Services,Children's & Education Services,Management & Support Services,5105664899,03.02.2021,Education Out of School,Professional Services,555.00,A-DAY CONSULTANTS LTD
Revenue,Childrens Services,Children's & Education Services,Management & Support Services,5105665511,12.02.2021,Education Out of School,Professional Services,555.00,A-DAY CONSULTANTS LTD
Revenue,Childrens Services,Children's & Education Services,Management & Support Services,5105667196,26.02.2021,Education Out of School,Professional Services,555.00,A-DAY CONSULTANTS LTD
Revenue,Childrens Services,Children's & Education Services,Special Schools & Alternative Provision,5105667482,26.02.2021,Island Learning Centre,Agency staff,555.00,A-DAY CONSULTANTS LTD
Revenue,Childrens Services,Children's & Education Services,Special Schools & Alternative Provision,5105667488,26.02.2021,Island Learning Centre,Agency staff,555.00,A-DAY CONSULTANTS LTD
Revenue,Childrens Services,Children's & Education Services,Special Schools & Alternative Provision,5105666968,24.02.2021,Island Learning Centre,Agency staff,555.00,A-DAY CONSULTANTS LTD
Revenue,Childrens Services,Children's & Education Services,Special Schools & Alternative Provision,5105666969,24.02.2021,Island Learning Centre,Agency staff,555.00,A-DAY CONSULTANTS LTD
Revenue,Childrens Services,Children's & Education Services,Other Education and Community Budget,5105665795,10.02.2021,Home to School SEN Transport (LA),Taxis - Contract Hire,"1,080.00",REDACTED PERSONAL DATA
Revenue,Childrens Services,Children's & Education Services,Other Education and Community Budget,5105665796,17.02.2021,Home to School SEN Transport (LA),Taxis - Contract Hire,800.00,REDACTED PERSONAL DATA
Revenue,Childrens Services,Children's & Education Services,Other Education and Community Budget,5105665793,17.02.2021,Home to College Post 16 Transport,Taxis - Contract Hire,960.00,REDACTED PERSONAL DATA
Revenue,Childrens Services,Children's & Education Services,Other Education and Community Budget,5105667469,26.02.2021,Home to School Mainstream Transport,Taxis - Contract Hire,"1,520.00",REDACTED PERSONAL DATA
Revenue,Childrens Services,Children's & Education Services,Other Education and Community Budget,5105667471,26.02.2021,Home to School Mainstream Transport,Taxis - Contract Hire,"1,140.00",REDACTED PERSONAL DATA
Revenue,Childrens Services,Children's & Education Services,Other Education and Community Budget,5105667473,26.02.2021,Home to School Mainstream Transport,Taxis - Contract Hire,"1,140.00",REDACTED PERSONAL DATA
Revenue,Regeneration,Central Services,Support Services,5105664396,05.02.2021,Administrative Buildings,Security of Buildings,65.00,ADT FIRE AND SECURITY PLC
Revenue,Neighbourhoods,Cultural and Related Services,Recreation and Sport,5105665291,03.02.2021,Medina Leisure Centre,Security of Buildings,114.00,ADT FIRE AND SECURITY PLC
Revenue,Neighbourhoods,Cultural and Related Services,Recreation and Sport,5105664873,03.02.2021,Medina Leisure Centre,Security of Buildings,-114.00,ADT FIRE AND SECURITY PLC
Revenue,Regeneration,Central Services,Support Services,5105665197,12.02.2021,"Mariners Way, Cowes",Security of Buildings,-99.00,ADT FIRE AND SECURITY PLC
Revenue,Regeneration,Central Services,Support Services,5105661677,12.02.2021,"Mariners Way, Cowes",Security of Buildings,331.30,ADT FIRE AND SECURITY PLC
Revenue,Regeneration,Central Services,Support Services,5105661612,03.02.2021,"Guildhall,Newport",Security of Buildings,179.00,ADT FIRE AND SECURITY PLC
Revenue,Regeneration,Central Services,Support Services,5105665290,03.02.2021,"Guildhall,Newport",Security of Buildings,-114.00,ADT FIRE AND SECURITY PLC
Revenue,Neighbourhoods,Cultural and Related Services,Recreation and Sport,5105665230,03.02.2021,Beach huts - Colwell Bay,Payment to Private Contractors,400.00,SCOTCHER AND CO
Revenue,Regeneration,Planning services,Economic Development,5105666718,19.02.2021,Economic Development Projects,Legal Fees - Other Parties,100.00,SCOTCHER AND CO
Revenue,Resources,Central Services,Central Services to the Public,5105665803,10.02.2021,RE Covid-19,Consultants Fees,350.00,AIREY CONSULTANCY SERVICES LTD
Revenue,Adult Services,Adult Social Care,Central Codes (to be reallocated),5105666920,24.02.2021,Gouldings Resource Centre,Property Services - Day to day Maintenance,185.00,AIRTEK SERVICES IOW LTD
Revenue,Neighbourhoods,Cultural and Related Services,Recreation and Sport,5105665140,10.02.2021,Medina Leisure Centre,Property Services - Day to day Maintenance,400.00,AIRTEK SERVICES IOW LTD
Revenue,Neighbourhoods,Cultural and Related Services,Recreation and Sport,5105666192,24.02.2021,Westridge Squash Courts,Property Services - Day to day Maintenance,150.00,AIRTEK SERVICES IOW LTD
Revenue,Neighbourhoods,Cultural and Related Services,Recreation and Sport,5105666190,24.02.2021,The Heights,Property Services - Day to day Maintenance,300.00,AIRTEK SERVICES IOW LTD
Revenue,Childrens Services,Children's & Education Services,Children Looked After,5105666702,19.02.2021,Children placed with Family&Friends,Boarding Out Allowances,332.69,REDACTED PERSONAL DATA
Revenue,Childrens Services,Children's & Education Services,Children Looked After,5105666112,12.02.2021,Children placed with Family&Friends,Boarding Out Allowances,332.69,REDACTED PERSONAL DATA
Revenue,Childrens Services,Children's & Education Services,Children Looked After,5105667401,26.02.2021,Children placed with Family&Friends,Boarding Out Allowances,332.69,REDACTED PERSONAL DATA
Revenue,Childrens Services,Children's & Education Services,Children Looked After,5105665480,05.02.2021,Children placed with Family&Friends,Boarding Out Allowances,286.47,REDACTED PERSONAL DATA
Revenue,Adult Services,Adult Social Care,Learning Disability Suppt-adults (18-64),5105666310,17.02.2021,Learning Disability Residential 18-64,Charges from Independent Providers,"8,743.00",AITCH CARE HOMES (LONDON) LTD
Revenue,Adult Services,Adult Social Care,Mental Health Support - adults (18-64),5105666310,17.02.2021,Mental Health Residential 18-64,Charges from Independent Providers,"4,064.80",AITCH CARE HOMES (LONDON) LTD
Revenue,Childrens Services,Children's & Education Services,Other Education and Community Budget,5105665920,12.02.2021,Home to School Mainstream Transport,Taxis - Contract Hire,912.00,AKAR TAXIS
Revenue,Childrens Services,Children's & Education Services,Other Education and Community Budget,5105665921,12.02.2021,Home to School Mainstream Transport,Taxis - Contract Hire,"1,444.00",AKAR TAXIS
Revenue,Adult Services,Adult Social Care,Assistive Equipment & Technology,5105665747,10.02.2021,Community Equipment Store,Operational Equipment,517.62,AKW MEDI-CARE LTD
Revenue,Adult Services,Adult Social Care,Assistive Equipment & Technology,5105665836,10.02.2021,Community Equipment Store,Operational Equipment,74.00,AKW MEDI-CARE LTD
Revenue,Neighbourhoods,Environmental & Regulatory Services,"Cemetery, Cremation & Mortuary Services",5105665158,03.02.2021,Crematorium,Operational Equipment,56.31,ALBANY FARM & G MACHINERY LTD
Revenue,Neighbourhoods,Environmental & Regulatory Services,"Cemetery, Cremation & Mortuary Services",5105665137,03.02.2021,Crematorium,Operational Equipment,81.66,ALBANY FARM & G MACHINERY LTD
Revenue,Neighbourhoods,Environmental & Regulatory Services,"Cemetery, Cremation & Mortuary Services",5105665152,03.02.2021,Crematorium,Operational Equipment,126.35,ALBANY FARM & G MACHINERY LTD
Revenue,Neighbourhoods,Environmental & Regulatory Services,"Cemetery, Cremation & Mortuary Services",5105665153,03.02.2021,Crematorium,Operational Equipment,90.03,ALBANY FARM & G MACHINERY LTD
Revenue,Neighbourhoods,Environmental & Regulatory Services,"Cemetery, Cremation & Mortuary Services",5105665154,03.02.2021,Crematorium,Operational Equipment,78.08,ALBANY FARM & G MACHINERY LTD
Revenue,Neighbourhoods,Environmental & Regulatory Services,"Cemetery, Cremation & Mortuary Services",5105665155,03.02.2021,Crematorium,Operational Equipment,66.53,ALBANY FARM & G MACHINERY LTD
Revenue,Neighbourhoods,Environmental & Regulatory Services,"Cemetery, Cremation & Mortuary Services",5105665156,03.02.2021,Crematorium,Operational Equipment,50.76,ALBANY FARM & G MACHINERY LTD
Revenue,Neighbourhoods,Environmental & Regulatory Services,"Cemetery, Cremation & Mortuary Services",5105666977,24.02.2021,Crematorium,Operational Equipment,70.98,ALBANY FARM & G MACHINERY LTD
Revenue,Public Health,Public Health,Sexual Health,5105666522,19.02.2021,Long Acting Reversible Contraception,Payment to Private Contractors,860.00,ALBERT STREET PRACTICE
Revenue,Resources,Adult Social Care,Physical Support (to be reallocated),5105665708,10.02.2021,Blue Badge Admin Team Shared Services,Printing Costs,472.88,ALLIED PUBLICITY SERVICES LTD
Revenue,Resources,Highways and Transport Services,Public Transport,5105665885,10.02.2021,Transport Fleet Administration,Vehicle Fuel Costs,"10,157.37",ALLSTAR BUSINESS SOLUTIONS LTD
Revenue,Childrens Services,Children's & Education Services,Other Education and Community Budget,5105665763,10.02.2021,Home to School SEN Transport (LA),Taxis - Contract Hire,"1,920.00",ALPHA (IOW) LTD
Revenue,Childrens Services,Children's & Education Services,Other Education and Community Budget,5105665763,10.02.2021,Home to School SEN Transport (LA),Taxis - Contract Hire,855.00,ALPHA (IOW) LTD
Revenue,Childrens Services,Children's & Education Services,Other Education and Community Budget,5105665763,10.02.2021,Home to School SEN Transport (LA),Taxis - Contract Hire,855.00,ALPHA (IOW) LTD
Revenue,Childrens Services,Children's & Education Services,Other Education and Community Budget,5105665763,10.02.2021,Home to School SEN Transport (LA),Taxis - Contract Hire,800.00,ALPHA (IOW) LTD
Revenue,Childrens Services,Children's & Education Services,Other Education and Community Budget,5105665763,10.02.2021,Home to School SEN Transport (LA),Taxis - Contract Hire,"1,330.00",ALPHA (IOW) LTD
Revenue,Childrens Services,Children's & Education Services,Other Education and Community Budget,5105665763,10.02.2021,Home to School SEN Transport (LA),Taxis - Contract Hire,950.00,ALPHA (IOW) LTD
Revenue,Childrens Services,Children's & Education Services,Other Education and Community Budget,5105665763,10.02.2021,Home to School SEN Transport (LA),Taxis - Contract Hire,"2,185.00",ALPHA (IOW) LTD
Revenue,Childrens Services,Children's & Education Services,Other Education and Community Budget,5105665763,10.02.2021,Home to School SEN Transport (LA),Taxis - Contract Hire,"1,100.00",ALPHA (IOW) LTD
Revenue,Childrens Services,Children's & Education Services,Other Education and Community Budget,5105665763,10.02.2021,Home to School SEN Transport (LA),Taxis - Contract Hire,"1,520.00",ALPHA (IOW) LTD
Revenue,Childrens Services,Children's & Education Services,Other Education and Community Budget,5105665763,10.02.2021,Home to School SEN Transport (LA),Taxis - Contract Hire,60.00,ALPHA (IOW) LTD
Revenue,Childrens Services,Children's & Education Services,Other Education and Community Budget,5105665763,10.02.2021,Home to School SEN Transport (LA),Taxis - Contract Hire,950.00,ALPHA (IOW) LTD
Revenue,Childrens Services,Children's & Education Services,Other Education and Community Budget,5105665763,10.02.2021,Home to School SEN Transport (LA),Taxis - Contract Hire,"2,926.00",ALPHA (IOW) LTD
Revenue,Childrens Services,Children's & Education Services,Other Education and Community Budget,5105665763,10.02.2021,Home to School SEN Transport (LA),Taxis - Contract Hire,280.00,ALPHA (IOW) LTD
Revenue,Childrens Services,Children's & Education Services,Other Education and Community Budget,5105665763,10.02.2021,Home to School SEN Transport (LA),Taxis - Contract Hire,"2,280.00",ALPHA (IOW) LTD
Revenue,Childrens Services,Children's & Education Services,Other Education and Community Budget,5105665763,10.02.2021,Home to College Post 16 Transport,Taxis - Contract Hire,840.00,ALPHA (IOW) LTD
Revenue,Childrens Services,Children's & Education Services,Other Education and Community Budget,5105665763,10.02.2021,Home to College Post 16 Transport,Taxis - Contract Hire,240.00,ALPHA (IOW) LTD
Revenue,Childrens Services,Children's & Education Services,Other Education and Community Budget,5105665763,10.02.2021,Home to College Post 16 Transport,Taxis - Contract Hire,600.00,ALPHA (IOW) LTD
Revenue,Childrens Services,Children's & Education Services,Other Education and Community Budget,5105665763,10.02.2021,Home to College Post 16 Transport,Taxis - Contract Hire,480.00,ALPHA (IOW) LTD
Revenue,Childrens Services,Children's & Education Services,Other Education and Community Budget,5105665763,10.02.2021,Home to College Post 16 Transport,Taxis - Contract Hire,"1,440.00",ALPHA (IOW) LTD
Revenue,Childrens Services,Children's & Education Services,Other Education and Community Budget,5105665763,10.02.2021,Home to College Post 16 Transport,Taxis - Contract Hire,840.00,ALPHA (IOW) LTD
Revenue,Childrens Services,Children's & Education Services,Other Education and Community Budget,5105665763,10.02.2021,Home to College Post 16 Transport,Taxis - Contract Hire,880.00,ALPHA (IOW) LTD
Revenue,Childrens Services,Children's & Education Services,Other Education and Community Budget,5105665763,10.02.2021,Home to College Post 16 Transport,Taxis - Contract Hire,"1,200.00",ALPHA (IOW) LTD
Revenue,Childrens Services,Children's & Education Services,Other Education and Community Budget,5105665763,10.02.2021,Home to School Mainstream Transport,Taxis - Contract Hire,"1,000.00",ALPHA (IOW) LTD
Revenue,Childrens Services,Children's & Education Services,Other Education and Community Budget,5105665763,10.02.2021,Home to School Mainstream Transport,Taxis - Contract Hire,"2,800.00",ALPHA (IOW) LTD
Revenue,Childrens Services,Children's & Education Services,Other Education and Community Budget,5105665763,10.02.2021,Home to School Mainstream Transport,Taxis - Contract Hire,"2,080.00",ALPHA (IOW) LTD
Revenue,Childrens Services,Children's & Education Services,Other Education and Community Budget,5105665763,10.02.2021,Home to School Mainstream Transport,Taxis - Contract Hire,"1,000.00",ALPHA (IOW) LTD
Revenue,Childrens Services,Children's & Education Services,Other Education and Community Budget,5105665763,10.02.2021,Home to School Mainstream Transport,Taxis - Contract Hire,"4,800.00",ALPHA (IOW) LTD
Revenue,Childrens Services,Children's & Education Services,Other Education and Community Budget,5105665763,10.02.2021,Home to School Mainstream Transport,Taxis - Contract Hire,"1,400.00",ALPHA (IOW) LTD
Revenue,Childrens Services,Children's & Education Services,Other Education and Community Budget,5105665763,10.02.2021,Home to School Mainstream Transport,Taxis - Contract Hire,"1,000.00",ALPHA (IOW) LTD
Revenue,Childrens Services,Children's & Education Services,Other Education and Community Budget,5105665763,10.02.2021,Home to School Mainstream Transport,Taxis - Contract Hire,"2,200.00",ALPHA (IOW) LTD
Revenue,Childrens Services,Children's & Education Services,Other Education and Community Budget,5105665763,10.02.2021,Home to School Mainstream Transport,Taxis - Contract Hire,"1,200.00",ALPHA (IOW) LTD
Revenue,Childrens Services,Children's & Education Services,Other Education and Community Budget,5105665763,10.02.2021,Home to School Mainstream Transport,Taxis - Contract Hire,"1,200.00",ALPHA (IOW) LTD
Revenue,Childrens Services,Children's & Education Services,Other Education and Community Budget,5105665763,10.02.2021,Home to School Mainstream Transport,Taxis - Contract Hire,"1,000.00",ALPHA (IOW) LTD
Revenue,Adult Services,Housing Services,Homelessness,5105666955,24.02.2021,Homelessness Support,Travel Expenses,55.00,ALPHA (IOW) LTD
Revenue,Resources,Children's & Education Services,Other Education and Community Budget,5105665054,03.02.2021,Specialist Cross-Council Training,Training,"2,120.00",ALPHA MIDAS TRAINING UK
Revenue,Adult Services,Adult Social Care,Learning Disability Suppt-adults (18-64),5105666264,17.02.2021,Learning Disability Residential 18-64,Charges from Independent Providers,"3,836.84",ALPHAGRANGE LTD
Revenue,Childrens Services,Children's & Education Services,Children Looked After,5105667330,26.02.2021,Children placed with Family&Friends,Boarding Out Allowances,167.00,REDACTED PERSONAL DATA
Revenue,Childrens Services,Children's & Education Services,Children Looked After,5105666629,19.02.2021,Children placed with Family&Friends,Boarding Out Allowances,167.00,REDACTED PERSONAL DATA
Revenue,Childrens Services,Children's & Education Services,Children Looked After,5105666038,12.02.2021,In-house Fostering,Boarding Out Allowances,405.57,REDACTED PERSONAL DATA
Revenue,Neighbourhoods,Environmental & Regulatory Services,Waste Disposal,5105667451,26.02.2021,Waste Disposal - Amey Contract,Waste Contractors,"191,139.79",AMEY (IOW) SPV LIMITED
Revenue,Neighbourhoods,Environmental & Regulatory Services,Waste Disposal,5105667454,26.02.2021,Waste Disposal - Amey Contract,Waste Contractors,367.68,AMEY (IOW) SPV LIMITED
Revenue,Neighbourhoods,Environmental & Regulatory Services,Recycling,5105667451,26.02.2021,Waste Recycling - Amey Contract,Waste Contractors,"19,568.70",AMEY (IOW) SPV LIMITED
Revenue,Neighbourhoods,Environmental & Regulatory Services,Waste Collection,5105667454,26.02.2021,Waste Collection - Amey Contract,Waste Contractors,"1,470.74",AMEY (IOW) SPV LIMITED
Revenue,Neighbourhoods,Environmental & Regulatory Services,Waste Collection,5105667451,26.02.2021,Waste Collection - Amey Contract,Waste Contractors,"125,778.58",AMEY (IOW) SPV LIMITED
Revenue,Neighbourhoods,Environmental & Regulatory Services,Waste Collection,5105667457,26.02.2021,Waste Contract Income,Waste Contractors,"5,102.87",AMEY (IOW) SPV LIMITED
Revenue,Fire & Rescue,Fire & Rescue Services,Fire fighting and Rescue Operations,5105667172,24.02.2021,Fire Operations,"Refuse Collection, Disposal and Recycling Costs",180.00,AMEY LG LTD
Revenue,Neighbourhoods,Cultural and Related Services,Recreation and Sport,5105666200,17.02.2021,Play Development,Operational Equipment,316.05,AMP HIRE LTD
Revenue,Resources,Central Services,Support Services,5105665297,05.02.2021,Litigation Costs,Legal Fees - Other Parties,400.00,COLLEGE CHAMBERS BARRISTERS
Revenue,Adult Services,Balance Sheet,Balance Sheet,5105666265,17.02.2021,REDACTED PERSONAL DATA,Order Settlement to Bal Sht GL,"2,497.32",ANCONA CARE HOME
Revenue,Adult Services,Adult Social Care,Physical Support - older people (65+),5105666265,17.02.2021,Physical Support Residential 65+,Charges from Independent Providers,"2,028.32",ANCONA CARE HOME
Revenue,Adult Services,Adult Social Care,Physical Support - older people (65+),5105666265,17.02.2021,Physical Support Residential 65+,Charges from Independent Providers,"2,124.08",ANCONA CARE HOME
Revenue,Adult Services,Adult Social Care,Physical Support - older people (65+),5105666265,17.02.2021,Physical Support Residential 65+,Charges from Independent Providers,"2,124.08",ANCONA CARE HOME
Revenue,Adult Services,Adult Social Care,Physical Support - older people (65+),5105666265,17.02.2021,Physical Support Residential 65+,Charges from Independent Providers,476.00,ANCONA CARE HOME
Revenue,Assistant Chief Executive,Central Services,Support Services,5105665807,10.02.2021,Print Unit,Stationery,135.50,ANTALIS MCNAUGHTON
Revenue,Assistant Chief Executive,Central Services,Support Services,5105667204,26.02.2021,Print Unit,Stationery,108.40,ANTALIS MCNAUGHTON
Revenue,Assistant Chief Executive,Central Services,Support Services,5105667204,26.02.2021,Print Unit,Stationery,86.22,ANTALIS MCNAUGHTON
Revenue,Regeneration,Central Services,Support Services,5105665569,05.02.2021,Public Sector Partnership Costs,Legal Fees - Other Parties,"2,000.00",REDACTED PERSONAL DATA
Revenue,Adult Services,Adult Social Care,Assistive Equipment & Technology,5105667028,24.02.2021,Wightcare,Operational Equipment,"1,200.00",ANYWHERE CARE LIMITED
Revenue,Adult Services,Adult Social Care,Assistive Equipment & Technology,5105666942,24.02.2021,Wightcare,Operational Equipment,960.00,ANYWHERE CARE LIMITED
Capital,Childrens Services,Capital,Capital,5105665924,12.02.2021,Administration and Inspection Schemes,Eligible Supplies and Services - Capital,"2,170.00",ARC CONSULTING LTD
Capital,Childrens Services,Capital,Capital,5105665924,12.02.2021,Administration and Inspection Schemes,Eligible Supplies and Services - Capital,120.00,ARC CONSULTING LTD
Capital,Childrens Services,Capital,Capital,5105665924,12.02.2021,Administration and Inspection Schemes,Eligible Supplies and Services - Capital,520.00,ARC CONSULTING LTD
Capital,Childrens Services,Capital,Capital,5105665924,12.02.2021,Administration and Inspection Schemes,Eligible Supplies and Services - Capital,"1,320.00",ARC CONSULTING LTD
Revenue,Regeneration,Planning services,Economic Development,5105666220,17.02.2021,Area Regeneration Activity,Consultants Fees,"4,000.00",ARC CONSULTING LTD
Revenue,Neighbourhoods,Highways and Transport Services,"Airports, Harbours & Toll Facilities",5105666770,19.02.2021,Ferry Operation,Clothing & Laundry,3.60,ARCO LTD
Revenue,Neighbourhoods,Highways and Transport Services,"Airports, Harbours & Toll Facilities",5105667430,26.02.2021,Ferry Operation,Clothing & Laundry,12.40,ARCO LTD
Revenue,Neighbourhoods,Highways and Transport Services,"Airports, Harbours & Toll Facilities",5105667430,26.02.2021,Ferry Operation,Clothing & Laundry,1.80,ARCO LTD
Revenue,Neighbourhoods,Highways and Transport Services,"Airports, Harbours & Toll Facilities",5105666770,19.02.2021,Ferry Operation,Clothing & Laundry,10.92,ARCO LTD
Revenue,Neighbourhoods,Highways and Transport Services,"Airports, Harbours & Toll Facilities",5105666792,19.02.2021,Ferry Operation,Clothing & Laundry,54.80,ARCO LTD
Revenue,Fire & Rescue,Fire & Rescue Services,Fire fighting and Rescue Operations,5105664839,03.02.2021,Fire Technical Support,Operational Equipment,27.96,ARCO LTD
Revenue,Fire & Rescue,Fire & Rescue Services,Fire fighting and Rescue Operations,5105664839,03.02.2021,Fire Technical Support,Operational Equipment,13.98,ARCO LTD
Revenue,Fire & Rescue,Fire & Rescue Services,Fire fighting and Rescue Operations,5105664839,03.02.2021,Fire Technical Support,Operational Equipment,5.50,ARCO LTD
Revenue,Fire & Rescue,Fire & Rescue Services,Fire fighting and Rescue Operations,5105664839,03.02.2021,Fire Technical Support,Operational Equipment,4.60,ARCO LTD
Revenue,Fire & Rescue,Fire & Rescue Services,Fire fighting and Rescue Operations,5105665779,10.02.2021,Fire Technical Support,Operational Equipment,34.95,ARCO LTD
Revenue,Fire & Rescue,Fire & Rescue Services,Fire fighting and Rescue Operations,5105665779,10.02.2021,Fire Technical Support,Operational Equipment,34.95,ARCO LTD
Revenue,Fire & Rescue,Fire & Rescue Services,Fire fighting and Rescue Operations,5105665779,10.02.2021,Fire Technical Support,Operational Equipment,13.98,ARCO LTD
Revenue,Neighbourhoods,Cultural and Related Services,Open Spaces,5105667102,24.02.2021,Tree Felling / Replacement,Clothing & Laundry,63.49,ARCO LTD
Revenue,Regeneration,Planning services,Economic Development,5105666172,12.02.2021,Branstone Farm Project,Professional Services,"7,575.00",ARID DESIGN LTD
Revenue,Regeneration,Planning services,Economic Development,5105666174,12.02.2021,Branstone Farm Project,Professional Services,500.00,ARID DESIGN LTD
Revenue,Adult Services,Adult Social Care,Assistive Equipment & Technology,5105665284,12.02.2021,Community Equipment Store,Operational Equipment,74.10,ARJO UK LTD
Revenue,Adult Services,Adult Social Care,Assistive Equipment & Technology,5105665284,12.02.2021,Community Equipment Store,Operational Equipment,9.07,ARJO UK LTD
Revenue,Adult Services,Adult Social Care,Social Support - Support for Carer,5105666322,17.02.2021,Carers Residential,Charges from Independent Providers,"2,497.32",ASHMERE DERBYSHIRE LIMITED
Revenue,Regeneration,Planning services,Development Control,5105665912,12.02.2021,Development Control,Professional Services,"4,525.00",ASPINALL VERDI LTD
Revenue,Childrens Services,Children's & Education Services,Other Education and Community Budget,5105665235,03.02.2021,Commissioning ACL,Grants to External Bodies,"2,080.00",ASPIRE RYDE
Revenue,Childrens Services,Children's & Education Services,Special Schools & Alternative Provision,5105665486,05.02.2021,Island Learning Centre,Schools Examination Fees,906.30,ASSESSMENT & QUALIFICATION ALLIANCE
Revenue,Childrens Services,Children's & Education Services,Special Schools & Alternative Provision,5105666768,19.02.2021,Island Learning Centre,Schools Examination Fees,90.63,ASSESSMENT & QUALIFICATION ALLIANCE
Revenue,Resources,Central Services,Support Services,5105666763,19.02.2021,Telecommunications,Fixed Telephones,629.30,ASSET LINK CAPITAL (NO 7) LTD
Revenue,Resources,Central Services,Support Services,5105666126,24.02.2021,Telecommunications,Fixed Telephones,743.18,ASSET LINK CAPITAL (NO 7) LTD
Revenue,Resources,Children's & Education Services,Other Education and Community Budget,5105664595,05.02.2021,Specialist Cross-Council Training,Training,375.00,ASSOCIATION OF ELECTORAL ADMINISTRATORS
Revenue,Resources,Children's & Education Services,Other Education and Community Budget,5105665498,12.02.2021,Specialist Cross-Council Training,Training,70.00,ASTRID DAVIES CONSULTING LTD
Revenue,Resources,Children's & Education Services,Other Education and Community Budget,5105665502,12.02.2021,Specialist Cross-Council Training,Training,70.00,ASTRID DAVIES CONSULTING LTD
Revenue,Adult Services,Balance Sheet,Balance Sheet,5105666246,17.02.2021,REDACTED PERSONAL DATA,Order Settlement to Bal Sht GL,"2,497.32",AUTUMN HOUSE CARE LTD
Revenue,Adult Services,Balance Sheet,Balance Sheet,5105666246,17.02.2021,REDACTED PERSONAL DATA,Order Settlement to Bal Sht GL,908.88,AUTUMN HOUSE CARE LTD
Revenue,Adult Services,Adult Social Care,Support - Memory /Cognition-older people (65+),5105666246,17.02.2021,Memory & Cognition Residential 65+,Charges from Independent Providers,"2,124.08",AUTUMN HOUSE CARE LTD
Revenue,Adult Services,Adult Social Care,Support - Memory /Cognition-older people (65+),5105666246,17.02.2021,Memory & Cognition Residential 65+,Charges from Independent Providers,"2,497.32",AUTUMN HOUSE CARE LTD
Revenue,Adult Services,Adult Social Care,Support - Memory /Cognition-older people (65+),5105666246,17.02.2021,Memory & Cognition Residential 65+,Charges from Independent Providers,"2,497.32",AUTUMN HOUSE CARE LTD
Revenue,Adult Services,Adult Social Care,Support - Memory /Cognition-older people (65+),5105666246,17.02.2021,Memory & Cognition Residential 65+,Charges from Independent Providers,"2,497.32",AUTUMN HOUSE CARE LTD
Revenue,Adult Services,Adult Social Care,Support - Memory /Cognition-older people (65+),5105666246,17.02.2021,Memory & Cognition Residential 65+,Charges from Independent Providers,"2,497.32",AUTUMN HOUSE CARE LTD
Revenue,Adult Services,Adult Social Care,Support - Memory /Cognition-older people (65+),5105666246,17.02.2021,Memory & Cognition Residential 65+,Charges from Independent Providers,"2,497.32",AUTUMN HOUSE CARE LTD
Revenue,Adult Services,Adult Social Care,Support - Memory /Cognition-older people (65+),5105666246,17.02.2021,Memory & Cognition Residential 65+,Charges from Independent Providers,"2,497.32",AUTUMN HOUSE CARE LTD
Revenue,Adult Services,Adult Social Care,Physical Support - adults (18-64),5105666246,17.02.2021,Physical Support Residential 18-64,Charges from Independent Providers,"2,497.32",AUTUMN HOUSE CARE LTD
Revenue,Adult Services,Central Services,Emergency Planning,5105665862,12.02.2021,NHS C19 Residential,Charges from Independent Providers,891.90,AUTUMN HOUSE CARE LTD
Revenue,Adult Services,Balance Sheet,Balance Sheet,5105666246,17.02.2021,REDACTED PERSONAL DATA,Order Settlement to Bal Sht GL,"2,124.08",AUTUMN HOUSE CARE LTD
Revenue,Adult Services,Adult Social Care,Physical Support - older people (65+),5105665930,12.02.2021,Physical Support Residential 65+,Charges from Independent Providers,"2,051.37",AUTUMN HOUSE CARE LTD
Revenue,Adult Services,Adult Social Care,Physical Support - older people (65+),5105666246,17.02.2021,Physical Support Residential 65+,Charges from Independent Providers,"2,124.08",AUTUMN HOUSE CARE LTD
Revenue,Adult Services,Adult Social Care,Physical Support - older people (65+),5105666246,17.02.2021,Physical Support Residential 65+,Charges from Independent Providers,"2,124.08",AUTUMN HOUSE CARE LTD
Revenue,Adult Services,Adult Social Care,Physical Support - older people (65+),5105666246,17.02.2021,Physical Support Residential 65+,Charges from Independent Providers,"2,497.32",AUTUMN HOUSE CARE LTD
Revenue,Adult Services,Adult Social Care,Physical Support - older people (65+),5105666246,17.02.2021,Physical Support Residential 65+,Charges from Independent Providers,"2,497.32",AUTUMN HOUSE CARE LTD
Revenue,Adult Services,Adult Social Care,Physical Support - older people (65+),5105666246,17.02.2021,Physical Support Residential 65+,Charges from Independent Providers,"2,497.32",AUTUMN HOUSE CARE LTD
Revenue,Adult Services,Adult Social Care,Physical Support - older people (65+),5105666246,17.02.2021,Physical Support Residential 65+,Charges from Independent Providers,"2,497.32",AUTUMN HOUSE CARE LTD
Revenue,Adult Services,Adult Social Care,Physical Support - older people (65+),5105666246,17.02.2021,Physical Support Residential 65+,Charges from Independent Providers,"2,497.32",AUTUMN HOUSE CARE LTD
Revenue,Adult Services,Adult Social Care,Physical Support - older people (65+),5105666246,17.02.2021,Physical Support Residential 65+,Charges from Independent Providers,"2,497.32",AUTUMN HOUSE CARE LTD
Revenue,Adult Services,Adult Social Care,Physical Support - older people (65+),5105666246,17.02.2021,Physical Support Residential 65+,Charges from Independent Providers,"2,497.32",AUTUMN HOUSE CARE LTD
Revenue,Adult Services,Adult Social Care,Physical Support - older people (65+),5105666246,17.02.2021,Physical Support Residential 65+,Charges from Independent Providers,"2,497.32",AUTUMN HOUSE CARE LTD
Revenue,Adult Services,Adult Social Care,Physical Support - older people (65+),5105666246,17.02.2021,Physical Support Residential 65+,Charges from Independent Providers,"2,497.32",AUTUMN HOUSE CARE LTD
Revenue,Adult Services,Adult Social Care,Physical Support - older people (65+),5105666246,17.02.2021,Physical Support Residential 65+,Charges from Independent Providers,"2,497.32",AUTUMN HOUSE CARE LTD
Revenue,Adult Services,Adult Social Care,Physical Support - older people (65+),5105666246,17.02.2021,Physical Support Residential 65+,Charges from Independent Providers,"2,497.32",AUTUMN HOUSE CARE LTD
Revenue,Adult Services,Adult Social Care,Physical Support - older people (65+),5105666246,17.02.2021,Physical Support Residential 65+,Charges from Independent Providers,"2,497.32",AUTUMN HOUSE CARE LTD
Revenue,Adult Services,Adult Social Care,Support - Memory /Cognition-older people (65+),5105665930,12.02.2021,Memory & Cognition Nursing 65+,Charges from Independent Providers,"4,637.88",AUTUMN HOUSE CARE LTD
Revenue,Adult Services,Adult Social Care,Support - Memory /Cognition-older people (65+),5105666999,24.02.2021,Memory & Cognition Nursing 65+,Charges from Independent Providers,624.33,AUTUMN HOUSE CARE LTD
Revenue,Regeneration,Planning services,Economic Development,5105666934,24.02.2021,"30 High St, Newport",Rent of Buildings and Rooms,416.67,REDACTED PERSONAL DATA
Revenue,Neighbourhoods,Cultural and Related Services,Service Management and Support Services,5105665524,05.02.2021,Duke of Edingburgh Award,Operational Equipment,29.00,AWARD SCHEME LTD
Revenue,Childrens Services,Children's & Education Services,Children Looked After,5105667244,26.02.2021,In-house Fostering,Boarding Out Allowances,521.22,REDACTED PERSONAL DATA
Revenue,Childrens Services,Children's & Education Services,Children Looked After,5105666542,19.02.2021,In-house Fostering,Boarding Out Allowances,521.22,REDACTED PERSONAL DATA
Revenue,Childrens Services,Children's & Education Services,Children Looked After,5105665319,05.02.2021,In-house Fostering,Boarding Out Allowances,521.22,REDACTED PERSONAL DATA
Revenue,Childrens Services,Children's & Education Services,Children Looked After,5105665951,12.02.2021,In-house Fostering,Boarding Out Allowances,521.22,REDACTED PERSONAL DATA
Revenue,Adult Services,Housing Services,Homelessness,5105666815,19.02.2021,Private Rented Sector Leasing Scheme,Accommodation Costs - Leaseholder Payments,866.67,REDACTED PERSONAL DATA
Revenue,Adult Services,Adult Social Care,Commissioning & Service Delivery,5105666325,17.02.2021,CHC Nursing Care,Charges from Independent Providers,"10,332.00",BAGSHOT PARK CARE CENTRE
Revenue,Childrens Services,Children's & Education Services,Other Education and Community Budget,5105664850,03.02.2021,Children's Services Strategic Management,Stationery,35.14,SUPPLIES TEAM LTD
Revenue,Resources,Central Services,Central Services to the Public,5105665510,24.02.2021,Electoral Registration Office,Stationery,4.33,SUPPLIES TEAM LTD
Revenue,Resources,Central Services,Central Services to the Public,5105665510,24.02.2021,Electoral Registration Office,Stationery,3.09,SUPPLIES TEAM LTD
Revenue,Resources,Central Services,Central Services to the Public,5105665510,24.02.2021,Electoral Registration Office,Stationery,7.40,SUPPLIES TEAM LTD
Revenue,Neighbourhoods,Highways and Transport Services,"Airports, Harbours & Toll Facilities",5105667106,24.02.2021,Ferry Operation,Stationery,19.40,SUPPLIES TEAM LTD
Revenue,Neighbourhoods,Highways and Transport Services,"Airports, Harbours & Toll Facilities",5105667106,24.02.2021,Ferry Operation,Stationery,0.65,SUPPLIES TEAM LTD
Revenue,Neighbourhoods,Highways and Transport Services,"Airports, Harbours & Toll Facilities",5105667106,24.02.2021,Ferry Operation,Stationery,5.89,SUPPLIES TEAM LTD
Revenue,Adult Services,Adult Social Care,Central Codes (to be reallocated),5105665851,10.02.2021,Gouldings Resource Centre,Stationery,10.69,SUPPLIES TEAM LTD
Revenue,Adult Services,Adult Social Care,Central Codes (to be reallocated),5105665851,10.02.2021,Gouldings Resource Centre,Stationery,3.05,SUPPLIES TEAM LTD
Revenue,Adult Services,Adult Social Care,Central Codes (to be reallocated),5105665851,10.02.2021,Gouldings Resource Centre,Stationery,0.86,SUPPLIES TEAM LTD
Revenue,Adult Services,Adult Social Care,Central Codes (to be reallocated),5105665851,10.02.2021,Gouldings Resource Centre,Stationery,2.55,SUPPLIES TEAM LTD
Revenue,Adult Services,Adult Social Care,Central Codes (to be reallocated),5105665851,10.02.2021,Gouldings Resource Centre,Stationery,1.79,SUPPLIES TEAM LTD
Revenue,Adult Services,Adult Social Care,Central Codes (to be reallocated),5105665851,10.02.2021,Gouldings Resource Centre,Stationery,1.24,SUPPLIES TEAM LTD
Revenue,Adult Services,Adult Social Care,Central Codes (to be reallocated),5105665851,10.02.2021,Gouldings Resource Centre,Stationery,1.23,SUPPLIES TEAM LTD
Revenue,Adult Services,Adult Social Care,Central Codes (to be reallocated),5105665851,10.02.2021,Gouldings Resource Centre,Stationery,35.55,SUPPLIES TEAM LTD
Revenue,Adult Services,Adult Social Care,Central Codes (to be reallocated),5105665851,10.02.2021,Gouldings Resource Centre,Stationery,1.15,SUPPLIES TEAM LTD
Revenue,Adult Services,Adult Social Care,Central Codes (to be reallocated),5105665851,10.02.2021,Gouldings Resource Centre,Stationery,2.12,SUPPLIES TEAM LTD
Revenue,Adult Services,Adult Social Care,Central Codes (to be reallocated),5105665851,10.02.2021,Gouldings Resource Centre,Stationery,2.62,SUPPLIES TEAM LTD
Revenue,Adult Services,Adult Social Care,Central Codes (to be reallocated),5105665851,10.02.2021,Gouldings Resource Centre,Stationery,5.71,SUPPLIES TEAM LTD
Revenue,Adult Services,Adult Social Care,Central Codes (to be reallocated),5105665851,10.02.2021,Gouldings Resource Centre,Stationery,0.75,SUPPLIES TEAM LTD
Revenue,Resources,Housing Services,Housing Benefits Administration,5105665510,24.02.2021,Housing Benefit,Stationery,23.70,SUPPLIES TEAM LTD
Revenue,Resources,Central Services,Central Services to the Public,5105665510,24.02.2021,National Non Domestic Rates,Stationery,11.85,SUPPLIES TEAM LTD
Revenue,Childrens Services,Children's & Education Services,Other Education and Community Budget,5105665510,24.02.2021,Pupil Resources Business Support Team,Stationery,23.70,SUPPLIES TEAM LTD
Revenue,Childrens Services,Children's & Education Services,Other Education and Community Budget,5105667106,24.02.2021,Pupil Resources Business Support Team,Stationery,23.70,SUPPLIES TEAM LTD
Revenue,Neighbourhoods,Cultural and Related Services,Service Management and Support Services,5105664850,03.02.2021,Leisure Management & Admin,Stationery,11.85,SUPPLIES TEAM LTD
Revenue,Neighbourhoods,Cultural and Related Services,Service Management and Support Services,5105664850,03.02.2021,Leisure Management & Admin,Stationery,11.85,SUPPLIES TEAM LTD
Revenue,Neighbourhoods,Cultural and Related Services,Recreation and Sport,5105665818,24.02.2021,Medina Leisure Centre,Stationery,1.23,SUPPLIES TEAM LTD
Revenue,Neighbourhoods,Cultural and Related Services,Recreation and Sport,5105665818,24.02.2021,Medina Leisure Centre,Stationery,1.31,SUPPLIES TEAM LTD
Revenue,Neighbourhoods,Cultural and Related Services,Recreation and Sport,5105665818,24.02.2021,Medina Leisure Centre,Stationery,0.45,SUPPLIES TEAM LTD
Revenue,Neighbourhoods,Cultural and Related Services,Recreation and Sport,5105665818,24.02.2021,Medina Leisure Centre,Stationery,11.85,SUPPLIES TEAM LTD
Revenue,Neighbourhoods,Cultural and Related Services,Recreation and Sport,5105665818,24.02.2021,Medina Leisure Centre,Stationery,7.52,SUPPLIES TEAM LTD
Revenue,Neighbourhoods,Cultural and Related Services,Recreation and Sport,5105665818,24.02.2021,Medina Leisure Centre,Stationery,1.62,SUPPLIES TEAM LTD
Revenue,Neighbourhoods,Cultural and Related Services,Recreation and Sport,5105665818,24.02.2021,Medina Leisure Centre,Stationery,0.69,SUPPLIES TEAM LTD
Revenue,Neighbourhoods,Cultural and Related Services,Recreation and Sport,5105665818,24.02.2021,Medina Leisure Centre,Stationery,0.86,SUPPLIES TEAM LTD
Revenue,Neighbourhoods,Cultural and Related Services,Recreation and Sport,5105665818,24.02.2021,Medina Leisure Centre,Stationery,1.62,SUPPLIES TEAM LTD
Revenue,Adult Services,Adult Social Care,Assistive Equipment & Technology,5105665850,10.02.2021,Community Equipment Store,Stationery,4.33,SUPPLIES TEAM LTD
Revenue,Adult Services,Adult Social Care,Assistive Equipment & Technology,5105665850,10.02.2021,Community Equipment Store,Stationery,21.38,SUPPLIES TEAM LTD
Revenue,Adult Services,Adult Social Care,Assistive Equipment & Technology,5105665850,10.02.2021,Community Equipment Store,Stationery,47.40,SUPPLIES TEAM LTD
Revenue,Adult Services,Adult Social Care,Assistive Equipment & Technology,5105665850,10.02.2021,Community Equipment Store,Stationery,2.62,SUPPLIES TEAM LTD
Revenue,Adult Services,Adult Social Care,Assistive Equipment & Technology,5105665850,10.02.2021,Community Equipment Store,Stationery,1.79,SUPPLIES TEAM LTD
Revenue,Adult Services,Adult Social Care,Assistive Equipment & Technology,5105665850,10.02.2021,Community Equipment Store,Stationery,2.71,SUPPLIES TEAM LTD
Revenue,Adult Services,Adult Social Care,Assistive Equipment & Technology,5105665850,10.02.2021,Community Equipment Store,Stationery,4.24,SUPPLIES TEAM LTD
Revenue,Adult Services,Adult Social Care,Assistive Equipment & Technology,5105665850,10.02.2021,Community Equipment Store,Stationery,6.32,SUPPLIES TEAM LTD
Revenue,Adult Services,Adult Social Care,Assistive Equipment & Technology,5105665850,10.02.2021,Community Equipment Store,Stationery,1.05,SUPPLIES TEAM LTD
Revenue,Adult Services,Adult Social Care,Assistive Equipment & Technology,5105665850,10.02.2021,Community Equipment Store,Stationery,0.71,SUPPLIES TEAM LTD
Revenue,Adult Services,Adult Social Care,Assistive Equipment & Technology,5105665850,10.02.2021,Community Equipment Store,Stationery,2.00,SUPPLIES TEAM LTD
Revenue,Adult Services,Adult Social Care,Assistive Equipment & Technology,5105665850,10.02.2021,Community Equipment Store,Stationery,2.55,SUPPLIES TEAM LTD
Revenue,Adult Services,Adult Social Care,Assistive Equipment & Technology,5105665850,10.02.2021,Community Equipment Store,Stationery,3.00,SUPPLIES TEAM LTD
Revenue,Adult Services,Adult Social Care,Assistive Equipment & Technology,5105665850,10.02.2021,Community Equipment Store,Stationery,1.05,SUPPLIES TEAM LTD
Revenue,Adult Services,Adult Social Care,Assistive Equipment & Technology,5105665850,10.02.2021,Community Equipment Store,Stationery,0.81,SUPPLIES TEAM LTD
Revenue,Adult Services,Adult Social Care,Assistive Equipment & Technology,5105665850,10.02.2021,Community Equipment Store,Stationery,1.36,SUPPLIES TEAM LTD
Revenue,Adult Services,Adult Social Care,Assistive Equipment & Technology,5105665850,10.02.2021,Community Equipment Store,Stationery,4.08,SUPPLIES TEAM LTD
Revenue,Adult Services,Adult Social Care,Assistive Equipment & Technology,5105665850,10.02.2021,Community Equipment Store,Stationery,1.06,SUPPLIES TEAM LTD
Revenue,Adult Services,Adult Social Care,Assistive Equipment & Technology,5105665850,10.02.2021,Community Equipment Store,Stationery,1.57,SUPPLIES TEAM LTD
Revenue,Adult Services,Adult Social Care,Assistive Equipment & Technology,5105665850,10.02.2021,Community Equipment Store,Stationery,6.57,SUPPLIES TEAM LTD
Revenue,Adult Services,Adult Social Care,Assistive Equipment & Technology,5105667464,26.02.2021,Community Equipment Store,Stationery,0.39,SUPPLIES TEAM LTD
Revenue,Fire & Rescue,Fire & Rescue Services,Fire fighting and Rescue Operations,5105665823,12.02.2021,Business Support  - Fire,Stationery,1.23,SUPPLIES TEAM LTD
Revenue,Fire & Rescue,Fire & Rescue Services,Fire fighting and Rescue Operations,5105665823,12.02.2021,Business Support  - Fire,Stationery,0.24,SUPPLIES TEAM LTD
Revenue,Fire & Rescue,Fire & Rescue Services,Fire fighting and Rescue Operations,5105665823,12.02.2021,Business Support  - Fire,Stationery,47.40,SUPPLIES TEAM LTD
Revenue,Fire & Rescue,Fire & Rescue Services,Fire fighting and Rescue Operations,5105665823,12.02.2021,Business Support  - Fire,Stationery,3.80,SUPPLIES TEAM LTD
Revenue,Fire & Rescue,Fire & Rescue Services,Fire fighting and Rescue Operations,5105665823,12.02.2021,Business Support  - Fire,Stationery,0.81,SUPPLIES TEAM LTD
Revenue,Fire & Rescue,Fire & Rescue Services,Fire fighting and Rescue Operations,5105665823,12.02.2021,Business Support  - Fire,Stationery,3.50,SUPPLIES TEAM LTD
Revenue,Fire & Rescue,Fire & Rescue Services,Fire fighting and Rescue Operations,5105665823,12.02.2021,Business Support  - Fire,Stationery,0.75,SUPPLIES TEAM LTD
Revenue,Fire & Rescue,Fire & Rescue Services,Fire fighting and Rescue Operations,5105665823,12.02.2021,Business Support  - Fire,Stationery,1.84,SUPPLIES TEAM LTD
Revenue,Fire & Rescue,Fire & Rescue Services,Fire fighting and Rescue Operations,5105665823,12.02.2021,Business Support  - Fire,Stationery,0.69,SUPPLIES TEAM LTD
Revenue,Fire & Rescue,Fire & Rescue Services,Fire fighting and Rescue Operations,5105665823,12.02.2021,Business Support  - Fire,Stationery,21.70,SUPPLIES TEAM LTD
Revenue,Fire & Rescue,Fire & Rescue Services,Fire fighting and Rescue Operations,5105667209,26.02.2021,Business Support  - Fire,Stationery,108.84,SUPPLIES TEAM LTD
Revenue,Fire & Rescue,Fire & Rescue Services,Fire fighting and Rescue Operations,5105667209,26.02.2021,Business Support  - Fire,Stationery,78.40,SUPPLIES TEAM LTD
Revenue,Fire & Rescue,Fire & Rescue Services,Fire fighting and Rescue Operations,5105665823,12.02.2021,Business Support  - Fire,Stationery,1.86,SUPPLIES TEAM LTD
Revenue,Fire & Rescue,Fire & Rescue Services,Fire fighting and Rescue Operations,5105665823,12.02.2021,Business Support  - Fire,Stationery,1.84,SUPPLIES TEAM LTD
Revenue,Fire & Rescue,Fire & Rescue Services,Fire fighting and Rescue Operations,5105665823,12.02.2021,Business Support  - Fire,Stationery,1.16,SUPPLIES TEAM LTD
Revenue,Fire & Rescue,Fire & Rescue Services,Fire fighting and Rescue Operations,5105665823,12.02.2021,Business Support  - Fire,Stationery,2.55,SUPPLIES TEAM LTD
Revenue,Fire & Rescue,Fire & Rescue Services,Fire fighting and Rescue Operations,5105665823,12.02.2021,Business Support  - Fire,Stationery,6.18,SUPPLIES TEAM LTD
Revenue,Fire & Rescue,Fire & Rescue Services,Fire fighting and Rescue Operations,5105665823,12.02.2021,Business Support  - Fire,Stationery,1.06,SUPPLIES TEAM LTD
Revenue,Fire & Rescue,Fire & Rescue Services,Fire fighting and Rescue Operations,5105665823,12.02.2021,Business Support  - Fire,Stationery,1.57,SUPPLIES TEAM LTD
Revenue,Fire & Rescue,Fire & Rescue Services,Fire fighting and Rescue Operations,5105665823,12.02.2021,Business Support  - Fire,Stationery,1.80,SUPPLIES TEAM LTD
Revenue,Fire & Rescue,Fire & Rescue Services,Fire fighting and Rescue Operations,5105665823,12.02.2021,Business Support  - Fire,Stationery,1.84,SUPPLIES TEAM LTD
Revenue,Fire & Rescue,Fire & Rescue Services,Fire fighting and Rescue Operations,5105665823,12.02.2021,Business Support  - Fire,Stationery,1.77,SUPPLIES TEAM LTD
Revenue,Fire & Rescue,Fire & Rescue Services,Fire fighting and Rescue Operations,5105665823,12.02.2021,Business Support  - Fire,Stationery,0.72,SUPPLIES TEAM LTD
Revenue,Fire & Rescue,Fire & Rescue Services,Fire fighting and Rescue Operations,5105665823,12.02.2021,Business Support  - Fire,Stationery,5.71,SUPPLIES TEAM LTD
Revenue,Childrens Services,Children's & Education Services,Safeguarding Children/Young Peoples Svs,5105666785,19.02.2021,Children's office costs,Stationery,24.32,SUPPLIES TEAM LTD
Revenue,Childrens Services,Children's & Education Services,Children Looked After,5105665508,10.02.2021,Beaulieu House,Stationery,9.78,SUPPLIES TEAM LTD
Revenue,Adult Services,Adult Social Care,Central Codes (to be reallocated),5105665828,10.02.2021,Community Reablement,Stationery,47.40,SUPPLIES TEAM LTD
Revenue,Adult Services,Adult Social Care,Central Codes (to be reallocated),5105665828,10.02.2021,Community Reablement,Stationery,11.70,SUPPLIES TEAM LTD
Revenue,Adult Services,Adult Social Care,Central Codes (to be reallocated),5105665828,10.02.2021,Community Reablement,Stationery,5.71,SUPPLIES TEAM LTD
Revenue,Adult Services,Adult Social Care,Central Codes (to be reallocated),5105665828,10.02.2021,Community Reablement,Stationery,0.81,SUPPLIES TEAM LTD
Revenue,Adult Services,Adult Social Care,Assistive Equipment & Technology,5105667106,24.02.2021,Wightcare,Stationery,47.40,SUPPLIES TEAM LTD
Revenue,Resources,Central Services,Support Services,5105667106,24.02.2021,Legal Services Section,Stationery,23.70,SUPPLIES TEAM LTD
Revenue,Adult Services,Adult Social Care,Commissioning & Service Delivery,5105665816,10.02.2021,Group Manager Leaning Disability Homes,Stationery,1.31,SUPPLIES TEAM LTD
Revenue,Adult Services,Adult Social Care,Commissioning & Service Delivery,5105665816,10.02.2021,Group Manager Leaning Disability Homes,Stationery,11.85,SUPPLIES TEAM LTD
Revenue,Adult Services,Adult Social Care,Commissioning & Service Delivery,5105665816,10.02.2021,Group Manager Leaning Disability Homes,Stationery,0.68,SUPPLIES TEAM LTD
Revenue,Adult Services,Adult Social Care,Commissioning & Service Delivery,5105665816,10.02.2021,Group Manager Leaning Disability Homes,Stationery,2.05,SUPPLIES TEAM LTD
Revenue,Adult Services,Adult Social Care,Commissioning & Service Delivery,5105664980,03.02.2021,Group Manager Leaning Disability Homes,Stationery,-1.31,SUPPLIES TEAM LTD
Revenue,Adult Services,Adult Social Care,Commissioning & Service Delivery,5105664554,03.02.2021,Group Manager Leaning Disability Homes,Stationery,33.24,SUPPLIES TEAM LTD
Revenue,Adult Services,Adult Social Care,Commissioning & Service Delivery,5105664555,03.02.2021,Group Manager Leaning Disability Homes,Stationery,-2.77,SUPPLIES TEAM LTD
Revenue,Adult Services,Adult Social Care,Commissioning & Service Delivery,5105664621,10.02.2021,Group Manager Leaning Disability Homes,Stationery,-1.31,SUPPLIES TEAM LTD
Revenue,Adult Services,Adult Social Care,Commissioning & Service Delivery,5105663986,03.02.2021,Group Manager Leaning Disability Homes,Stationery,74.16,SUPPLIES TEAM LTD
Revenue,Adult Services,Adult Social Care,Commissioning & Service Delivery,5105663986,03.02.2021,Group Manager Leaning Disability Homes,Stationery,8.20,SUPPLIES TEAM LTD
Revenue,Adult Services,Adult Social Care,Commissioning & Service Delivery,5105663986,03.02.2021,Group Manager Leaning Disability Homes,Stationery,23.70,SUPPLIES TEAM LTD
Revenue,Adult Services,Adult Social Care,Commissioning & Service Delivery,5105663986,03.02.2021,Group Manager Leaning Disability Homes,Stationery,23.70,SUPPLIES TEAM LTD
Revenue,Adult Services,Adult Social Care,Commissioning & Service Delivery,5105663986,03.02.2021,Group Manager Leaning Disability Homes,Stationery,8.64,SUPPLIES TEAM LTD
Revenue,Adult Services,Adult Social Care,Commissioning & Service Delivery,5105663986,03.02.2021,Group Manager Leaning Disability Homes,Stationery,23.70,SUPPLIES TEAM LTD
Revenue,Adult Services,Adult Social Care,Commissioning & Service Delivery,5105663986,03.02.2021,Group Manager Leaning Disability Homes,Stationery,3.05,SUPPLIES TEAM LTD
Revenue,Adult Services,Adult Social Care,Commissioning & Service Delivery,5105663986,03.02.2021,Group Manager Leaning Disability Homes,Stationery,0.81,SUPPLIES TEAM LTD
Revenue,Adult Services,Adult Social Care,Commissioning & Service Delivery,5105663986,03.02.2021,Group Manager Leaning Disability Homes,Stationery,5.78,SUPPLIES TEAM LTD
Revenue,Adult Services,Adult Social Care,Commissioning & Service Delivery,5105663986,03.02.2021,Group Manager Leaning Disability Homes,Stationery,0.37,SUPPLIES TEAM LTD
Revenue,Adult Services,Adult Social Care,Commissioning & Service Delivery,5105663986,03.02.2021,Group Manager Leaning Disability Homes,Stationery,1.31,SUPPLIES TEAM LTD
Revenue,Adult Services,Adult Social Care,Commissioning & Service Delivery,5105665829,19.02.2021,Group Manager Leaning Disability Homes,Stationery,1.31,SUPPLIES TEAM LTD
Revenue,Adult Services,Adult Social Care,Commissioning & Service Delivery,5105665829,19.02.2021,Group Manager Leaning Disability Homes,Stationery,1.79,SUPPLIES TEAM LTD
Revenue,Adult Services,Adult Social Care,Commissioning & Service Delivery,5105665829,19.02.2021,Group Manager Leaning Disability Homes,Stationery,2.71,SUPPLIES TEAM LTD
Revenue,Adult Services,Adult Social Care,Commissioning & Service Delivery,5105665829,19.02.2021,Group Manager Leaning Disability Homes,Stationery,5.71,SUPPLIES TEAM LTD
Revenue,Adult Services,Adult Social Care,Commissioning & Service Delivery,5105665829,19.02.2021,Group Manager Leaning Disability Homes,Stationery,1.62,SUPPLIES TEAM LTD
Revenue,Adult Services,Adult Social Care,Commissioning & Service Delivery,5105665829,19.02.2021,Group Manager Leaning Disability Homes,Stationery,2.89,SUPPLIES TEAM LTD
Revenue,Adult Services,Adult Social Care,Commissioning & Service Delivery,5105665829,19.02.2021,Group Manager Leaning Disability Homes,Stationery,17.04,SUPPLIES TEAM LTD
Revenue,Adult Services,Adult Social Care,Commissioning & Service Delivery,5105665878,10.02.2021,Group Manager Leaning Disability Homes,Stationery,1.31,SUPPLIES TEAM LTD
Revenue,Adult Services,Adult Social Care,Commissioning & Service Delivery,5105665903,12.02.2021,Group Manager Leaning Disability Homes,Stationery,-61.80,SUPPLIES TEAM LTD
Revenue,Adult Services,Adult Social Care,Assistive Equipment & Technology,5105667106,24.02.2021,Wightcare,Stationery,2.12,SUPPLIES TEAM LTD
Revenue,Adult Services,Adult Social Care,Assistive Equipment & Technology,5105667106,24.02.2021,Wightcare,Stationery,2.62,SUPPLIES TEAM LTD
Revenue,Adult Services,Adult Social Care,Assistive Equipment & Technology,5105667106,24.02.2021,Wightcare,Stationery,29.25,SUPPLIES TEAM LTD
Revenue,Neighbourhoods,Environmental & Regulatory Services,Service Management and Support Services,5105664546,03.02.2021,Regulatory Management & Admin Support,Stationery,5.71,SUPPLIES TEAM LTD
Revenue,Neighbourhoods,Environmental & Regulatory Services,Service Management and Support Services,5105664546,03.02.2021,Regulatory Management & Admin Support,Stationery,11.85,SUPPLIES TEAM LTD
Revenue,Childrens Services,Children's & Education Services,Special Schools & Alternative Provision,5105666880,19.02.2021,Island Learning Centre,Stationery,4.77,SUPPLIES TEAM LTD
Revenue,Childrens Services,Children's & Education Services,Management & Support Services,5105664850,03.02.2021,Specialist Teacher Advisors,Stationery,61.21,SUPPLIES TEAM LTD
Revenue,Childrens Services,Children's & Education Services,Management & Support Services,5105664850,03.02.2021,Specialist Teacher Advisors,Stationery,52.32,SUPPLIES TEAM LTD
Revenue,Regeneration,Central Services,Support Services,5105664546,03.02.2021,"County Hall,Newport",Stationery,69.50,SUPPLIES TEAM LTD
Revenue,Regeneration,Central Services,Support Services,5105664850,03.02.2021,"County Hall,Newport",Stationery,16.50,SUPPLIES TEAM LTD
Revenue,Regeneration,Central Services,Support Services,5105664850,03.02.2021,"County Hall,Newport",Stationery,2.72,SUPPLIES TEAM LTD
Revenue,Regeneration,Central Services,Support Services,5105664850,03.02.2021,"County Hall,Newport",Stationery,2.46,SUPPLIES TEAM LTD
Revenue,Regeneration,Central Services,Support Services,5105665001,03.02.2021,"County Hall,Newport",Stationery,60.45,SUPPLIES TEAM LTD
Revenue,Regeneration,Central Services,Support Services,5105665510,24.02.2021,"County Hall,Newport",Stationery,4.24,SUPPLIES TEAM LTD
Revenue,Regeneration,Central Services,Support Services,5105665510,24.02.2021,"County Hall,Newport",Stationery,4.24,SUPPLIES TEAM LTD
Revenue,Regeneration,Central Services,Support Services,5105665510,24.02.2021,"County Hall,Newport",Stationery,17.31,SUPPLIES TEAM LTD
Revenue,Regeneration,Central Services,Support Services,5105665510,24.02.2021,"County Hall,Newport",Stationery,4.33,SUPPLIES TEAM LTD
Revenue,Adult Services,Adult Social Care,Commissioning & Service Delivery,5105665221,03.02.2021,ASC County Hall office costs,Stationery,-10.26,SUPPLIES TEAM LTD
Revenue,Adult Services,Adult Social Care,Commissioning & Service Delivery,5105665221,03.02.2021,ASC County Hall office costs,Stationery,-14.68,SUPPLIES TEAM LTD
Revenue,Adult Services,Adult Social Care,Commissioning & Service Delivery,5105665243,03.02.2021,ASC County Hall office costs,Stationery,-14.32,SUPPLIES TEAM LTD
Revenue,Adult Services,Adult Social Care,Commissioning & Service Delivery,5105665243,03.02.2021,ASC County Hall office costs,Stationery,-11.08,SUPPLIES TEAM LTD
Revenue,Adult Services,Adult Social Care,Commissioning & Service Delivery,5105664634,03.02.2021,ASC County Hall office costs,Stationery,-2.71,SUPPLIES TEAM LTD
Revenue,Adult Services,Adult Social Care,Commissioning & Service Delivery,5105664546,03.02.2021,ASC County Hall office costs,Stationery,1.23,SUPPLIES TEAM LTD
Revenue,Adult Services,Adult Social Care,Commissioning & Service Delivery,5105664546,03.02.2021,ASC County Hall office costs,Stationery,2.48,SUPPLIES TEAM LTD
Revenue,Adult Services,Adult Social Care,Commissioning & Service Delivery,5105664546,03.02.2021,ASC County Hall office costs,Stationery,2.71,SUPPLIES TEAM LTD
Revenue,Adult Services,Adult Social Care,Commissioning & Service Delivery,5105664546,03.02.2021,ASC County Hall office costs,Stationery,1.62,SUPPLIES TEAM LTD
Revenue,Adult Services,Adult Social Care,Commissioning & Service Delivery,5105664850,03.02.2021,ASC County Hall office costs,Stationery,0.24,SUPPLIES TEAM LTD
Revenue,Adult Services,Adult Social Care,Commissioning & Service Delivery,5105664850,03.02.2021,ASC County Hall office costs,Stationery,2.48,SUPPLIES TEAM LTD
Revenue,Adult Services,Adult Social Care,Commissioning & Service Delivery,5105664850,03.02.2021,ASC County Hall office costs,Stationery,2.22,SUPPLIES TEAM LTD
Revenue,Adult Services,Adult Social Care,Commissioning & Service Delivery,5105664850,03.02.2021,ASC County Hall office costs,Stationery,5.25,SUPPLIES TEAM LTD
Revenue,Adult Services,Adult Social Care,Social Care Activities,5105664850,03.02.2021,Hospital Team,Stationery,0.24,SUPPLIES TEAM LTD
Revenue,Adult Services,Adult Social Care,Social Care Activities,5105667106,24.02.2021,Hospital Team,Stationery,11.85,SUPPLIES TEAM LTD
Revenue,Childrens Services,Children's & Education Services,Special Schools & Alternative Provision,5105665674,10.02.2021,Island Learning Centre,Stationery,118.50,SUPPLIES TEAM LTD
Revenue,Childrens Services,Children's & Education Services,Special Schools & Alternative Provision,5105665503,05.02.2021,Island Learning Centre,Stationery,69.46,SUPPLIES TEAM LTD
Revenue,Childrens Services,Children's & Education Services,Special Schools & Alternative Provision,5105665505,12.02.2021,Island Learning Centre,Stationery,5.10,SUPPLIES TEAM LTD
Revenue,Childrens Services,Children's & Education Services,Special Schools & Alternative Provision,5105665505,12.02.2021,Island Learning Centre,Stationery,1.06,SUPPLIES TEAM LTD
Revenue,Childrens Services,Children's & Education Services,Special Schools & Alternative Provision,5105665505,12.02.2021,Island Learning Centre,Stationery,1.57,SUPPLIES TEAM LTD
Revenue,Childrens Services,Children's & Education Services,Special Schools & Alternative Provision,5105665505,12.02.2021,Island Learning Centre,Stationery,2.57,SUPPLIES TEAM LTD
Revenue,Childrens Services,Children's & Education Services,Special Schools & Alternative Provision,5105665505,12.02.2021,Island Learning Centre,Stationery,6.57,SUPPLIES TEAM LTD
Revenue,Childrens Services,Children's & Education Services,Special Schools & Alternative Provision,5105665505,12.02.2021,Island Learning Centre,Stationery,57.10,SUPPLIES TEAM LTD
Revenue,Childrens Services,Children's & Education Services,Special Schools & Alternative Provision,5105665505,12.02.2021,Island Learning Centre,Stationery,3.90,SUPPLIES TEAM LTD
Revenue,Childrens Services,Children's & Education Services,Special Schools & Alternative Provision,5105665505,12.02.2021,Island Learning Centre,Stationery,30.08,SUPPLIES TEAM LTD
Revenue,Childrens Services,Children's & Education Services,Special Schools & Alternative Provision,5105665505,12.02.2021,Island Learning Centre,Stationery,8.10,SUPPLIES TEAM LTD
Revenue,Childrens Services,Children's & Education Services,Special Schools & Alternative Provision,5105665505,12.02.2021,Island Learning Centre,Stationery,43.22,SUPPLIES TEAM LTD
Revenue,Childrens Services,Children's & Education Services,Special Schools & Alternative Provision,5105665505,12.02.2021,Island Learning Centre,Stationery,78.49,SUPPLIES TEAM LTD
Revenue,Childrens Services,Children's & Education Services,Special Schools & Alternative Provision,5105665505,12.02.2021,Island Learning Centre,Stationery,6.90,SUPPLIES TEAM LTD
Revenue,Resources,Central Services,Support Services,5105666785,19.02.2021,Revenues & Benefits Operational Support,Stationery,6.08,SUPPLIES TEAM LTD
Revenue,Resources,Highways and Transport Services,Off Street Parking,5105665510,24.02.2021,Parking Services,Stationery,23.70,SUPPLIES TEAM LTD
Revenue,Resources,Central Services,Support Services,5105665510,24.02.2021,Customer Accounts Shared Service Centre,Stationery,35.55,SUPPLIES TEAM LTD
Revenue,Adult Services,Adult Social Care,Commissioning & Service Delivery,5105665510,24.02.2021,Director of Adult Social Services,Stationery,11.85,SUPPLIES TEAM LTD
Revenue,Adult Services,Adult Social Care,Central Codes (to be reallocated),5105667107,24.02.2021,Adelaide Resource Centre,Stationery,4.07,SUPPLIES TEAM LTD
Revenue,Adult Services,Adult Social Care,Commissioning & Service Delivery,5105667106,24.02.2021,Adult Social Care Business Management,Stationery,5.71,SUPPLIES TEAM LTD
Revenue,Adult Services,Adult Social Care,Commissioning & Service Delivery,5105667106,24.02.2021,Adult Social Care Business Management,Stationery,1.62,SUPPLIES TEAM LTD
Revenue,Adult Services,Adult Social Care,Commissioning & Service Delivery,5105667106,24.02.2021,Adult Social Care Business Management,Stationery,14.22,SUPPLIES TEAM LTD
Revenue,Adult Services,Adult Social Care,Commissioning & Service Delivery,5105667106,24.02.2021,Adult Social Care Business Management,Stationery,1.57,SUPPLIES TEAM LTD
Revenue,Adult Services,Adult Social Care,Commissioning & Service Delivery,5105667106,24.02.2021,Adult Social Care Business Management,Stationery,3.72,SUPPLIES TEAM LTD
Revenue,Adult Services,Adult Social Care,Central Codes (to be reallocated),5105665831,10.02.2021,Adelaide Resource Centre,Stationery,3.93,SUPPLIES TEAM LTD
Revenue,Adult Services,Adult Social Care,Central Codes (to be reallocated),5105665831,10.02.2021,Adelaide Resource Centre,Stationery,4.05,SUPPLIES TEAM LTD
Revenue,Adult Services,Adult Social Care,Central Codes (to be reallocated),5105665831,10.02.2021,Adelaide Resource Centre,Stationery,2.86,SUPPLIES TEAM LTD
Revenue,Adult Services,Adult Social Care,Central Codes (to be reallocated),5105665831,10.02.2021,Adelaide Resource Centre,Stationery,3.86,SUPPLIES TEAM LTD
Revenue,Adult Services,Adult Social Care,Central Codes (to be reallocated),5105665831,10.02.2021,Adelaide Resource Centre,Stationery,6.57,SUPPLIES TEAM LTD
Revenue,Adult Services,Adult Social Care,Central Codes (to be reallocated),5105665831,10.02.2021,Adelaide Resource Centre,Stationery,0.22,SUPPLIES TEAM LTD
Revenue,Adult Services,Adult Social Care,Central Codes (to be reallocated),5105665831,10.02.2021,Adelaide Resource Centre,Stationery,47.40,SUPPLIES TEAM LTD
Revenue,Adult Services,Adult Social Care,Central Codes (to be reallocated),5105665831,10.02.2021,Adelaide Resource Centre,Stationery,3.65,SUPPLIES TEAM LTD
Revenue,Adult Services,Adult Social Care,Central Codes (to be reallocated),5105665831,10.02.2021,Adelaide Resource Centre,Stationery,0.71,SUPPLIES TEAM LTD
Revenue,Adult Services,Adult Social Care,Central Codes (to be reallocated),5105665831,10.02.2021,Adelaide Resource Centre,Stationery,0.25,SUPPLIES TEAM LTD
Revenue,Adult Services,Adult Social Care,Central Codes (to be reallocated),5105665831,10.02.2021,Adelaide Resource Centre,Stationery,3.68,SUPPLIES TEAM LTD
Revenue,Adult Services,Adult Social Care,Central Codes (to be reallocated),5105665831,10.02.2021,Adelaide Resource Centre,Stationery,0.90,SUPPLIES TEAM LTD
Revenue,Adult Services,Adult Social Care,Central Codes (to be reallocated),5105664878,03.02.2021,Adelaide Resource Centre,Stationery,5.89,SUPPLIES TEAM LTD
Revenue,Adult Services,Adult Social Care,Commissioning & Service Delivery,5105665243,03.02.2021,CHC Staff Costs,Stationery,-7.34,SUPPLIES TEAM LTD
Revenue,Adult Services,Adult Social Care,Commissioning & Service Delivery,5105665221,03.02.2021,CHC Staff Costs,Stationery,-7.40,SUPPLIES TEAM LTD
Revenue,Neighbourhoods,Environmental & Regulatory Services,"Cemetery, Cremation & Mortuary Services",5105665821,10.02.2021,Crematorium,Stationery,21.98,SUPPLIES TEAM LTD
Revenue,Neighbourhoods,Environmental & Regulatory Services,"Cemetery, Cremation & Mortuary Services",5105665821,10.02.2021,Crematorium,Stationery,35.55,SUPPLIES TEAM LTD
Revenue,Neighbourhoods,Environmental & Regulatory Services,"Cemetery, Cremation & Mortuary Services",5105665821,10.02.2021,Crematorium,Stationery,4.24,SUPPLIES TEAM LTD
Revenue,Neighbourhoods,Environmental & Regulatory Services,"Cemetery, Cremation & Mortuary Services",5105665821,10.02.2021,Crematorium,Stationery,5.77,SUPPLIES TEAM LTD
Revenue,Neighbourhoods,Environmental & Regulatory Services,"Cemetery, Cremation & Mortuary Services",5105665821,10.02.2021,Crematorium,Stationery,2.55,SUPPLIES TEAM LTD
Revenue,Neighbourhoods,Environmental & Regulatory Services,"Cemetery, Cremation & Mortuary Services",5105665821,10.02.2021,Crematorium,Stationery,3.14,SUPPLIES TEAM LTD
Revenue,Neighbourhoods,Environmental & Regulatory Services,"Cemetery, Cremation & Mortuary Services",5105665821,10.02.2021,Crematorium,Stationery,5.71,SUPPLIES TEAM LTD
Revenue,Neighbourhoods,Environmental & Regulatory Services,"Cemetery, Cremation & Mortuary Services",5105665821,10.02.2021,Crematorium,Stationery,0.69,SUPPLIES TEAM LTD
Revenue,Neighbourhoods,Environmental & Regulatory Services,"Cemetery, Cremation & Mortuary Services",5105665821,10.02.2021,Crematorium,Stationery,16.68,SUPPLIES TEAM LTD
Revenue,Neighbourhoods,Environmental & Regulatory Services,"Cemetery, Cremation & Mortuary Services",5105665821,10.02.2021,Crematorium,Stationery,4.52,SUPPLIES TEAM LTD
Revenue,Neighbourhoods,Cultural and Related Services,Recreation and Sport,5105665899,12.02.2021,The Heights,Stationery,1.31,SUPPLIES TEAM LTD
Revenue,Neighbourhoods,Cultural and Related Services,Recreation and Sport,5105665899,12.02.2021,The Heights,Stationery,0.45,SUPPLIES TEAM LTD
Revenue,Neighbourhoods,Cultural and Related Services,Recreation and Sport,5105665899,12.02.2021,The Heights,Stationery,11.85,SUPPLIES TEAM LTD
Revenue,Neighbourhoods,Cultural and Related Services,Recreation and Sport,5105665899,12.02.2021,The Heights,Stationery,7.52,SUPPLIES TEAM LTD
Revenue,Neighbourhoods,Cultural and Related Services,Recreation and Sport,5105665899,12.02.2021,The Heights,Stationery,1.62,SUPPLIES TEAM LTD
Revenue,Neighbourhoods,Cultural and Related Services,Recreation and Sport,5105665899,12.02.2021,The Heights,Stationery,0.69,SUPPLIES TEAM LTD
Revenue,Neighbourhoods,Cultural and Related Services,Recreation and Sport,5105665899,12.02.2021,The Heights,Stationery,5.71,SUPPLIES TEAM LTD
Revenue,Neighbourhoods,Cultural and Related Services,Recreation and Sport,5105665899,12.02.2021,The Heights,Stationery,0.86,SUPPLIES TEAM LTD
Revenue,Neighbourhoods,Cultural and Related Services,Recreation and Sport,5105665899,12.02.2021,The Heights,Stationery,1.05,SUPPLIES TEAM LTD
Revenue,Neighbourhoods,Cultural and Related Services,Recreation and Sport,5105665899,12.02.2021,The Heights,Stationery,1.62,SUPPLIES TEAM LTD
Revenue,Neighbourhoods,Cultural and Related Services,Recreation and Sport,5105665899,12.02.2021,The Heights,Stationery,5.85,SUPPLIES TEAM LTD
Revenue,Neighbourhoods,Cultural and Related Services,Recreation and Sport,5105665899,12.02.2021,The Heights,Stationery,1.24,SUPPLIES TEAM LTD
Revenue,Neighbourhoods,Cultural and Related Services,Recreation and Sport,5105665899,12.02.2021,The Heights,Stationery,1.23,SUPPLIES TEAM LTD
Revenue,Childrens Services,Children's & Education Services,Management & Support Services,5105664850,03.02.2021,Specialist Service Business Admin,Stationery,35.14,SUPPLIES TEAM LTD
Revenue,Resources,Central Services,Central Services to the Public,5105665510,24.02.2021,Council Tax,Stationery,23.70,SUPPLIES TEAM LTD
Revenue,Resources,Central Services,Central Services to the Public,5105667185,24.02.2021,Council Tax,Stationery,-23.70,SUPPLIES TEAM LTD
Revenue,Adult Services,Adult Social Care,Physical Support - older people (65+),5105666330,17.02.2021,Physical Support Residential 65+,Charges from Independent Providers,"2,028.32",BARCHESTER HELLENS LTD
Revenue,Adult Services,Adult Social Care,Social Support - Support for Carer,5105666923,26.02.2021,Westminster House,Operational Equipment,32.99,LAKE CLEANING & CATERING SUPPLIES
Revenue,Adult Services,Adult Social Care,Learning Disab Supp (to be reallocated),5105665112,12.02.2021,Plean Dene,Operational Equipment,27.66,LAKE CLEANING & CATERING SUPPLIES
Revenue,Childrens Services,Children's & Education Services,Children Looked After,5105667479,26.02.2021,Beaulieu House,General Materials,315.33,LAKE CLEANING & CATERING SUPPLIES
Revenue,Childrens Services,Children's & Education Services,Children Looked After,5105665680,10.02.2021,Beaulieu House,General Materials,52.86,LAKE CLEANING & CATERING SUPPLIES
Revenue,Childrens Services,Children's & Education Services,Children Looked After,5105664896,03.02.2021,Beaulieu House,General Materials,60.76,LAKE CLEANING & CATERING SUPPLIES
Revenue,Childrens Services,Children's & Education Services,Children Looked After,5105665128,03.02.2021,Beaulieu House,General Materials,39.52,LAKE CLEANING & CATERING SUPPLIES
Revenue,Childrens Services,Children's & Education Services,Children Looked After,5105666443,17.02.2021,Adopt South Adoption Support Fund,Charges from Independent Providers,192.00,BEACON HOUSE PSYCHOLOGICAL SERVICES
Revenue,Childrens Services,Children's & Education Services,Children Looked After,5105665565,05.02.2021,Adopt South Adoption Support Fund,Charges from Independent Providers,672.00,BEACON HOUSE PSYCHOLOGICAL SERVICES
Revenue,Public Health,Public Health,Public Mental Health,5105665670,08.02.2021,Public Mental Health NP,Advertising & Publicity,600.00,BEACON MEDIA LIMITED
Revenue,Public Health,Public Health,Public Mental Health,5105665671,08.02.2021,Public Mental Health NP,Advertising & Publicity,-600.00,BEACON MEDIA LIMITED
Revenue,Childrens Services,Children's & Education Services,Children Looked After,5105665250,03.02.2021,Purchased Residential,Charges from Independent Providers,"3,850.00",BENECARE FOSTERING LTD
Revenue,Childrens Services,Children's & Education Services,Children Looked After,5105665251,03.02.2021,Purchased Residential,Charges from Independent Providers,"3,850.00",BENECARE FOSTERING LTD
Revenue,Childrens Services,Children's & Education Services,Children Looked After,5105665252,03.02.2021,Purchased Residential,Charges from Independent Providers,"3,850.00",BENECARE FOSTERING LTD
Revenue,Childrens Services,Children's & Education Services,Children Looked After,5105665253,03.02.2021,Purchased Residential,Charges from Independent Providers,"3,850.00",BENECARE FOSTERING LTD
Revenue,Childrens Services,Children's & Education Services,Children Looked After,5105666927,24.02.2021,Purchased Residential,Charges from Independent Providers,"3,850.00",BENECARE FOSTERING LTD
Revenue,Childrens Services,Children's & Education Services,Children Looked After,5105666928,24.02.2021,Purchased Residential,Charges from Independent Providers,"3,850.00",BENECARE FOSTERING LTD
Revenue,Adult Services,Housing Services,Homelessness,5105665130,03.02.2021,B&B Properties,Accommodation Costs - Bed & Breakfast,"3,700.00",BERTRAM LODGE
Revenue,Adult Services,Housing Services,Homelessness,5105665133,03.02.2021,B&B Properties,Accommodation Costs - Bed & Breakfast,"4,300.00",BERTRAM LODGE
Revenue,Adult Services,Adult Social Care,Central Codes (to be reallocated),5105666355,17.02.2021,Gouldings Resource Centre,Operational Equipment,371.55,BETA PAK LTD
Revenue,Adult Services,Adult Social Care,Central Codes (to be reallocated),5105665833,10.02.2021,Gouldings Resource Centre,Operational Equipment,38.25,BETA PAK LTD
Revenue,Adult Services,Adult Social Care,Central Codes (to be reallocated),5105667013,24.02.2021,Gouldings Resource Centre,Operational Equipment,27.16,BETA PAK LTD
Revenue,Adult Services,Adult Social Care,Central Codes (to be reallocated),5105666775,19.02.2021,Gouldings Resource Centre,Operational Equipment,5.60,BETA PAK LTD
Revenue,Adult Services,Adult Social Care,Central Codes (to be reallocated),5105667093,24.02.2021,Gouldings Resource Centre,Operational Equipment,12.76,BETA PAK LTD
Revenue,Adult Services,Adult Social Care,Central Codes (to be reallocated),5105663332,24.02.2021,Gouldings Resource Centre,Consumable Cleaning Materials,99.88,BETA PAK LTD
Revenue,Adult Services,Adult Social Care,Central Codes (to be reallocated),5105665904,12.02.2021,Gouldings Resource Centre,Professional Services,48.96,BETA PAK LTD
Revenue,Adult Services,Adult Social Care,Central Codes (to be reallocated),5105665676,10.02.2021,Gouldings Resource Centre,Operational Equipment,29.90,BETA PAK LTD
Revenue,Adult Services,Adult Social Care,Social Support - Support for Carer,5105665547,10.02.2021,Westminster House,Operational Equipment,29.72,BETA PAK LTD
Revenue,Adult Services,Adult Social Care,Social Support - Support for Carer,5105666917,24.02.2021,Westminster House,Operational Equipment,117.81,BETA PAK LTD
Revenue,Adult Services,Adult Social Care,Social Support - Support for Carer,5105666894,24.02.2021,Westminster House,Operational Equipment,-14.56,BETA PAK LTD
Revenue,Adult Services,Adult Social Care,Learning Disab Supp (to be reallocated),5105665752,10.02.2021,Plean Dene,Operational Equipment,137.43,BETA PAK LTD
Revenue,Adult Services,Adult Social Care,Learning Disab Supp (to be reallocated),5105665752,10.02.2021,Plean Dene,Operational Equipment,49.96,BETA PAK LTD
Revenue,Adult Services,Adult Social Care,Learning Disab Supp (to be reallocated),5105665753,19.02.2021,Saxonbury,Operational Equipment,156.28,BETA PAK LTD
Revenue,Adult Services,Adult Social Care,Learning Disab Supp (to be reallocated),5105666436,19.02.2021,Saxonbury,Operational Equipment,88.61,BETA PAK LTD
Revenue,Adult Services,Adult Social Care,Learning Disab Supp (to be reallocated),5105665485,05.02.2021,Saxonbury,Operational Equipment,17.20,BETA PAK LTD
Revenue,Adult Services,Adult Social Care,Learning Disab Supp (to be reallocated),5105665213,03.02.2021,Saxonbury,Operational Equipment,388.57,BETA PAK LTD
Revenue,Adult Services,Adult Social Care,Learning Disab Supp (to be reallocated),5105665677,19.02.2021,Saxonbury,Operational Equipment,28.59,BETA PAK LTD
Revenue,Adult Services,Adult Social Care,Learning Disab Supp (to be reallocated),5105666918,24.02.2021,Saxonbury,Operational Equipment,11.92,BETA PAK LTD
Revenue,Adult Services,Adult Social Care,Learning Disab Supp (to be reallocated),5105666919,24.02.2021,Saxonbury,Operational Equipment,95.36,BETA PAK LTD
Revenue,Adult Services,Adult Social Care,Social Support - Support for Carer,5105664823,10.02.2021,Westminster House,Operational Equipment,17.99,BETA PAK LTD
Revenue,Adult Services,Adult Social Care,Social Support - Support for Carer,5105665046,10.02.2021,Westminster House,Operational Equipment,90.80,BETA PAK LTD
Revenue,Adult Services,Adult Social Care,Central Codes (to be reallocated),5105665236,03.02.2021,Adelaide Resource Centre,Consumable Cleaning Materials,444.90,BETA PAK LTD
Revenue,Adult Services,Adult Social Care,Central Codes (to be reallocated),5105665247,03.02.2021,Adelaide Resource Centre,Consumable Cleaning Materials,19.95,BETA PAK LTD
Revenue,Adult Services,Adult Social Care,Central Codes (to be reallocated),5105667446,26.02.2021,Adelaide Resource Centre,Consumable Cleaning Materials,138.32,BETA PAK LTD
Revenue,Adult Services,Adult Social Care,Central Codes (to be reallocated),5105667014,24.02.2021,Adelaide Resource Centre,Consumable Cleaning Materials,269.00,BETA PAK LTD
Revenue,Adult Services,Adult Social Care,Central Codes (to be reallocated),5105667190,24.02.2021,Adelaide Resource Centre,Consumable Cleaning Materials,105.26,BETA PAK LTD
Revenue,Adult Services,Adult Social Care,Central Codes (to be reallocated),5105665675,10.02.2021,Adelaide Resource Centre,Operational Equipment,32.97,BETA PAK LTD
Revenue,Neighbourhoods,Highways and Transport Services,Management and Support Services,5105667089,24.02.2021,Highways PFI Project,Legal Fees - Other Parties,751.80,BEVAN BRITTAN
Revenue,Neighbourhoods,Highways and Transport Services,Management and Support Services,5105666374,17.02.2021,Highways PFI Project,Legal Fees - Other Parties,57.00,BEVAN BRITTAN
Revenue,Neighbourhoods,Environmental & Regulatory Services,Service Management and Support Services,5105666157,12.02.2021,Waste Contract Management,Legal Fees - Other Parties,"36,770.00",BEVAN BRITTAN
Revenue,Neighbourhoods,Highways and Transport Services,Management and Support Services,5105667090,24.02.2021,Milestone 14 Dispute Resolution Process,Legal Fees - Other Parties,"1,443.20",BEVAN BRITTAN
Revenue,Neighbourhoods,Highways and Transport Services,Management and Support Services,5105667091,24.02.2021,Milestone 14 Dispute Resolution Process,Legal Fees - Other Parties,767.00,BEVAN BRITTAN
Revenue,Regeneration,Planning services,Economic Development,5105665568,10.02.2021,Wight Innovation ERDF,Legal Fees - Other Parties,96.00,BEVAN BRITTAN
Revenue,Regeneration,Central Services,Support Services,5105666926,24.02.2021,Public Sector Partnership Costs,Legal Fees - Other Parties,"1,881.00",BEVAN BRITTAN
Revenue,Adult Services,Adult Social Care,Central Codes (to be reallocated),5105667205,26.02.2021,Gouldings Resource Centre,Catering Purchases,187.96,3663 (BFS GROUP LTD)
Revenue,Adult Services,Adult Social Care,Central Codes (to be reallocated),5105667205,26.02.2021,Gouldings Resource Centre,Catering Purchases,4.55,3663 (BFS GROUP LTD)
Revenue,Adult Services,Adult Social Care,Central Codes (to be reallocated),5105665606,10.02.2021,Gouldings Resource Centre,Catering Purchases,332.51,3663 (BFS GROUP LTD)
Revenue,Adult Services,Adult Social Care,Central Codes (to be reallocated),5105665606,10.02.2021,Gouldings Resource Centre,Catering Purchases,9.44,3663 (BFS GROUP LTD)
Revenue,Adult Services,Adult Social Care,Central Codes (to be reallocated),5105666420,17.02.2021,Gouldings Resource Centre,Catering Purchases,234.31,3663 (BFS GROUP LTD)
Revenue,Adult Services,Adult Social Care,Central Codes (to be reallocated),5105666420,17.02.2021,Gouldings Resource Centre,Catering Purchases,32.36,3663 (BFS GROUP LTD)
Revenue,Corporate Items,Central Services,Corporate and Democratic Core,5105666434,17.02.2021,Corporate Management,Professional Services,"4,986.30",BCG BROKERS GP LIMITED
Revenue,Neighbourhoods,Cultural and Related Services,Library Service,5105664822,03.02.2021,Public Libraries Central,Stationery,100.94,BIBLIOTHECA LTD
Revenue,Neighbourhoods,Cultural and Related Services,Library Service,5105666884,19.02.2021,Public Libraries Central,Stationery,6.44,BIBLIOTHECA LTD
Revenue,Neighbourhoods,Cultural and Related Services,Library Service,5105667042,24.02.2021,Public Libraries Central,Stationery,"1,245.16",BIBLIOTHECA LTD
Revenue,Adult Services,Adult Social Care,Central Codes (to be reallocated),5105665174,10.02.2021,Gouldings Resource Centre,"Refuse Collection, Disposal and Recycling Costs",101.76,BIFFA WASTE SERVICES LTD
Revenue,Adult Services,Adult Social Care,Central Codes (to be reallocated),5105665175,10.02.2021,Gouldings Resource Centre,"Refuse Collection, Disposal and Recycling Costs",306.24,BIFFA WASTE SERVICES LTD
Revenue,Regeneration,Planning services,Environmental Initiatives,5105666711,24.02.2021,IOW Catchment Partnership,Printing Costs,88.00,BILTMORE PRINTERS
Revenue,Resources,Central Services,Support Services,5105666846,19.02.2021,Staff Benefits,Payment to Private Contractors,155.00,BLACKBERRY LANE PRE-SCHOOL
Revenue,Childrens Services,Children's & Education Services,Children Looked After,5105666188,19.02.2021,Purchased Fostering,Charges from Independent Providers,-825.00,BLUE SKY FOSTERING LTD
Revenue,Childrens Services,Children's & Education Services,Children Looked After,5105666528,19.02.2021,Purchased Fostering,Charges from Independent Providers,"5,880.00",BLUE SKY FOSTERING LTD
Revenue,Childrens Services,Children's & Education Services,Other Education and Community Budget,5105665562,05.02.2021,Commissioning ACL,Grants to External Bodies,"2,679.00",BODSTER EQUINE ASSISTED LEARN CIC
Revenue,Childrens Services,Children's & Education Services,Family Support Services,5105666405,17.02.2021,Short Breaks,Charges from Independent Providers,349.17,BODSTER EQUINE ASSISTED LEARN CIC
Revenue,Neighbourhoods,Cultural and Related Services,Library Service,5105667075,24.02.2021,Public Libraries Central,Purchase of Books,"6,000.00",BOLINDA UK LTD
Revenue,Neighbourhoods,Cultural and Related Services,Library Service,5105667076,24.02.2021,Public Libraries Central,Purchase of Books,"4,000.00",BOLINDA UK LTD
Revenue,Fire & Rescue,Fire & Rescue Services,Fire fighting and Rescue Operations,5105664834,10.02.2021,Fire Fighters Salaries,Medical Fees and Staff Welfare,94.65,BOLLE SAFETY
Revenue,Fire & Rescue,Fire & Rescue Services,Fire fighting and Rescue Operations,5105664834,10.02.2021,Fire Fighters Salaries,Medical Fees and Staff Welfare,24.00,BOLLE SAFETY
Revenue,Fire & Rescue,Fire & Rescue Services,Fire fighting and Rescue Operations,5105664834,10.02.2021,Fire Fighters Salaries,Medical Fees and Staff Welfare,25.00,BOLLE SAFETY
Revenue,Adult Services,Adult Social Care,Learning Disab Supp (to be reallocated),5105666407,24.02.2021,Plean Dene,Catering Purchases,70.49,BOOKER CASH & CARRY LTD
Revenue,Adult Services,Adult Social Care,Learning Disab Supp (to be reallocated),5105666409,24.02.2021,Plean Dene,Catering Purchases,12.71,BOOKER CASH & CARRY LTD
Revenue,Adult Services,Adult Social Care,Learning Disab Supp (to be reallocated),5105665668,10.02.2021,Plean Dene,Catering Purchases,3.68,BOOKER CASH & CARRY LTD
Revenue,Adult Services,Adult Social Care,Learning Disab Supp (to be reallocated),5105666716,24.02.2021,Plean Dene,Catering Purchases,19.86,BOOKER CASH & CARRY LTD
Revenue,Adult Services,Adult Social Care,Learning Disab Supp (to be reallocated),5105665546,05.02.2021,Plean Dene,Catering Purchases,108.66,BOOKER CASH & CARRY LTD
Revenue,Adult Services,Adult Social Care,Learning Disab Supp (to be reallocated),5105665532,05.02.2021,Plean Dene,Catering Purchases,11.68,BOOKER CASH & CARRY LTD
Revenue,Adult Services,Adult Social Care,Learning Disab Supp (to be reallocated),5105665532,05.02.2021,Plean Dene,Catering Purchases,5.99,BOOKER CASH & CARRY LTD
Revenue,Adult Services,Adult Social Care,Learning Disab Supp (to be reallocated),5105664838,03.02.2021,Plean Dene,Catering Purchases,15.86,BOOKER CASH & CARRY LTD
Revenue,Adult Services,Adult Social Care,Learning Disab Supp (to be reallocated),5105664851,03.02.2021,Plean Dene,Catering Purchases,19.09,BOOKER CASH & CARRY LTD
Revenue,Adult Services,Adult Social Care,Learning Disab Supp (to be reallocated),5105667221,26.02.2021,Plean Dene,Catering Purchases,14.97,BOOKER CASH & CARRY LTD
Revenue,Adult Services,Adult Social Care,Learning Disab Supp (to be reallocated),5105665210,03.02.2021,Plean Dene,Catering Purchases,7.99,BOOKER CASH & CARRY LTD
Revenue,Adult Services,Adult Social Care,Learning Disab Supp (to be reallocated),5105664971,03.02.2021,Plean Dene,Catering Purchases,120.70,BOOKER CASH & CARRY LTD
Revenue,Adult Services,Adult Social Care,Learning Disab Supp (to be reallocated),5105664974,03.02.2021,Plean Dene,Catering Purchases,13.97,BOOKER CASH & CARRY LTD
Revenue,Adult Services,Adult Social Care,Learning Disab Supp (to be reallocated),5105665039,03.02.2021,Plean Dene,Catering Purchases,2.98,BOOKER CASH & CARRY LTD
Revenue,Adult Services,Adult Social Care,Learning Disab Supp (to be reallocated),5105666881,24.02.2021,Plean Dene,Catering Purchases,7.99,BOOKER CASH & CARRY LTD
Revenue,Adult Services,Adult Social Care,Learning Disab Supp (to be reallocated),5105667128,24.02.2021,Plean Dene,Catering Purchases,94.07,BOOKER CASH & CARRY LTD
Revenue,Adult Services,Adult Social Care,Learning Disab Supp (to be reallocated),5105667128,24.02.2021,Plean Dene,Catering Purchases,2.58,BOOKER CASH & CARRY LTD
Revenue,Adult Services,Adult Social Care,Learning Disab Supp (to be reallocated),5105667129,24.02.2021,Plean Dene,Catering Purchases,27.61,BOOKER CASH & CARRY LTD
Revenue,Public Health,Public Health,Smoking & Tobacco,5105666796,19.02.2021,Stop Smoking Services & Interventions NP,Payment to Private Contractors,83.73,BOOTS THE CHEMIST LTD (Ryde)
Revenue,Public Health,Public Health,Smoking & Tobacco,5105666796,19.02.2021,Stop Smoking Services & Interventions NP,Payment to Private Contractors,14.00,BOOTS THE CHEMIST LTD (Ryde)
Revenue,Public Health,Public Health,Sexual Health,5105666487,19.02.2021,Contraception P,Payment to Private Contractors,924.50,BOOTS THE CHEMIST LTD (Ryde)
Revenue,Public Health,Public Health,Sexual Health,5105666487,19.02.2021,Contraception P,Payment to Private Contractors,93.60,BOOTS THE CHEMIST LTD (Ryde)
Revenue,Public Health,Public Health,Sexual Health,5105666487,19.02.2021,Contraception P,Payment to Private Contractors,379.35,BOOTS THE CHEMIST LTD (Ryde)
Revenue,Public Health,Public Health,Substance Misuse,5105666487,19.02.2021,Drug Misuse Adult- Treatment NP,Payment to Private Contractors,30.00,BOOTS THE CHEMIST LTD (Ryde)
Revenue,Public Health,Public Health,Substance Misuse,5105666487,19.02.2021,Drug Misuse Adult- Treatment NP,Payment to Private Contractors,560.00,BOOTS THE CHEMIST LTD (Ryde)
Revenue,Public Health,Public Health,Substance Misuse,5105666503,19.02.2021,Drug Misuse Adult- Treatment NP,Payment to Private Contractors,30.00,BOOTS UK LTD (SANDOWN LARGE STORE)
Revenue,Public Health,Public Health,Smoking & Tobacco,5105666907,24.02.2021,Stop Smoking Services & Interventions NP,Payment to Private Contractors,22.00,BOOTS UK LTD (107 HIGH ST SANDOWN)
Revenue,Public Health,Public Health,Smoking & Tobacco,5105666907,24.02.2021,Stop Smoking Services & Interventions NP,Payment to Private Contractors,66.37,BOOTS UK LTD (107 HIGH ST SANDOWN)
Revenue,Public Health,Public Health,Sexual Health,5105666498,19.02.2021,Contraception P,Payment to Private Contractors,279.50,BOOTS UK LTD (107 HIGH ST SANDOWN)
Revenue,Public Health,Public Health,Sexual Health,5105666498,19.02.2021,Contraception P,Payment to Private Contractors,15.60,BOOTS UK LTD (107 HIGH ST SANDOWN)
Revenue,Public Health,Public Health,Sexual Health,5105666498,19.02.2021,Contraception P,Payment to Private Contractors,3.55,BOOTS UK LTD (107 HIGH ST SANDOWN)
Revenue,Public Health,Public Health,Sexual Health,5105666498,19.02.2021,Contraception P,Payment to Private Contractors,140.50,BOOTS UK LTD (107 HIGH ST SANDOWN)
Revenue,Public Health,Public Health,Substance Misuse,5105666498,19.02.2021,Drug Misuse Adult- Treatment NP,Payment to Private Contractors,49.00,BOOTS UK LTD (107 HIGH ST SANDOWN)
Revenue,Public Health,Public Health,Substance Misuse,5105666498,19.02.2021,Drug Misuse Adult- Treatment NP,Payment to Private Contractors,30.00,BOOTS UK LTD (107 HIGH ST SANDOWN)
Revenue,Public Health,Public Health,Substance Misuse,5105666498,19.02.2021,Drug Misuse Adult- Treatment NP,Payment to Private Contractors,356.00,BOOTS UK LTD (107 HIGH ST SANDOWN)
Revenue,Public Health,Public Health,Smoking & Tobacco,5105666804,19.02.2021,Stop Smoking Services & Interventions NP,Payment to Private Contractors,31.54,BOOTS UK LTD (COWES)
Revenue,Public Health,Public Health,Smoking & Tobacco,5105666804,19.02.2021,Stop Smoking Services & Interventions NP,Payment to Private Contractors,4.00,BOOTS UK LTD (COWES)
Revenue,Public Health,Public Health,Sexual Health,5105666502,19.02.2021,Contraception P,Payment to Private Contractors,86.00,BOOTS UK LTD (COWES)
Revenue,Public Health,Public Health,Sexual Health,5105666502,19.02.2021,Contraception P,Payment to Private Contractors,15.60,BOOTS UK LTD (COWES)
Revenue,Public Health,Public Health,Sexual Health,5105666502,19.02.2021,Contraception P,Payment to Private Contractors,14.05,BOOTS UK LTD (COWES)
Revenue,Public Health,Public Health,Substance Misuse,5105666502,19.02.2021,Drug Misuse Adult- Treatment NP,Payment to Private Contractors,30.00,BOOTS UK LTD (COWES)
Revenue,Public Health,Public Health,Substance Misuse,5105666502,19.02.2021,Drug Misuse Adult- Treatment NP,Payment to Private Contractors,14.00,BOOTS UK LTD (COWES)
Revenue,Public Health,Public Health,Smoking & Tobacco,5105666803,19.02.2021,Stop Smoking Services & Interventions NP,Payment to Private Contractors,27.32,BOOTS UK LTD (FRESHWATER)
Revenue,Public Health,Public Health,Smoking & Tobacco,5105666803,19.02.2021,Stop Smoking Services & Interventions NP,Payment to Private Contractors,6.00,BOOTS UK LTD (FRESHWATER)
Revenue,Public Health,Public Health,Smoking & Tobacco,5105666803,19.02.2021,Stop Smoking Services & Interventions NP,Payment to Private Contractors,30.00,BOOTS UK LTD (FRESHWATER)
Revenue,Public Health,Public Health,Smoking & Tobacco,5105666803,19.02.2021,Stop Smoking Services & Interventions NP,Payment to Private Contractors,163.80,BOOTS UK LTD (FRESHWATER)
Revenue,Public Health,Public Health,Smoking & Tobacco,5105666803,19.02.2021,Stop Smoking Services & Interventions NP,Payment to Private Contractors,13.50,BOOTS UK LTD (FRESHWATER)
Revenue,Public Health,Public Health,Sexual Health,5105666505,19.02.2021,Contraception P,Payment to Private Contractors,215.00,BOOTS UK LTD (FRESHWATER)
Revenue,Public Health,Public Health,Sexual Health,5105666505,19.02.2021,Contraception P,Payment to Private Contractors,140.50,BOOTS UK LTD (FRESHWATER)
Revenue,Public Health,Public Health,Sexual Health,5105666505,19.02.2021,Contraception P,Payment to Private Contractors,3.55,BOOTS UK LTD (FRESHWATER)
Revenue,Public Health,Public Health,Substance Misuse,5105666505,19.02.2021,Drug Misuse Adult- Treatment NP,Payment to Private Contractors,30.00,BOOTS UK LTD (FRESHWATER)
Revenue,Public Health,Public Health,Smoking & Tobacco,5105666779,19.02.2021,Stop Smoking Services & Interventions NP,Payment to Private Contractors,4.50,BOOTS UK LTD (NEWPORT)
Revenue,Public Health,Public Health,Smoking & Tobacco,5105666779,19.02.2021,Stop Smoking Services & Interventions NP,Payment to Private Contractors,27.30,BOOTS UK LTD (NEWPORT)
Revenue,Public Health,Public Health,Smoking & Tobacco,5105666779,19.02.2021,Stop Smoking Services & Interventions NP,Payment to Private Contractors,22.86,BOOTS UK LTD (NEWPORT)
Revenue,Public Health,Public Health,Smoking & Tobacco,5105666779,19.02.2021,Stop Smoking Services & Interventions NP,Payment to Private Contractors,8.00,BOOTS UK LTD (NEWPORT)
Revenue,Public Health,Public Health,Sexual Health,5105666496,19.02.2021,Contraception P,Payment to Private Contractors,483.70,BOOTS UK LTD (NEWPORT)
Revenue,Public Health,Public Health,Sexual Health,5105666496,19.02.2021,Contraception P,Payment to Private Contractors,"1,130.00",BOOTS UK LTD (NEWPORT)
Revenue,Public Health,Public Health,Sexual Health,5105666496,19.02.2021,Contraception P,Payment to Private Contractors,98.80,BOOTS UK LTD (NEWPORT)
Revenue,Public Health,Public Health,Sexual Health,5105666496,19.02.2021,Contraception P,Payment to Private Contractors,3.55,BOOTS UK LTD (NEWPORT)
Revenue,Public Health,Public Health,Substance Misuse,5105666496,19.02.2021,Drug Misuse Adult- Treatment NP,Payment to Private Contractors,934.00,BOOTS UK LTD (NEWPORT)
Revenue,Public Health,Public Health,Substance Misuse,5105666496,19.02.2021,Drug Misuse Adult- Treatment NP,Payment to Private Contractors,30.00,BOOTS UK LTD (NEWPORT)
Revenue,Public Health,Public Health,Smoking & Tobacco,5105666914,24.02.2021,Stop Smoking Services & Interventions NP,Payment to Private Contractors,19.02,BOOTS UK LTD (SHANKLIN)
Revenue,Public Health,Public Health,Smoking & Tobacco,5105666914,24.02.2021,Stop Smoking Services & Interventions NP,Payment to Private Contractors,4.00,BOOTS UK LTD (SHANKLIN)
Revenue,Public Health,Public Health,Sexual Health,5105666497,19.02.2021,Contraception P,Payment to Private Contractors,168.60,BOOTS UK LTD (SHANKLIN)
Revenue,Public Health,Public Health,Sexual Health,5105666497,19.02.2021,Contraception P,Payment to Private Contractors,258.00,BOOTS UK LTD (SHANKLIN)
Revenue,Public Health,Public Health,Substance Misuse,5105666497,19.02.2021,Drug Misuse Adult- Treatment NP,Payment to Private Contractors,30.00,BOOTS UK LTD (SHANKLIN)
Revenue,Public Health,Public Health,Smoking & Tobacco,5105666798,19.02.2021,Stop Smoking Services & Interventions NP,Payment to Private Contractors,10.00,BOOTS UK LTD (TOWER HOUSE)
Revenue,Public Health,Public Health,Smoking & Tobacco,5105666798,19.02.2021,Stop Smoking Services & Interventions NP,Payment to Private Contractors,27.30,BOOTS UK LTD (TOWER HOUSE)
Revenue,Public Health,Public Health,Smoking & Tobacco,5105666798,19.02.2021,Stop Smoking Services & Interventions NP,Payment to Private Contractors,6.00,BOOTS UK LTD (TOWER HOUSE)
Revenue,Public Health,Public Health,Smoking & Tobacco,5105666798,19.02.2021,Stop Smoking Services & Interventions NP,Payment to Private Contractors,53.12,BOOTS UK LTD (TOWER HOUSE)
Revenue,Public Health,Public Health,Sexual Health,5105666501,19.02.2021,Contraception P,Payment to Private Contractors,236.50,BOOTS UK LTD (TOWER HOUSE)
Revenue,Public Health,Public Health,Sexual Health,5105666501,19.02.2021,Contraception P,Payment to Private Contractors,31.20,BOOTS UK LTD (TOWER HOUSE)
Revenue,Public Health,Public Health,Sexual Health,5105666501,19.02.2021,Contraception P,Payment to Private Contractors,70.25,BOOTS UK LTD (TOWER HOUSE)
Revenue,Public Health,Public Health,Substance Misuse,5105666501,19.02.2021,Drug Misuse Adult- Treatment NP,Payment to Private Contractors,241.50,BOOTS UK LTD (TOWER HOUSE)
Revenue,Public Health,Public Health,Substance Misuse,5105666501,19.02.2021,Drug Misuse Adult- Treatment NP,Payment to Private Contractors,30.00,BOOTS UK LTD (TOWER HOUSE)
Revenue,Public Health,Public Health,Substance Misuse,5105666501,19.02.2021,Drug Misuse Adult- Treatment NP,Payment to Private Contractors,240.00,BOOTS UK LTD (TOWER HOUSE)
Revenue,Public Health,Public Health,Sexual Health,5105666508,19.02.2021,Contraception P,Payment to Private Contractors,64.50,BOOTS UK LTD
Revenue,Public Health,Public Health,Sexual Health,5105666508,19.02.2021,Contraception P,Payment to Private Contractors,42.15,BOOTS UK LTD
Revenue,Public Health,Public Health,Substance Misuse,5105666508,19.02.2021,Drug Misuse Adult- Treatment NP,Payment to Private Contractors,10.50,BOOTS UK LTD
Revenue,Public Health,Public Health,Substance Misuse,5105666508,19.02.2021,Drug Misuse Adult- Treatment NP,Payment to Private Contractors,182.00,BOOTS UK LTD
Revenue,Public Health,Public Health,Substance Misuse,5105666508,19.02.2021,Drug Misuse Adult- Treatment NP,Payment to Private Contractors,30.00,BOOTS UK LTD
Revenue,Public Health,Public Health,Sexual Health,5105666504,19.02.2021,Contraception P,Payment to Private Contractors,21.50,BOOTS UK LTD (YLB BEMBRIDGE)
Revenue,Public Health,Public Health,Sexual Health,5105666504,19.02.2021,Contraception P,Payment to Private Contractors,14.05,BOOTS UK LTD (YLB BEMBRIDGE)
Revenue,Public Health,Public Health,Substance Misuse,5105666504,19.02.2021,Drug Misuse Adult- Treatment NP,Payment to Private Contractors,30.00,BOOTS UK LTD (YLB BEMBRIDGE)
Revenue,Childrens Services,Children's & Education Services,Family Support Services,5105665196,03.02.2021,S17 Child Protection,Support Children,81.50,BOSTICO INTERNATIONAL
Revenue,Childrens Services,Children's & Education Services,Family Support Services,5400002920,26.02.2021,S17 Child Protection,Support Children,185.00,BOSTICO INTERNATIONAL
Revenue,Adult Services,Adult Social Care,Social Care Activities,5105665499,12.02.2021,Integrated Locality Services - West/Cent,Professional Services,90.00,BOSTICO INTERNATIONAL
Revenue,Adult Services,Adult Social Care,Social Care Activities,5105664456,12.02.2021,Integrated Locality Services - West/Cent,Professional Services,294.36,BOSTICO INTERNATIONAL
Capital,Resources,Capital,Capital,5105666715,19.02.2021,Server Farm,ICT Hardware & Software - Capital,"6,256.50",SOFTWARE BOX LIMITED
Capital,Resources,Capital,Capital,5105666715,19.02.2021,Server Farm,ICT Hardware & Software - Capital,6.50,SOFTWARE BOX LIMITED
Revenue,Adult Services,Housing Services,Homelessness,5105666836,19.02.2021,Private Rented Sector Leasing Scheme,Accommodation Costs - Leaseholder Payments,281.66,BRAMBLE LETTINGS
Revenue,Adult Services,Housing Services,Homelessness,5105666836,19.02.2021,Private Rented Sector Leasing Scheme,Accommodation Costs - Leaseholder Payments,216.66,BRAMBLE LETTINGS
Revenue,Adult Services,Housing Services,Homelessness,5105666996,24.02.2021,Private Rented Sector Leasing Scheme,Accommodation Costs - Leaseholder Payments,588.38,BRAMBLE LETTINGS
Revenue,Adult Services,Housing Services,Homelessness,5105666996,24.02.2021,Private Rented Sector Leasing Scheme,Accommodation Costs - Leaseholder Payments,746.81,BRAMBLE LETTINGS
Revenue,Adult Services,Housing Services,Homelessness,5105666996,24.02.2021,Private Rented Sector Leasing Scheme,Accommodation Costs - Leaseholder Payments,746.81,BRAMBLE LETTINGS
Revenue,Adult Services,Housing Services,Homelessness,5105666836,19.02.2021,Private Rented Sector Leasing Scheme,Accommodation Costs - Leaseholder Payments,746.81,BRAMBLE LETTINGS
Revenue,Adult Services,Housing Services,Homelessness,5105666836,19.02.2021,Private Rented Sector Leasing Scheme,Accommodation Costs - Leaseholder Payments,746.81,BRAMBLE LETTINGS
Revenue,Adult Services,Housing Services,Homelessness,5105666836,19.02.2021,Private Rented Sector Leasing Scheme,Accommodation Costs - Leaseholder Payments,746.81,BRAMBLE LETTINGS
Revenue,Adult Services,Housing Services,Homelessness,5105666836,19.02.2021,Private Rented Sector Leasing Scheme,Accommodation Costs - Leaseholder Payments,746.81,BRAMBLE LETTINGS
Revenue,Adult Services,Housing Services,Homelessness,5105666836,19.02.2021,Private Rented Sector Leasing Scheme,Accommodation Costs - Leaseholder Payments,746.81,BRAMBLE LETTINGS
Revenue,Adult Services,Housing Services,Homelessness,5105666836,19.02.2021,Private Rented Sector Leasing Scheme,Accommodation Costs - Leaseholder Payments,588.38,BRAMBLE LETTINGS
Revenue,Adult Services,Housing Services,Homelessness,5105666836,19.02.2021,Private Rented Sector Leasing Scheme,Accommodation Costs - Leaseholder Payments,588.38,BRAMBLE LETTINGS
Revenue,Adult Services,Housing Services,Homelessness,5105666836,19.02.2021,Private Rented Sector Leasing Scheme,Accommodation Costs - Leaseholder Payments,588.38,BRAMBLE LETTINGS
Revenue,Adult Services,Housing Services,Homelessness,5105666836,19.02.2021,Private Rented Sector Leasing Scheme,Accommodation Costs - Leaseholder Payments,588.38,BRAMBLE LETTINGS
Revenue,Adult Services,Housing Services,Homelessness,5105666836,19.02.2021,Private Rented Sector Leasing Scheme,Accommodation Costs - Leaseholder Payments,588.38,BRAMBLE LETTINGS
Revenue,Adult Services,Housing Services,Homelessness,5105666836,19.02.2021,Private Rented Sector Leasing Scheme,Accommodation Costs - Leaseholder Payments,746.81,BRAMBLE LETTINGS
Revenue,Adult Services,Housing Services,Homelessness,5105666836,19.02.2021,Private Rented Sector Leasing Scheme,Accommodation Costs - Leaseholder Payments,588.38,BRAMBLE LETTINGS
Revenue,Adult Services,Housing Services,Homelessness,5105666836,19.02.2021,Private Rented Sector Leasing Scheme,Accommodation Costs - Leaseholder Payments,746.81,BRAMBLE LETTINGS
Revenue,Adult Services,Housing Services,Homelessness,5105666836,19.02.2021,Private Rented Sector Leasing Scheme,Accommodation Costs - Leaseholder Payments,769.43,BRAMBLE LETTINGS
Revenue,Adult Services,Housing Services,Homelessness,5105666836,19.02.2021,Private Rented Sector Leasing Scheme,Accommodation Costs - Leaseholder Payments,746.81,BRAMBLE LETTINGS
Revenue,Adult Services,Housing Services,Homelessness,5105666836,19.02.2021,Private Rented Sector Leasing Scheme,Accommodation Costs - Leaseholder Payments,746.81,BRAMBLE LETTINGS
Revenue,Adult Services,Housing Services,Homelessness,5105666836,19.02.2021,Private Rented Sector Leasing Scheme,Accommodation Costs - Leaseholder Payments,746.81,BRAMBLE LETTINGS
Revenue,Adult Services,Housing Services,Homelessness,5105666836,19.02.2021,Private Rented Sector Leasing Scheme,Accommodation Costs - Leaseholder Payments,746.81,BRAMBLE LETTINGS
Revenue,Adult Services,Housing Services,Homelessness,5105666836,19.02.2021,Private Rented Sector Leasing Scheme,Accommodation Costs - Leaseholder Payments,746.81,BRAMBLE LETTINGS
Revenue,Adult Services,Housing Services,Homelessness,5105666836,19.02.2021,Private Rented Sector Leasing Scheme,Accommodation Costs - Leaseholder Payments,746.81,BRAMBLE LETTINGS
Revenue,Adult Services,Housing Services,Homelessness,5105666836,19.02.2021,Private Rented Sector Leasing Scheme,Accommodation Costs - Leaseholder Payments,746.81,BRAMBLE LETTINGS
Revenue,Adult Services,Housing Services,Homelessness,5105666836,19.02.2021,Private Rented Sector Leasing Scheme,Accommodation Costs - Leaseholder Payments,746.81,BRAMBLE LETTINGS
Revenue,Neighbourhoods,Highways and Transport Services,"Airports, Harbours & Toll Facilities",5105666232,17.02.2021,Ryde Harbour,Payment to Private Contractors,490.00,BRIGHSTONE LANDSCAPING LTD
Revenue,Neighbourhoods,Cultural and Related Services,Open Spaces,5105666232,17.02.2021,John O�Conner Grounds Maintenance Contract,Payment to Private Contractors,490.00,BRIGHSTONE LANDSCAPING LTD
Revenue,Neighbourhoods,Environmental & Regulatory Services,(Street) Cleansing (not highways),5105665522,05.02.2021,Beach Cleaning,Beach Cleansing Contractors,"7,859.00",BRIGHSTONE LANDSCAPING LTD
Revenue,Neighbourhoods,Environmental & Regulatory Services,(Street) Cleansing (not highways),5105667203,26.02.2021,Beach Cleaning,Beach Cleansing Contractors,"1,476.00",BRIGHSTONE LANDSCAPING LTD
Revenue,Neighbourhoods,Environmental & Regulatory Services,(Street) Cleansing (not highways),5105666233,17.02.2021,Beach Cleaning,Payment to Private Contractors,270.00,BRIGHSTONE LANDSCAPING LTD
Revenue,Neighbourhoods,Environmental & Regulatory Services,(Street) Cleansing (not highways),5105666933,24.02.2021,Beach Cleaning,Payment to Private Contractors,350.00,BRIGHSTONE LANDSCAPING LTD
Revenue,Neighbourhoods,Environmental & Regulatory Services,(Street) Cleansing (not highways),5105667043,24.02.2021,Beach Cleaning,Payment to Private Contractors,420.00,BRIGHSTONE LANDSCAPING LTD
Revenue,Neighbourhoods,Environmental & Regulatory Services,(Street) Cleansing (not highways),5105667136,24.02.2021,Beach Cleaning,Payment to Private Contractors,90.00,BRIGHSTONE LANDSCAPING LTD
Revenue,Neighbourhoods,Environmental & Regulatory Services,(Street) Cleansing (not highways),5105667136,24.02.2021,Beach Cleaning,Payment to Private Contractors,175.00,BRIGHSTONE LANDSCAPING LTD
Revenue,Neighbourhoods,Cultural and Related Services,Open Spaces,5105666231,17.02.2021,Other Grounds Maintenance,Payment to Private Contractors,290.00,BRIGHSTONE LANDSCAPING LTD
Revenue,Neighbourhoods,Environmental & Regulatory Services,Coast Protection,5105667202,26.02.2021,Coast Protection,Payment to Private Contractors,110.00,BRIGHSTONE LANDSCAPING LTD
Revenue,Neighbourhoods,Highways and Transport Services,"Airports, Harbours & Toll Facilities",5105667044,24.02.2021,Ventnor Haven - General,Payment to Private Contractors,560.00,BRIGHSTONE LANDSCAPING LTD
Revenue,Resources,Central Services,Support Services,5105666867,19.02.2021,Staff Benefits,Payment to Private Contractors,15.00,KCT CHILDCARE LIMITED
Revenue,Childrens Services,Children's & Education Services,Other Education and Community Budget,5105665597,10.02.2021,Statutory Assessment and Review Team,Payments to Other Local Authorities,"3,000.00",BRISTOL CITY COUNCIL
Revenue,Childrens Services,Children's & Education Services,Other Education and Community Budget,5105665597,10.02.2021,Statutory Assessment and Review Team,Payments to Other Local Authorities,500.00,BRISTOL CITY COUNCIL
Revenue,Fire & Rescue,Fire & Rescue Services,Fire fighting and Rescue Operations,5105666173,12.02.2021,Fire Technical Support,Courier Costs,12.15,BRISTOL UNIFORMS LTD
Revenue,Fire & Rescue,Fire & Rescue Services,Fire fighting and Rescue Operations,5105666177,12.02.2021,Fire Technical Support,Clothing & Laundry,358.64,BRISTOL UNIFORMS LTD
Revenue,Fire & Rescue,Fire & Rescue Services,Fire fighting and Rescue Operations,5105666179,12.02.2021,Fire Technical Support,Clothing & Laundry,4.96,BRISTOL UNIFORMS LTD
Revenue,Fire & Rescue,Fire & Rescue Services,Fire fighting and Rescue Operations,5400002923,26.02.2021,Fire Technical Support,Clothing & Laundry,6.20,BRISTOL UNIFORMS LTD
Revenue,Fire & Rescue,Fire & Rescue Services,Fire fighting and Rescue Operations,5105666173,12.02.2021,Fire Technical Support,Clothing & Laundry,8.20,BRISTOL UNIFORMS LTD
Revenue,Childrens Services,Children's & Education Services,Children Looked After,5400002938,26.02.2021,Leaving Care Costs,Payments to/Aid Provided to Clients,140.00,BRITISH HEART FOUNDATION
Revenue,Adult Services,Adult Social Care,Learning Disability Suppt-adults (18-64),5105666236,17.02.2021,Learning Disability Residential 18-64,Charges from Independent Providers,"7,069.16",BROADHAM CARE LTD
Revenue,Childrens Services,Children's & Education Services,Children Looked After,5105666703,19.02.2021,In-house Fostering,Boarding Out Allowances,332.69,REDACTED PERSONAL DATA
Revenue,Childrens Services,Children's & Education Services,Children Looked After,5105666113,12.02.2021,In-house Fostering,Boarding Out Allowances,427.74,REDACTED PERSONAL DATA
Revenue,Childrens Services,Children's & Education Services,Children Looked After,5105667402,26.02.2021,In-house Fostering,Boarding Out Allowances,332.69,REDACTED PERSONAL DATA
Revenue,Public Health,Public Health,Sexual Health,5105666507,19.02.2021,Long Acting Reversible Contraception,Payment to Private Contractors,"1,450.00",BROOKSIDE HEALTH CENTRE
Capital,Adult Services,Capital,Capital,5105665891,10.02.2021,Adelaide & Gouldings Fixtures & Fittings,ICT Hardware & Software - Capital,36.60,BT BUSINESS DIRECT
Capital,Adult Services,Capital,Capital,5105665891,10.02.2021,Adelaide & Gouldings Fixtures & Fittings,ICT Hardware & Software - Capital,5.30,BT BUSINESS DIRECT
Capital,Adult Services,Capital,Capital,5105665891,10.02.2021,Adelaide & Gouldings Fixtures & Fittings,ICT Hardware & Software - Capital,"1,868.52",BT BUSINESS DIRECT
Capital,Adult Services,Capital,Capital,5105665891,10.02.2021,Adelaide & Gouldings Fixtures & Fittings,ICT Hardware & Software - Capital,40.00,BT BUSINESS DIRECT
Capital,Adult Services,Capital,Capital,5105665891,10.02.2021,Adelaide & Gouldings Fixtures & Fittings,ICT Hardware & Software - Capital,113.16,BT BUSINESS DIRECT
Capital,Adult Services,Capital,Capital,5105665891,10.02.2021,Adelaide & Gouldings Fixtures & Fittings,ICT Hardware & Software - Capital,36.60,BT BUSINESS DIRECT
Capital,Adult Services,Capital,Capital,5105665891,10.02.2021,Adelaide & Gouldings Fixtures & Fittings,ICT Hardware & Software - Capital,113.16,BT BUSINESS DIRECT
Capital,Corporate Items,Balance Sheet,Balance Sheet,5105666280,17.02.2021,Balance Sheet,Order Settlement to Bal Sht GL,92.12,BUCKLAND CARE LTD
Revenue,Adult Services,Central Services,Emergency Planning,5105667505,26.02.2021,NHS C19 Residential,Charges from Independent Providers,"2,408.13",BUCKLAND CARE LTD
Revenue,Adult Services,Central Services,Emergency Planning,5105667505,26.02.2021,NHS C19 Residential,Charges from Independent Providers,"3,240.16",BUCKLAND CARE LTD
Revenue,Adult Services,Adult Social Care,Support - Memory /Cognition-older people (65+),5105665732,10.02.2021,Memory & Cognition Residential 65+,Charges from Independent Providers,"2,275.80",BUCKLAND CARE LTD
Revenue,Adult Services,Adult Social Care,Support - Memory /Cognition-older people (65+),5105666280,17.02.2021,Memory & Cognition Residential 65+,Charges from Independent Providers,"2,124.08",BUCKLAND CARE LTD
Revenue,Adult Services,Adult Social Care,Support - Memory /Cognition-older people (65+),5105666280,17.02.2021,Memory & Cognition Residential 65+,Charges from Independent Providers,"2,124.08",BUCKLAND CARE LTD
Revenue,Adult Services,Adult Social Care,Support - Memory /Cognition-older people (65+),5105666280,17.02.2021,Memory & Cognition Residential 65+,Charges from Independent Providers,"2,497.32",BUCKLAND CARE LTD
Revenue,Adult Services,Adult Social Care,Support - Memory /Cognition-older people (65+),5105666280,17.02.2021,Memory & Cognition Residential 65+,Charges from Independent Providers,"2,124.08",BUCKLAND CARE LTD
Revenue,Adult Services,Central Services,Emergency Planning,5105665266,03.02.2021,NHS C19 Residential,Charges from Independent Providers,"4,860.24",BUCKLAND CARE LTD
Revenue,Adult Services,Central Services,Emergency Planning,5105665266,03.02.2021,NHS C19 Residential,Charges from Independent Providers,"4,860.24",BUCKLAND CARE LTD
Revenue,Adult Services,Central Services,Emergency Planning,5105665189,03.02.2021,NHS C19 Residential,Charges from Independent Providers,"1,388.64",BUCKLAND CARE LTD
Revenue,Adult Services,Central Services,Emergency Planning,5105665868,10.02.2021,NHS C19 Residential,Charges from Independent Providers,"2,661.56",BUCKLAND CARE LTD
Revenue,Adult Services,Central Services,Emergency Planning,5105665732,10.02.2021,NHS C19 Residential,Charges from Independent Providers,"4,744.52",BUCKLAND CARE LTD
Revenue,Adult Services,Central Services,Emergency Planning,5105665732,10.02.2021,NHS C19 Residential,Charges from Independent Providers,"4,744.52",BUCKLAND CARE LTD
Revenue,Adult Services,Central Services,Emergency Planning,5105666280,17.02.2021,NHS C19 Residential,Charges from Independent Providers,231.44,BUCKLAND CARE LTD
Revenue,Adult Services,Central Services,Emergency Planning,5105666280,17.02.2021,NHS C19 Residential,Charges from Independent Providers,231.44,BUCKLAND CARE LTD
Revenue,Adult Services,Central Services,Emergency Planning,5105666280,17.02.2021,NHS C19 Residential,Charges from Independent Providers,347.16,BUCKLAND CARE LTD
Revenue,Adult Services,Central Services,Emergency Planning,5105665937,12.02.2021,NHS C19 Residential,Charges from Independent Providers,"4,513.08",BUCKLAND CARE LTD
Revenue,Adult Services,Central Services,Emergency Planning,5105666851,19.02.2021,NHS C19 Residential,Charges from Independent Providers,"4,860.24",BUCKLAND CARE LTD
Revenue,Adult Services,Central Services,Emergency Planning,5105667233,26.02.2021,NHS C19 Residential,Charges from Independent Providers,"2,893.00",BUCKLAND CARE LTD
Revenue,Adult Services,Adult Social Care,Commissioning & Service Delivery,5105666280,17.02.2021,FNC IWC funded clients,Charges from Independent Providers,735.84,BUCKLAND CARE LTD
Revenue,Adult Services,Adult Social Care,Commissioning & Service Delivery,5105667068,24.02.2021,CHC Interim Funding (FWP),Charges from Independent Providers,"2,586.51",BUCKLAND CARE LTD
Revenue,Adult Services,Adult Social Care,Physical Support - older people (65+),5105666280,17.02.2021,Physical Support Nursing 65+,Charges from Independent Providers,"2,803.64",BUCKLAND CARE LTD
Revenue,Adult Services,Adult Social Care,Commissioning & Service Delivery,5105665266,03.02.2021,CHC Residential Care,Charges from Independent Providers,"4,191.93",BUCKLAND CARE LTD
Revenue,Adult Services,Balance Sheet,Balance Sheet,5105666280,17.02.2021,REDACTED PERSONAL DATA,Order Settlement to Bal Sht GL,"2,124.08",BUCKLAND CARE LTD
Revenue,Adult Services,Adult Social Care,Learning Disability Support-older people,5105666280,17.02.2021,Learning Disability Residential 65+,Charges from Independent Providers,"2,497.32",BUCKLAND CARE LTD
Revenue,Adult Services,Adult Social Care,Social Support - Support for Carer,5105666280,17.02.2021,Carers Residential,Charges from Independent Providers,"2,497.32",BUCKLAND CARE LTD
Revenue,Adult Services,Adult Social Care,Physical Support - older people (65+),5105666280,17.02.2021,Physical Support Residential 65+,Charges from Independent Providers,"2,497.32",BUCKLAND CARE LTD
Revenue,Adult Services,Adult Social Care,Physical Support - older people (65+),5105666280,17.02.2021,Physical Support Residential 65+,Charges from Independent Providers,"2,497.32",BUCKLAND CARE LTD
Revenue,Adult Services,Adult Social Care,Physical Support - older people (65+),5105666280,17.02.2021,Physical Support Residential 65+,Charges from Independent Providers,"2,497.32",BUCKLAND CARE LTD
Revenue,Adult Services,Adult Social Care,Physical Support - older people (65+),5105666280,17.02.2021,Physical Support Residential 65+,Charges from Independent Providers,"2,497.32",BUCKLAND CARE LTD
Revenue,Adult Services,Adult Social Care,Physical Support - older people (65+),5105666280,17.02.2021,Physical Support Residential 65+,Charges from Independent Providers,"2,497.32",BUCKLAND CARE LTD
Revenue,Adult Services,Adult Social Care,Physical Support - older people (65+),5105666280,17.02.2021,Physical Support Residential 65+,Charges from Independent Providers,"2,028.32",BUCKLAND CARE LTD
Revenue,Adult Services,Adult Social Care,Physical Support - older people (65+),5105666280,17.02.2021,Physical Support Residential 65+,Charges from Independent Providers,"2,028.32",BUCKLAND CARE LTD
Revenue,Adult Services,Adult Social Care,Physical Support - older people (65+),5105666280,17.02.2021,Physical Support Residential 65+,Charges from Independent Providers,"2,497.32",BUCKLAND CARE LTD
Revenue,Adult Services,Adult Social Care,Physical Support - older people (65+),5105666280,17.02.2021,Physical Support Residential 65+,Charges from Independent Providers,"2,124.08",BUCKLAND CARE LTD
Revenue,Adult Services,Adult Social Care,Physical Support - older people (65+),5105666280,17.02.2021,Physical Support Residential 65+,Charges from Independent Providers,"2,028.32",BUCKLAND CARE LTD
Revenue,Adult Services,Adult Social Care,Physical Support - older people (65+),5105666280,17.02.2021,Physical Support Residential 65+,Charges from Independent Providers,"2,124.08",BUCKLAND CARE LTD
Revenue,Adult Services,Adult Social Care,Physical Support - older people (65+),5105666128,12.02.2021,Physical Support Residential 65+,Charges from Independent Providers,"2,100.76",BUCKLAND CARE LTD
Revenue,Adult Services,Adult Social Care,Physical Support - older people (65+),5105665868,10.02.2021,Physical Support Residential 65+,Charges from Independent Providers,"2,958.54",BUCKLAND CARE LTD
Revenue,Adult Services,Adult Social Care,Social Support - Social Isolation/Other,5105667166,26.02.2021,Social Isolation/Other Nursing,Charges from Independent Providers,700.91,BUCKLAND CARE LTD
Revenue,Adult Services,Adult Social Care,Social Support - Social Isolation/Other,5105667500,26.02.2021,Social Isolation/Other Nursing,Charges from Independent Providers,"3,804.94",BUCKLAND CARE LTD
Revenue,Adult Services,Adult Social Care,Mental Health Support-older people (65+),5105667166,26.02.2021,Mental Health Nursing 65+,Charges from Independent Providers,"2,803.64",BUCKLAND CARE LTD
Revenue,Adult Services,Central Services,Emergency Planning,5105665866,10.02.2021,NHS C19 Nursing,Charges from Independent Providers,"6,379.62",BUCKLAND CARE LTD
Revenue,Adult Services,Adult Social Care,Commissioning & Service Delivery,5105666270,17.02.2021,"Funded Nursing Care, Registered Nursing Care Contribution",Charges from Independent Providers,735.84,BUCKLAND CARE LTD
Revenue,Adult Services,Adult Social Care,Commissioning & Service Delivery,5105666270,17.02.2021,"Funded Nursing Care, Registered Nursing Care Contribution",Charges from Independent Providers,735.84,BUCKLAND CARE LTD
Revenue,Adult Services,Adult Social Care,Commissioning & Service Delivery,5105666270,17.02.2021,"Funded Nursing Care, Registered Nursing Care Contribution",Charges from Independent Providers,735.84,BUCKLAND CARE LTD
Revenue,Adult Services,Adult Social Care,Commissioning & Service Delivery,5105665866,10.02.2021,"Funded Nursing Care, Registered Nursing Care Contribution",Charges from Independent Providers,"1,261.44",BUCKLAND CARE LTD
Revenue,Adult Services,Adult Social Care,Learning Disability Suppt-adults (18-64),5105666270,17.02.2021,Learning Disability Nursing 18-64,Charges from Independent Providers,"5,712.00",BUCKLAND CARE LTD
Revenue,Adult Services,Adult Social Care,Learning Disability Suppt-adults (18-64),5105666270,17.02.2021,Learning Disability Nursing 18-64,Charges from Independent Providers,"2,803.64",BUCKLAND CARE LTD
Revenue,Adult Services,Central Services,Emergency Planning,5105667425,26.02.2021,NHS C19 Residential,Charges from Independent Providers,"13,740.00",BUCKLAND CARE LTD
Revenue,Adult Services,Central Services,Emergency Planning,5105667425,26.02.2021,NHS C19 Residential,Charges from Independent Providers,"13,740.00",BUCKLAND CARE LTD
Revenue,Adult Services,Central Services,Emergency Planning,5105667425,26.02.2021,NHS C19 Residential,Charges from Independent Providers,"13,740.00",BUCKLAND CARE LTD
Revenue,Adult Services,Central Services,Emergency Planning,5105667425,26.02.2021,NHS C19 Residential,Charges from Independent Providers,"13,740.00",BUCKLAND CARE LTD
Revenue,Adult Services,Adult Social Care,Commissioning & Service Delivery,5105666270,17.02.2021,FNC IWC funded clients,Charges from Independent Providers,735.84,BUCKLAND CARE LTD
Revenue,Adult Services,Adult Social Care,Commissioning & Service Delivery,5105666270,17.02.2021,FNC IWC funded clients,Charges from Independent Providers,735.84,BUCKLAND CARE LTD
Revenue,Adult Services,Adult Social Care,Commissioning & Service Delivery,5105665594,05.02.2021,FNC IWC funded clients,Regular Respite Care,26.28,BUCKLAND CARE LTD
Revenue,Adult Services,Adult Social Care,Commissioning & Service Delivery,5105667166,26.02.2021,FNC IWC funded clients,Charges from Independent Providers,735.84,BUCKLAND CARE LTD
Revenue,Adult Services,Adult Social Care,Commissioning & Service Delivery,5105667166,26.02.2021,FNC IWC funded clients,Charges from Independent Providers,183.96,BUCKLAND CARE LTD
Revenue,Adult Services,Adult Social Care,Commissioning & Service Delivery,5105667166,26.02.2021,FNC IWC funded clients,Charges from Independent Providers,735.84,BUCKLAND CARE LTD
Revenue,Adult Services,Adult Social Care,Commissioning & Service Delivery,5105667500,26.02.2021,FNC IWC funded clients,Charges from Independent Providers,998.64,BUCKLAND CARE LTD
Revenue,Adult Services,Adult Social Care,Commissioning & Service Delivery,5105667500,26.02.2021,FNC IWC funded clients,Charges from Independent Providers,"2,338.92",BUCKLAND CARE LTD
Revenue,Adult Services,Adult Social Care,Commissioning & Service Delivery,5105667004,26.02.2021,FNC IWC funded clients,Charges from Independent Providers,236.52,BUCKLAND CARE LTD
Revenue,Adult Services,Adult Social Care,Commissioning & Service Delivery,5105666270,17.02.2021,FNC IWC funded clients,Regular Respite Care,735.84,BUCKLAND CARE LTD
Revenue,Adult Services,Adult Social Care,Commissioning & Service Delivery,5105665616,10.02.2021,FNC IWC funded clients,Charges from Independent Providers,183.96,BUCKLAND CARE LTD
Revenue,Adult Services,Adult Social Care,Commissioning & Service Delivery,5105665594,05.02.2021,FNC IWC funded clients,Charges from Independent Providers,"1,077.48",BUCKLAND CARE LTD
Revenue,Adult Services,Adult Social Care,Commissioning & Service Delivery,5105666270,17.02.2021,FNC IWC funded clients,Charges from Independent Providers,735.84,BUCKLAND CARE LTD
Revenue,Adult Services,Adult Social Care,Commissioning & Service Delivery,5105666270,17.02.2021,FNC IWC funded clients,Charges from Independent Providers,735.84,BUCKLAND CARE LTD
Revenue,Adult Services,Adult Social Care,Commissioning & Service Delivery,5105666270,17.02.2021,FNC IWC funded clients,Charges from Independent Providers,735.84,BUCKLAND CARE LTD
Revenue,Adult Services,Adult Social Care,Commissioning & Service Delivery,5105666270,17.02.2021,FNC IWC funded clients,Charges from Independent Providers,735.84,BUCKLAND CARE LTD
Revenue,Adult Services,Adult Social Care,Commissioning & Service Delivery,5105666270,17.02.2021,FNC IWC funded clients,Charges from Independent Providers,735.84,BUCKLAND CARE LTD
Revenue,Adult Services,Adult Social Care,Commissioning & Service Delivery,5105666270,17.02.2021,FNC IWC funded clients,Charges from Independent Providers,735.84,BUCKLAND CARE LTD
Revenue,Adult Services,Adult Social Care,Commissioning & Service Delivery,5105666270,17.02.2021,FNC IWC funded clients,Charges from Independent Providers,735.84,BUCKLAND CARE LTD
Revenue,Adult Services,Adult Social Care,Commissioning & Service Delivery,5105666270,17.02.2021,FNC IWC funded clients,Charges from Independent Providers,735.84,BUCKLAND CARE LTD
Revenue,Adult Services,Adult Social Care,Commissioning & Service Delivery,5105665302,05.02.2021,FNC IWC funded clients,Charges from Independent Providers,"1,944.72",BUCKLAND CARE LTD
Revenue,Adult Services,Adult Social Care,Commissioning & Service Delivery,5105665302,05.02.2021,FNC IWC funded clients,Charges from Independent Providers,"2,023.56",BUCKLAND CARE LTD
Revenue,Adult Services,Adult Social Care,Commissioning & Service Delivery,5105666270,17.02.2021,CHC Interim Funding (FWP),Charges from Independent Providers,"3,539.48",BUCKLAND CARE LTD
Revenue,Adult Services,Adult Social Care,Commissioning & Service Delivery,5105665302,05.02.2021,CHC Interim Funding (FWP),Charges from Independent Providers,"10,112.80",BUCKLAND CARE LTD
Revenue,Adult Services,Adult Social Care,Physical Support - older people (65+),5105666270,17.02.2021,Physical Support Nursing 65+,Charges from Independent Providers,"2,803.64",BUCKLAND CARE LTD
Revenue,Adult Services,Adult Social Care,Physical Support - older people (65+),5105666270,17.02.2021,Physical Support Nursing 65+,Charges from Independent Providers,"2,803.64",BUCKLAND CARE LTD
Revenue,Adult Services,Adult Social Care,Physical Support - older people (65+),5105666270,17.02.2021,Physical Support Nursing 65+,Charges from Independent Providers,"2,497.32",BUCKLAND CARE LTD
Revenue,Adult Services,Adult Social Care,Physical Support - older people (65+),5105665302,05.02.2021,Physical Support Nursing 65+,Charges from Independent Providers,"7,409.62",BUCKLAND CARE LTD
Revenue,Adult Services,Adult Social Care,Physical Support - older people (65+),5105665594,05.02.2021,Physical Support Nursing 65+,Regular Respite Care,100.13,BUCKLAND CARE LTD
Revenue,Adult Services,Adult Social Care,Physical Support - older people (65+),5105665302,05.02.2021,Physical Support Nursing 65+,Regular Respite Care,"1,001.30",BUCKLAND CARE LTD
Revenue,Adult Services,Adult Social Care,Physical Support - older people (65+),5105665302,05.02.2021,Physical Support Nursing 65+,Regular Respite Care,262.80,BUCKLAND CARE LTD
Revenue,Adult Services,Adult Social Care,Physical Support - older people (65+),5105667500,26.02.2021,Physical Support Nursing 65+,Charges from Independent Providers,"8,911.57",BUCKLAND CARE LTD
Revenue,Adult Services,Adult Social Care,Physical Support - older people (65+),5105666993,26.02.2021,Physical Support Nursing 65+,Charges from Independent Providers,901.17,BUCKLAND CARE LTD
Revenue,Adult Services,Adult Social Care,Physical Support - adults (18-64),5105666270,17.02.2021,Physical Support Nursing 18-64,Charges from Independent Providers,"2,803.64",BUCKLAND CARE LTD
Revenue,Adult Services,Adult Social Care,Physical Support - older people (65+),5105665594,05.02.2021,Physical Support Nursing 65+,Charges from Independent Providers,"4,105.33",BUCKLAND CARE LTD
Revenue,Adult Services,Adult Social Care,Physical Support - older people (65+),5105666270,17.02.2021,Physical Support Nursing 65+,Charges from Independent Providers,"2,803.64",BUCKLAND CARE LTD
Revenue,Adult Services,Adult Social Care,Physical Support - older people (65+),5105666270,17.02.2021,Physical Support Nursing 65+,Charges from Independent Providers,"2,803.64",BUCKLAND CARE LTD
Revenue,Adult Services,Adult Social Care,Physical Support - older people (65+),5105666270,17.02.2021,Physical Support Nursing 65+,Charges from Independent Providers,"2,803.64",BUCKLAND CARE LTD
Revenue,Adult Services,Adult Social Care,Physical Support - older people (65+),5105666270,17.02.2021,Physical Support Nursing 65+,Charges from Independent Providers,"2,803.64",BUCKLAND CARE LTD
Revenue,Adult Services,Adult Social Care,Commissioning & Service Delivery,5105666270,17.02.2021,CHC Nursing Care,Charges from Independent Providers,"3,539.48",BUCKLAND CARE LTD
Revenue,Adult Services,Adult Social Care,Commissioning & Service Delivery,5105666270,17.02.2021,CHC Nursing Care,Charges from Independent Providers,"11,424.00",BUCKLAND CARE LTD
Revenue,Adult Services,Adult Social Care,Commissioning & Service Delivery,5105666270,17.02.2021,CHC Nursing Care,Charges from Independent Providers,"3,539.48",BUCKLAND CARE LTD
Revenue,Adult Services,Adult Social Care,Commissioning & Service Delivery,5105666270,17.02.2021,CHC Nursing Care,Charges from Independent Providers,"3,539.48",BUCKLAND CARE LTD
Revenue,Adult Services,Adult Social Care,Commissioning & Service Delivery,5105665302,05.02.2021,CHC Nursing Care,Charges from Independent Providers,"5,688.45",BUCKLAND CARE LTD
Revenue,Adult Services,Adult Social Care,Commissioning & Service Delivery,5105665302,05.02.2021,CHC Nursing Care,Charges from Independent Providers,"1,137.69",BUCKLAND CARE LTD
Revenue,Adult Services,Adult Social Care,Commissioning & Service Delivery,5105665188,03.02.2021,CHC Nursing Care,Charges from Independent Providers,"5,309.22",BUCKLAND CARE LTD
Revenue,Adult Services,Adult Social Care,Commissioning & Service Delivery,5105666270,17.02.2021,CHC Nursing Care,Charges from Independent Providers,"3,539.48",BUCKLAND CARE LTD
Revenue,Adult Services,Adult Social Care,Commissioning & Service Delivery,5105666270,17.02.2021,CHC Nursing Care,Charges from Independent Providers,"3,539.48",BUCKLAND CARE LTD
Revenue,Adult Services,Adult Social Care,Commissioning & Service Delivery,5105666270,17.02.2021,CHC Nursing Care,Charges from Independent Providers,"3,539.48",BUCKLAND CARE LTD
Revenue,Adult Services,Adult Social Care,Commissioning & Service Delivery,5105666270,17.02.2021,CHC Nursing Care,Charges from Independent Providers,"3,539.48",BUCKLAND CARE LTD
Revenue,Adult Services,Adult Social Care,Physical Support - older people (65+),5105666270,17.02.2021,Physical Support Residential 65+,Charges from Independent Providers,"2,497.32",BUCKLAND CARE LTD
Revenue,Adult Services,Adult Social Care,Physical Support - older people (65+),5105666270,17.02.2021,Physical Support Residential 65+,Charges from Independent Providers,"2,497.32",BUCKLAND CARE LTD
Revenue,Adult Services,Adult Social Care,Physical Support - older people (65+),5105665302,05.02.2021,Physical Support Residential 65+,Charges from Independent Providers,"2,586.51",BUCKLAND CARE LTD
Revenue,Adult Services,Adult Social Care,Support - Memory /Cognition-older people (65+),5105665262,03.02.2021,Memory & Cognition Nursing 65+,Charges from Independent Providers,"7,710.01",BUCKLAND CARE LTD
Revenue,Adult Services,Adult Social Care,Support - Memory /Cognition-older people (65+),5105666270,17.02.2021,Memory & Cognition Nursing 65+,Regular Respite Care,"2,803.64",BUCKLAND CARE LTD
Revenue,Adult Services,Adult Social Care,Support - Memory /Cognition-older people (65+),5105665616,10.02.2021,Memory & Cognition Nursing 65+,Charges from Independent Providers,700.91,BUCKLAND CARE LTD
Revenue,Adult Services,Adult Social Care,Support - Memory /Cognition-older people (65+),5105665616,10.02.2021,Memory & Cognition Nursing 65+,Charges from Independent Providers,183.96,BUCKLAND CARE LTD
Revenue,Adult Services,Adult Social Care,Support - Memory /Cognition-older people (65+),5105665616,10.02.2021,Memory & Cognition Nursing 65+,Charges from Independent Providers,700.91,BUCKLAND CARE LTD
Revenue,Adult Services,Adult Social Care,Support - Memory /Cognition-older people (65+),5105666270,17.02.2021,Memory & Cognition Nursing 65+,Charges from Independent Providers,"3,235.12",BUCKLAND CARE LTD
Revenue,Adult Services,Adult Social Care,Support - Memory /Cognition-older people (65+),5105666270,17.02.2021,Memory & Cognition Nursing 65+,Charges from Independent Providers,"2,803.64",BUCKLAND CARE LTD
Revenue,Adult Services,Adult Social Care,Support - Memory /Cognition-older people (65+),5105667166,26.02.2021,Memory & Cognition Nursing 65+,Charges from Independent Providers,"2,803.64",BUCKLAND CARE LTD
Revenue,Adult Services,Adult Social Care,Physical Support - older people (65+),5105666293,17.02.2021,Physical Support Nursing 65+,Charges from Independent Providers,"3,876.32",BUPA CARE HOME (BNH) LTD
Revenue,Childrens Services,Children's & Education Services,Children Looked After,5105666560,19.02.2021,Special Guardianship Order Costs,Support Children,161.49,REDACTED PERSONAL DATA
Revenue,Childrens Services,Children's & Education Services,Children Looked After,5105665969,12.02.2021,Special Guardianship Order Costs,Support Children,161.49,REDACTED PERSONAL DATA
Revenue,Childrens Services,Children's & Education Services,Children Looked After,5105665337,05.02.2021,Special Guardianship Order Costs,Support Children,161.49,REDACTED PERSONAL DATA
Revenue,Childrens Services,Children's & Education Services,Children Looked After,5105667262,26.02.2021,Special Guardianship Order Costs,Support Children,161.49,REDACTED PERSONAL DATA
Revenue,Childrens Services,Children's & Education Services,Children Looked After,5105667289,26.02.2021,Children placed with Family&Friends,Boarding Out Allowances,244.47,REDACTED PERSONAL DATA
Revenue,Childrens Services,Children's & Education Services,Children Looked After,5105665365,05.02.2021,Children placed with Family&Friends,Boarding Out Allowances,244.47,REDACTED PERSONAL DATA
Revenue,Childrens Services,Children's & Education Services,Children Looked After,5105666588,19.02.2021,Children placed with Family&Friends,Boarding Out Allowances,244.47,REDACTED PERSONAL DATA
Revenue,Childrens Services,Children's & Education Services,Children Looked After,5105665997,12.02.2021,Children placed with Family&Friends,Boarding Out Allowances,244.47,REDACTED PERSONAL DATA
Revenue,Childrens Services,Children's & Education Services,Children Looked After,5105667281,26.02.2021,Adoption Costs,Support Children,161.49,REDACTED PERSONAL DATA
Revenue,Childrens Services,Children's & Education Services,Children Looked After,5105667281,26.02.2021,Adoption Costs,Support Children,168.09,REDACTED PERSONAL DATA
Revenue,Childrens Services,Children's & Education Services,Children Looked After,5105665357,05.02.2021,Adoption Costs,Support Children,161.49,REDACTED PERSONAL DATA
Revenue,Childrens Services,Children's & Education Services,Children Looked After,5105665357,05.02.2021,Adoption Costs,Support Children,168.09,REDACTED PERSONAL DATA
Revenue,Childrens Services,Children's & Education Services,Children Looked After,5105666580,19.02.2021,Adoption Costs,Support Children,161.49,REDACTED PERSONAL DATA
Revenue,Childrens Services,Children's & Education Services,Children Looked After,5105666580,19.02.2021,Adoption Costs,Support Children,168.09,REDACTED PERSONAL DATA
Revenue,Childrens Services,Children's & Education Services,Children Looked After,5105665989,12.02.2021,Adoption Costs,Support Children,161.49,REDACTED PERSONAL DATA
Revenue,Childrens Services,Children's & Education Services,Children Looked After,5105665989,12.02.2021,Adoption Costs,Support Children,168.09,REDACTED PERSONAL DATA
Revenue,Childrens Services,Children's & Education Services,Children Looked After,5105666567,19.02.2021,Special Guardianship Order Costs,Support Children,40.56,REDACTED PERSONAL DATA
Revenue,Childrens Services,Children's & Education Services,Children Looked After,5105665976,12.02.2021,Special Guardianship Order Costs,Support Children,40.56,REDACTED PERSONAL DATA
Revenue,Childrens Services,Children's & Education Services,Children Looked After,5105665344,05.02.2021,Special Guardianship Order Costs,Support Children,40.56,REDACTED PERSONAL DATA
Revenue,Childrens Services,Children's & Education Services,Children Looked After,5105667269,26.02.2021,Special Guardianship Order Costs,Support Children,40.56,REDACTED PERSONAL DATA
Revenue,Childrens Services,Children's & Education Services,Children Looked After,5105667287,26.02.2021,In-house Fostering,Boarding Out Allowances,332.69,REDACTED PERSONAL DATA
Revenue,Childrens Services,Children's & Education Services,Children Looked After,5105667287,26.02.2021,In-house Fostering,Boarding Out Allowances,244.47,REDACTED PERSONAL DATA
Revenue,Childrens Services,Children's & Education Services,Children Looked After,5105667287,26.02.2021,In-house Fostering,Boarding Out Allowances,244.47,REDACTED PERSONAL DATA
Revenue,Childrens Services,Children's & Education Services,Children Looked After,5105666586,19.02.2021,In-house Fostering,Boarding Out Allowances,332.69,REDACTED PERSONAL DATA
Revenue,Childrens Services,Children's & Education Services,Children Looked After,5105666586,19.02.2021,In-house Fostering,Boarding Out Allowances,244.47,REDACTED PERSONAL DATA
Revenue,Childrens Services,Children's & Education Services,Children Looked After,5105666586,19.02.2021,In-house Fostering,Boarding Out Allowances,244.47,REDACTED PERSONAL DATA
Revenue,Childrens Services,Children's & Education Services,Children Looked After,5105665363,05.02.2021,In-house Fostering,Boarding Out Allowances,332.69,REDACTED PERSONAL DATA
Revenue,Childrens Services,Children's & Education Services,Children Looked After,5105665363,05.02.2021,In-house Fostering,Boarding Out Allowances,244.47,REDACTED PERSONAL DATA
Revenue,Childrens Services,Children's & Education Services,Children Looked After,5105665363,05.02.2021,In-house Fostering,Boarding Out Allowances,244.47,REDACTED PERSONAL DATA
Revenue,Childrens Services,Children's & Education Services,Children Looked After,5105665995,12.02.2021,In-house Fostering,Boarding Out Allowances,332.69,REDACTED PERSONAL DATA
Revenue,Childrens Services,Children's & Education Services,Children Looked After,5105665995,12.02.2021,In-house Fostering,Boarding Out Allowances,244.47,REDACTED PERSONAL DATA
Revenue,Childrens Services,Children's & Education Services,Children Looked After,5105665995,12.02.2021,In-house Fostering,Boarding Out Allowances,244.47,REDACTED PERSONAL DATA
Revenue,Childrens Services,Children's & Education Services,Children Looked After,5105666598,19.02.2021,Special Guardianship Order Costs,Support Children,175.78,REDACTED PERSONAL DATA
Revenue,Childrens Services,Children's & Education Services,Children Looked After,5105666007,12.02.2021,Special Guardianship Order Costs,Support Children,175.78,REDACTED PERSONAL DATA
Revenue,Childrens Services,Children's & Education Services,Children Looked After,5105665375,05.02.2021,Special Guardianship Order Costs,Support Children,175.78,REDACTED PERSONAL DATA
Revenue,Childrens Services,Children's & Education Services,Children Looked After,5105667299,26.02.2021,Special Guardianship Order Costs,Support Children,175.78,REDACTED PERSONAL DATA
Revenue,Childrens Services,Children's & Education Services,Children Looked After,5105667250,26.02.2021,In-house Fostering,Boarding Out Allowances,286.47,REDACTED PERSONAL DATA
Revenue,Childrens Services,Children's & Education Services,Children Looked After,5105667250,26.02.2021,In-house Fostering,Boarding Out Allowances,50.00,REDACTED PERSONAL DATA
Revenue,Childrens Services,Children's & Education Services,Children Looked After,5105666548,19.02.2021,In-house Fostering,Boarding Out Allowances,286.47,REDACTED PERSONAL DATA
Revenue,Childrens Services,Children's & Education Services,Children Looked After,5105666548,19.02.2021,In-house Fostering,Boarding Out Allowances,50.00,REDACTED PERSONAL DATA
Revenue,Childrens Services,Children's & Education Services,Children Looked After,5105665325,05.02.2021,In-house Fostering,Boarding Out Allowances,286.47,REDACTED PERSONAL DATA
Revenue,Childrens Services,Children's & Education Services,Children Looked After,5105665325,05.02.2021,In-house Fostering,Boarding Out Allowances,50.00,REDACTED PERSONAL DATA
Revenue,Childrens Services,Children's & Education Services,Children Looked After,5105665957,12.02.2021,In-house Fostering,Boarding Out Allowances,286.47,REDACTED PERSONAL DATA
Revenue,Childrens Services,Children's & Education Services,Children Looked After,5105665957,12.02.2021,In-house Fostering,Boarding Out Allowances,50.00,REDACTED PERSONAL DATA
Revenue,Childrens Services,Children's & Education Services,Children Looked After,5105667256,26.02.2021,In-house Fostering,Boarding Out Allowances,244.47,REDACTED PERSONAL DATA
Revenue,Childrens Services,Children's & Education Services,Children Looked After,5105667256,26.02.2021,In-house Fostering,Boarding Out Allowances,286.47,REDACTED PERSONAL DATA
Revenue,Childrens Services,Children's & Education Services,Children Looked After,5105665331,05.02.2021,In-house Fostering,Boarding Out Allowances,244.47,REDACTED PERSONAL DATA
Revenue,Childrens Services,Children's & Education Services,Children Looked After,5105665331,05.02.2021,In-house Fostering,Boarding Out Allowances,286.47,REDACTED PERSONAL DATA
Revenue,Childrens Services,Children's & Education Services,Children Looked After,5105666554,19.02.2021,In-house Fostering,Boarding Out Allowances,244.47,REDACTED PERSONAL DATA
Revenue,Childrens Services,Children's & Education Services,Children Looked After,5105666554,19.02.2021,In-house Fostering,Boarding Out Allowances,286.47,REDACTED PERSONAL DATA
Revenue,Childrens Services,Children's & Education Services,Children Looked After,5105665963,12.02.2021,In-house Fostering,Boarding Out Allowances,244.47,REDACTED PERSONAL DATA
Revenue,Childrens Services,Children's & Education Services,Children Looked After,5105665963,12.02.2021,In-house Fostering,Boarding Out Allowances,286.47,REDACTED PERSONAL DATA
Revenue,Childrens Services,Children's & Education Services,Children Looked After,5105667246,26.02.2021,In-house Fostering,Boarding Out Allowances,316.19,REDACTED PERSONAL DATA
Revenue,Childrens Services,Children's & Education Services,Children Looked After,5105666544,19.02.2021,In-house Fostering,Boarding Out Allowances,316.19,REDACTED PERSONAL DATA
Revenue,Childrens Services,Children's & Education Services,Children Looked After,5105665321,05.02.2021,In-house Fostering,Boarding Out Allowances,316.19,REDACTED PERSONAL DATA
Revenue,Childrens Services,Children's & Education Services,Children Looked After,5105665953,12.02.2021,In-house Fostering,Boarding Out Allowances,316.19,REDACTED PERSONAL DATA
Revenue,Childrens Services,Children's & Education Services,Children Looked After,5105666575,19.02.2021,Special Guardianship Order Costs,Support Children,200.83,REDACTED PERSONAL DATA
Revenue,Childrens Services,Children's & Education Services,Children Looked After,5105665984,12.02.2021,Special Guardianship Order Costs,Support Children,200.83,REDACTED PERSONAL DATA
Revenue,Childrens Services,Children's & Education Services,Children Looked After,5105665352,05.02.2021,Special Guardianship Order Costs,Support Children,200.83,REDACTED PERSONAL DATA
Revenue,Childrens Services,Children's & Education Services,Children Looked After,5105667276,26.02.2021,Special Guardianship Order Costs,Support Children,200.83,REDACTED PERSONAL DATA
Revenue,Childrens Services,Children's & Education Services,Children Looked After,5105665967,12.02.2021,Adoption Costs,Support Children,168.39,REDACTED PERSONAL DATA
Revenue,Childrens Services,Children's & Education Services,Children Looked After,5105667260,26.02.2021,Adoption Costs,Support Children,168.39,REDACTED PERSONAL DATA
Revenue,Childrens Services,Children's & Education Services,Children Looked After,5105665335,05.02.2021,Adoption Costs,Support Children,168.39,REDACTED PERSONAL DATA
Revenue,Childrens Services,Children's & Education Services,Children Looked After,5105666558,19.02.2021,Adoption Costs,Support Children,168.39,REDACTED PERSONAL DATA
Revenue,Childrens Services,Children's & Education Services,Other Education and Community Budget,5105665103,03.02.2021,Learning & Development Running Costs,Gas,14.71,CALOR GAS LIMITED
Revenue,Childrens Services,Children's & Education Services,Other Education and Community Budget,5105665601,10.02.2021,Learning & Development Running Costs,Gas,872.30,CALOR GAS LIMITED
Revenue,Childrens Services,Children's & Education Services,Children Looked After,5105667142,26.02.2021,NHS Funded Placements,Charges from Independent Providers,48.23,CAMBIAN ASPERGER SYNDROME SERVICES LTD
Revenue,Childrens Services,Children's & Education Services,Children Looked After,5105667140,24.02.2021,NHS Funded Placements,Charges from Independent Providers,490.92,CAMBIAN ASPERGER SYNDROME SERVICES LTD
Revenue,Childrens Services,Children's & Education Services,Management & Support Services,5105667142,26.02.2021,Pre 16 Independ. & Non-Maint. Special Schls & Independ. Specialist Provision,Charges from Independent Providers,334.33,CAMBIAN ASPERGER SYNDROME SERVICES LTD
Revenue,Childrens Services,Children's & Education Services,Management & Support Services,5105667140,24.02.2021,Pre 16 Independ. & Non-Maint. Special Schls & Independ. Specialist Provision,Charges from Independent Providers,"3,402.89",CAMBIAN ASPERGER SYNDROME SERVICES LTD
Revenue,Childrens Services,Children's & Education Services,Post-16 Provision,5105664246,24.02.2021,Post 16 Independ. & Non-Maint. Special Schls & Independ. Specialist Provision,Charges from Independent Providers,-33.33,CAMBIAN ASPERGER SYNDROME SERVICES LTD
Revenue,Childrens Services,Children's & Education Services,Post-16 Provision,5105666749,18.02.2021,Post 16 Independ. & Non-Maint. Special Schls & Independ. Specialist Provision,Charges from Independent Providers,"-3,763.62",CAMBIAN ASPERGER SYNDROME SERVICES LTD
Revenue,Childrens Services,Children's & Education Services,Children Looked After,5105667140,24.02.2021,Purchased Residential,Charges from Independent Providers,"12,097.23",CAMBIAN ASPERGER SYNDROME SERVICES LTD
Revenue,Childrens Services,Children's & Education Services,Children Looked After,5105667142,26.02.2021,Purchased Residential,Charges from Independent Providers,"1,188.52",CAMBIAN ASPERGER SYNDROME SERVICES LTD
Revenue,Adult Services,Adult Social Care,Mental Health Support - adults (18-64),5105664246,24.02.2021,Mental Health Residential 18-64,Charges from Independent Providers,-33.33,CAMBIAN ASPERGER SYNDROME SERVICES LTD
Revenue,Adult Services,Adult Social Care,Mental Health Support - adults (18-64),5105666748,18.02.2021,Mental Health Residential 18-64,Charges from Independent Providers,"12,978.00",CAMBIAN ASPERGER SYNDROME SERVICES LTD
Revenue,Adult Services,Adult Social Care,Mental Health Support - adults (18-64),5105666749,18.02.2021,Mental Health Residential 18-64,Charges from Independent Providers,"-8,825.04",CAMBIAN ASPERGER SYNDROME SERVICES LTD
Revenue,Adult Services,Adult Social Care,Mental Health Support - adults (18-64),5105666749,18.02.2021,Mental Health Residential 18-64,Charges from Independent Providers,-389.34,CAMBIAN ASPERGER SYNDROME SERVICES LTD
Revenue,Childrens Services,Children's & Education Services,Children Looked After,5105665543,05.02.2021,Purchased Residential,Charges from Independent Providers,"15,800.12",CAMBIAN CHILDCARE LTD
Revenue,Childrens Services,Children's & Education Services,Children Looked After,5105665545,05.02.2021,Purchased Residential,Charges from Independent Providers,"16,800.00",CAMBIAN CHILDCARE LTD
Revenue,Childrens Services,Children's & Education Services,Children Looked After,5105667441,26.02.2021,Purchased Residential,Charges from Independent Providers,"2,421.42",CAMBIAN CHILDCARE LTD
Revenue,Childrens Services,Children's & Education Services,Children Looked After,5105667443,26.02.2021,Purchased Residential,Charges from Independent Providers,"13,950.09",CAMBIAN CHILDCARE LTD
Revenue,Childrens Services,Children's & Education Services,Management & Support Services,5105665544,05.02.2021,Independent Schools Non-Special Educational Needs,Charges from Independent Providers,"3,200.12",CAMBIAN CHILDCARE LTD
Revenue,Neighbourhoods,Highways and Transport Services,"Airports, Harbours & Toll Facilities",5400002919,26.02.2021,Ferry Operation,Operational Equipment,147.99,CAPCOM LAND SEA & AIR COMMUN.LTD
Revenue,Childrens Services,Children's & Education Services,Family Support Services,5105666119,12.02.2021,S17 Disabled Children,Support Children,395.13,CARE CONNECT IOW CIC
Revenue,Childrens Services,Children's & Education Services,Family Support Services,5105666120,12.02.2021,S17 Disabled Children,Support Children,348.00,CARE CONNECT IOW CIC
Revenue,Childrens Services,Children's & Education Services,Family Support Services,5105666750,19.02.2021,Short Breaks,Charges from Independent Providers,"1,695.00",CARE CONNECT IOW CIC
Revenue,Childrens Services,Children's & Education Services,Family Support Services,5105666752,19.02.2021,Short Breaks,Charges from Independent Providers,438.08,CARE CONNECT IOW CIC
Revenue,Adult Services,Adult Social Care,Social Support - Support for Carer,5105666211,17.02.2021,BCF Carers Services,Grants to External Bodies,"70,311.07",CARERS IW
Revenue,Neighbourhoods,Cultural and Related Services,Recreation and Sport,5105667408,26.02.2021,Medina Leisure Centre,Payment to Private Contractors,290.00,CARETECH UK LTD
Revenue,Neighbourhoods,Cultural and Related Services,Recreation and Sport,5105667472,26.02.2021,The Heights,Payment to Private Contractors,120.00,CARETECH UK LTD
Revenue,Public Health,Public Health,Sexual Health,5105666492,19.02.2021,Long Acting Reversible Contraception,Payment to Private Contractors,"3,645.00",CARISBROOKE HEALTH CENTRE
Revenue,Resources,Central Services,Support Services,5105665889,12.02.2021,Litigation Costs,Legal Fees - Other Parties,"2,280.00","PUMP COURT CHAMBERS, WINCHESTER"
Revenue,Resources,Central Services,Support Services,5105665889,12.02.2021,Litigation Costs,Legal Fees - Other Parties,300.00,"PUMP COURT CHAMBERS, WINCHESTER"
Revenue,Childrens Services,Children's & Education Services,Special Schools & Alternative Provision,5105666412,17.02.2021,Island Learning Centre,Schools Catering Contract,"1,260.00",CATER LINK LIMITED
Revenue,Adult Services,Adult Social Care,Learning Disab Supp (to be reallocated),5105666943,24.02.2021,Plean Dene,Minor Works,83.00,CATER WIGHT
Revenue,Adult Services,Adult Social Care,Central Codes (to be reallocated),5105666727,19.02.2021,Adelaide Resource Centre,Operational Equipment,135.88,CATER WIGHT
Revenue,Adult Services,Adult Social Care,Assistive Equipment & Technology,5105665491,05.02.2021,Community Equipment Store,Operational Equipment,576.25,CENTROBED LTD
Revenue,Regeneration,Planning services,Economic Development,5105665656,10.02.2021,Branstone Farm Project,Professional Services,"2,525.00",CGS CIVILS LTD
Revenue,Neighbourhoods,Cultural and Related Services,Open Spaces,5105665231,03.02.2021,Rights of Way Operations,Sundry Office Expenses,15.00,CHANT LOCK & SECURITY SERVICE
Revenue,Neighbourhoods,Cultural and Related Services,Open Spaces,5105665286,03.02.2021,Rights of Way Operations,Sundry Office Expenses,562.83,CHANT LOCK & SECURITY SERVICE
Revenue,Childrens Services,Children's & Education Services,Special Schools & Alternative Provision,5105666454,17.02.2021,Island Learning Centre,Security of Buildings,90.07,CHANT LOCK & SECURITY SERVICE
Revenue,Adult Services,Adult Social Care,Central Codes (to be reallocated),5105667214,26.02.2021,Gouldings Resource Centre,Catering Purchases,82.90,CHAPEL NURSERIES
Revenue,Adult Services,Adult Social Care,Central Codes (to be reallocated),5105667218,26.02.2021,Gouldings Resource Centre,Catering Purchases,55.10,CHAPEL NURSERIES
Revenue,Adult Services,Adult Social Care,Central Codes (to be reallocated),5105665602,10.02.2021,Gouldings Resource Centre,Catering Purchases,79.80,CHAPEL NURSERIES
Revenue,Adult Services,Adult Social Care,Physical Support - older people (65+),5105665741,10.02.2021,Physical Support Residential 65+,Charges from Independent Providers,"5,618.97",REDACTED PERSONAL DATA
Revenue,Neighbourhoods,Planning services,Management & Support Services,5105664482,10.02.2021,Head of Place,Advertising & Publicity,875.00,CHARTERED INSTITUTION OF HIGHWAYS
Revenue,Childrens Services,Children's & Education Services,Family Support Services,5105666878,19.02.2021,S17 Child Protection,Support Children,162.00,CHATTERBOX NURSERY LTD
Revenue,Childrens Services,Children's & Education Services,Children Looked After,5105666529,19.02.2021,Support for Looked After Children,Support Children,"1,827.00",CHATTERBOX NURSERY LTD
Revenue,Resources,Central Services,Support Services,5105666855,19.02.2021,Staff Benefits,Payment to Private Contractors,124.00,CHATTERBOX NURSERY LTD
Revenue,Adult Services,Adult Social Care,Support - Memory /Cognition-older people (65+),5105666309,17.02.2021,Memory & Cognition Residential 65+,Charges from Independent Providers,"3,000.20",CHD CARE LTD
Revenue,Adult Services,Adult Social Care,Support - Memory /Cognition-older people (65+),5105666309,17.02.2021,Memory & Cognition Residential 65+,Charges from Independent Providers,405.16,CHD CARE LTD
Revenue,Neighbourhoods,Highways and Transport Services,"Airports, Harbours & Toll Facilities",5105667475,26.02.2021,Ventnor Haven - General,Payment to Private Contractors,"14,570.00",CHEETAH MARINE LLP
Revenue,Childrens Services,Children's & Education Services,Children Looked After,5105666085,12.02.2021,Special Guardianship Order Costs,Support Children,223.42,REDACTED PERSONAL DATA
Revenue,Childrens Services,Children's & Education Services,Children Looked After,5105666677,19.02.2021,Special Guardianship Order Costs,Support Children,223.42,REDACTED PERSONAL DATA
Revenue,Childrens Services,Children's & Education Services,Children Looked After,5105665453,05.02.2021,Special Guardianship Order Costs,Support Children,223.42,REDACTED PERSONAL DATA
Revenue,Childrens Services,Children's & Education Services,Children Looked After,5105667377,26.02.2021,Special Guardianship Order Costs,Support Children,223.42,REDACTED PERSONAL DATA
Revenue,Adult Services,Adult Social Care,Social Support - Social Isolation/Other,5105667061,24.02.2021,Social Isolation/Other Residential,Charges from Independent Providers,"1,231.48",CHERRY TREES I.W. LTD
Revenue,Adult Services,Central Services,Emergency Planning,5105666998,24.02.2021,NHS C19 Residential,Charges from Independent Providers,"1,851.52",CHERRY TREES I.W. LTD
Revenue,Adult Services,Central Services,Emergency Planning,5105665612,10.02.2021,NHS C19 Residential,Charges from Independent Providers,"3,124.44",CHERRY TREES I.W. LTD
Revenue,Adult Services,Central Services,Emergency Planning,5105667163,24.02.2021,NHS C19 Residential,Charges from Independent Providers,115.72,CHERRY TREES I.W. LTD
Revenue,Adult Services,Central Services,Emergency Planning,5105667163,24.02.2021,NHS C19 Residential,Charges from Independent Providers,115.72,CHERRY TREES I.W. LTD
Revenue,Adult Services,Adult Social Care,Physical Support - older people (65+),5105666245,17.02.2021,Physical Support Residential 65+,Charges from Independent Providers,"2,124.08",CHERRY TREES I.W. LTD
Revenue,Adult Services,Adult Social Care,Physical Support - older people (65+),5105666245,17.02.2021,Physical Support Residential 65+,Charges from Independent Providers,"2,028.32",CHERRY TREES I.W. LTD
Revenue,Adult Services,Adult Social Care,Physical Support - older people (65+),5105666245,17.02.2021,Physical Support Residential 65+,Charges from Independent Providers,"2,028.32",CHERRY TREES I.W. LTD
Revenue,Adult Services,Adult Social Care,Physical Support - older people (65+),5105666245,17.02.2021,Physical Support Residential 65+,Charges from Independent Providers,"2,124.08",CHERRY TREES I.W. LTD
Revenue,Adult Services,Adult Social Care,Physical Support - older people (65+),5105666245,17.02.2021,Physical Support Residential 65+,Charges from Independent Providers,"2,028.32",CHERRY TREES I.W. LTD
Revenue,Adult Services,Adult Social Care,Physical Support - older people (65+),5105666245,17.02.2021,Physical Support Residential 65+,Charges from Independent Providers,"2,497.32",CHERRY TREES I.W. LTD
Revenue,Adult Services,Adult Social Care,Physical Support - older people (65+),5105665861,10.02.2021,Physical Support Residential 65+,Crisis Support for Carers,531.02,CHERRY TREES I.W. LTD
Revenue,Adult Services,Adult Social Care,Physical Support - older people (65+),5105667163,24.02.2021,Physical Support Residential 65+,Charges from Independent Providers,75.86,CHERRY TREES I.W. LTD
Revenue,Adult Services,Adult Social Care,Physical Support - older people (65+),5105667163,24.02.2021,Physical Support Residential 65+,Charges from Independent Providers,"2,229.75",CHERRY TREES I.W. LTD
Revenue,Adult Services,Adult Social Care,Physical Support - older people (65+),5105665861,10.02.2021,Physical Support Residential 65+,Charges from Independent Providers,"3,717.14",CHERRY TREES I.W. LTD
Revenue,Resources,Highways and Transport Services,Off Street Parking,5105666437,17.02.2021,Parking Services,Operational Equipment,600.00,CHIPSIDE LIMITED
Revenue,Neighbourhoods,Highways and Transport Services,Parking Services,5105667409,26.02.2021,Parking Attendants,Operational Equipment,20.00,CHIPSIDE LIMITED
Revenue,Neighbourhoods,Highways and Transport Services,Parking Services,5105667409,26.02.2021,Parking Attendants,Operational Equipment,650.00,CHIPSIDE LIMITED
Revenue,Adult Services,Adult Social Care,Commissioning & Service Delivery,5105666324,17.02.2021,CHC Residential Care,Charges from Independent Providers,"11,537.68",CHOICE CARE (WOODLANDS)
Revenue,Adult Services,Adult Social Care,Learning Disability Suppt-adults (18-64),5105666311,17.02.2021,Learning Disability Residential 18-64,Charges from Independent Providers,"7,076.44",CHOICE LTD
Revenue,Childrens Services,Children's & Education Services,Special Schools & Alternative Provision,5105667174,24.02.2021,Island Learning Centre,Bought in Prof Services - Curriculum (Schools),70.00,REDACTED PERSONAL DATA
Revenue,Resources,Central Services,Support Services,5105667417,26.02.2021,Financial Management Overheads,Publications,"6,400.00",CIPFA BUSINESS LTD
Revenue,Resources,Central Services,Support Services,5105667418,26.02.2021,Financial Management Overheads,Professional Subscriptions,"3,020.00",CIPFA BUSINESS LTD
Revenue,Childrens Services,Children's & Education Services,Safeguarding Children/Young Peoples Svs,5105666930,24.02.2021,Childrens Assess & Safeguarding Team,Client Expenses,"4,320.00",CIRCLES SOUTH EAST
Revenue,Childrens Services,Children's & Education Services,Other Education and Community Budget,5105665660,12.02.2021,Learning & Development Running Costs,Licences,42.00,CITY AND GUILDS
Revenue,Childrens Services,Children's & Education Services,Other Education and Community Budget,5105665661,12.02.2021,Learning & Development Running Costs,Licences,42.00,CITY AND GUILDS
Revenue,Resources,Central Services,Central Services to the Public,5105665278,03.02.2021,Electoral Registration Office,Printing Costs,"1,215.45",ELECTORAL REFORM SERVICES
Revenue,Resources,Central Services,Central Services to the Public,5105666746,19.02.2021,Electoral Registration Canvassing,Printing Costs,"1,256.64",ELECTORAL REFORM SERVICES
Revenue,Resources,Central Services,Central Services to the Public,5105666747,19.02.2021,Electoral Registration Canvassing,Printing Costs,851.17,ELECTORAL REFORM SERVICES
Revenue,Resources,Central Services,Support Services,5105665246,10.02.2021,ICT Contracts,Computer Maintenance,"-9,531.67",CIVICA UK LTD
Revenue,Resources,Central Services,Support Services,5105665519,10.02.2021,ICT Contracts,Computer Maintenance,"9,531.67",CIVICA UK LTD
Revenue,Resources,Central Services,Support Services,5105667025,24.02.2021,ICT Contracts,Computer Maintenance,"55,350.00",CIVICA UK LTD
Revenue,Resources,Central Services,Support Services,5105666353,17.02.2021,Aylesford Access 420,Professional Services,"6,000.00",CLYDE & CO LLP
Revenue,Resources,Central Services,Support Services,5105666354,17.02.2021,Aylesford Access 420,Professional Services,556.00,CLYDE & CO LLP
Revenue,Adult Services,Adult Social Care,Support - Memory /Cognition-older people (65+),5105666307,17.02.2021,Memory & Cognition Residential 65+,Charges from Independent Providers,"2,833.32",REDACTED PERSONAL DATA
Revenue,Resources,Children's & Education Services,Other Education and Community Budget,5105665745,24.02.2021,Specialist Cross-Council Training,Training,"1,291.50",COLLEGE OF LAW SERVICES
Revenue,Adult Services,Adult Social Care,Social Care Activities,5105665567,05.02.2021,DoLS/MCA,Professional Services,300.00,REDACTED PERSONAL DATA
Revenue,Resources,Adult Social Care,Information & Early Intervention,5105665598,10.02.2021,Voluntary & Community Sector,Payments to Voluntary and Other Associations,"19,500.00",COMMUNITY ACTION ISLE OF WIGHT
Revenue,Resources,Adult Social Care,Information & Early Intervention,5105665599,10.02.2021,Voluntary & Community Sector,Payments to Voluntary and Other Associations,"19,500.00",COMMUNITY ACTION ISLE OF WIGHT
Capital,Adult Services,Capital,Capital,5105666719,19.02.2021,S106 Capital Projects,External Design and Supervision Fees,"1,845.95",COMMUNITY ACTION ISLE OF WIGHT
Capital,Adult Services,Capital,Capital,5105666720,19.02.2021,S106 Capital Projects,External Design and Supervision Fees,"1,875.75",COMMUNITY ACTION ISLE OF WIGHT
Revenue,Childrens Services,Children's & Education Services,Family Support Services,5105664997,10.02.2021,Short Breaks,Charges from Independent Providers,"2,720.00",COMMUNITY ACTION ISLE OF WIGHT
Revenue,Adult Services,Adult Social Care,Learning Disability Suppt-adults (18-64),5105666329,17.02.2021,Learning Disability Residential 18-64,Charges from Independent Providers,"10,643.36",COMMUNITY HOMES IN INTENSIVE CARE
Revenue,Childrens Services,Children's & Education Services,Management & Support Services,5105667038,26.02.2021,Special Discretionary Grants,Schools Learn Res - Specialised Edu Equip,37.80,CONNEVANS LTD
Revenue,Childrens Services,Children's & Education Services,Management & Support Services,5105667038,26.02.2021,Specialist Teacher Advisors,Maintenance of Operational Equipment,3.90,CONNEVANS LTD
Revenue,Neighbourhoods,Environmental & Regulatory Services,Coast Protection,5105666713,19.02.2021,Castle Haven Coast Protection Scheme,Payment to Private Contractors,"2,450.80",HARRIER PNEUMATICS LIMITED
Revenue,Adult Services,Adult Social Care,Assistive Equipment & Technology,5105665758,10.02.2021,Community Equipment Store,Operational Equipment,323.75,CONTEGO SAFETY SOLUTIONS LTD
Revenue,Childrens Services,Children's & Education Services,Children Looked After,5105666717,19.02.2021,Beaulieu House,Clothing & Laundry,163.16,CONTEGO SAFETY SOLUTIONS LTD
Revenue,Adult Services,Adult Social Care,Central Codes (to be reallocated),5105665170,03.02.2021,Community Reablement,Clothing & Laundry,67.60,CONTEGO SAFETY SOLUTIONS LTD
Revenue,Adult Services,Adult Social Care,Central Codes (to be reallocated),5105665170,03.02.2021,Community Reablement,Clothing & Laundry,67.60,CONTEGO SAFETY SOLUTIONS LTD
Revenue,Adult Services,Adult Social Care,Central Codes (to be reallocated),5105665170,03.02.2021,Community Reablement,Clothing & Laundry,101.40,CONTEGO SAFETY SOLUTIONS LTD
Revenue,Adult Services,Adult Social Care,Central Codes (to be reallocated),5105665170,03.02.2021,Community Reablement,Clothing & Laundry,67.60,CONTEGO SAFETY SOLUTIONS LTD
Revenue,Adult Services,Adult Social Care,Central Codes (to be reallocated),5105666218,17.02.2021,Community Reablement,Clothing & Laundry,32.10,CONTEGO SAFETY SOLUTIONS LTD
Revenue,Childrens Services,Children's & Education Services,Other Education and Community Budget,5105665600,10.02.2021,Commissioning ACL,Grants to External Bodies,"2,000.00",CORALESCE LTD
Revenue,Childrens Services,Children's & Education Services,Family Support Services,5105666963,24.02.2021,Childrens Rights & Participation,Support Children,"4,950.00",CORAM VOICE
Revenue,Adult Services,Adult Social Care,Mental Health Support-older people (65+),5105666273,17.02.2021,Mental Health Residential 65+,Charges from Independent Providers,"2,028.32",CORNELIA MANOR
Revenue,Adult Services,Adult Social Care,Physical Support - adults (18-64),5105665936,12.02.2021,Physical Support Residential 18-64,Charges from Independent Providers,"1,521.24",CORNELIA MANOR
Revenue,Adult Services,Adult Social Care,Physical Support - adults (18-64),5105667006,24.02.2021,Physical Support Residential 18-64,Charges from Independent Providers,507.08,CORNELIA MANOR
Revenue,Adult Services,Adult Social Care,Support - Memory /Cognition-older people (65+),5105666273,17.02.2021,Memory & Cognition Residential 65+,Charges from Independent Providers,"2,497.32",CORNELIA MANOR
Revenue,Adult Services,Adult Social Care,Support - Memory /Cognition-older people (65+),5105666273,17.02.2021,Memory & Cognition Residential 65+,Charges from Independent Providers,"2,124.08",CORNELIA MANOR
Revenue,Adult Services,Central Services,Emergency Planning,5105665264,03.02.2021,NHS C19 Residential,Charges from Independent Providers,"3,587.32",CORNELIA MANOR
Revenue,Adult Services,Adult Social Care,Physical Support - older people (65+),5105666273,17.02.2021,Physical Support Residential 65+,Charges from Independent Providers,"2,497.32",CORNELIA MANOR
Revenue,Adult Services,Adult Social Care,Physical Support - older people (65+),5105666273,17.02.2021,Physical Support Residential 65+,Charges from Independent Providers,"2,028.32",CORNELIA MANOR
Revenue,Adult Services,Adult Social Care,Physical Support - older people (65+),5105666273,17.02.2021,Physical Support Residential 65+,Charges from Independent Providers,"2,497.32",CORNELIA MANOR
Revenue,Adult Services,Adult Social Care,Physical Support - older people (65+),5105667503,26.02.2021,Physical Support Residential 65+,Crisis Support for Carers,624.33,CORNELIA MANOR
Revenue,Adult Services,Adult Social Care,Physical Support - older people (65+),5105667503,26.02.2021,Physical Support Residential 65+,Charges from Independent Providers,"1,668.92",CORNELIA MANOR
Revenue,Adult Services,Adult Social Care,Physical Support - older people (65+),5105666273,17.02.2021,Physical Support Residential 65+,Charges from Independent Providers,"2,497.32",CORNELIA MANOR
Revenue,Adult Services,Adult Social Care,Physical Support - older people (65+),5105666273,17.02.2021,Physical Support Residential 65+,Charges from Independent Providers,"2,497.32",CORNELIA MANOR
Revenue,Adult Services,Adult Social Care,Physical Support - older people (65+),5105666273,17.02.2021,Physical Support Residential 65+,Charges from Independent Providers,"2,497.32",CORNELIA MANOR
Revenue,Adult Services,Adult Social Care,Physical Support - older people (65+),5105666273,17.02.2021,Physical Support Residential 65+,Charges from Independent Providers,"2,124.08",CORNELIA MANOR
Revenue,Adult Services,Adult Social Care,Physical Support - older people (65+),5105666273,17.02.2021,Physical Support Residential 65+,Charges from Independent Providers,"2,497.32",CORNELIA MANOR
Revenue,Childrens Services,Children's & Education Services,Children Looked After,5105664914,03.02.2021,Unaccompanied Asylum Seeker Children,Charges from Independent Providers,"5,038.29",CORNERSTONE ACCOMODATION LTD
Revenue,Childrens Services,Children's & Education Services,Children Looked After,5105664913,03.02.2021,Leaving Care Costs,Charges from Independent Providers,"6,428.57",CORNERSTONE ACCOMODATION LTD
Revenue,Regeneration,Planning services,Environmental Initiatives,5105666875,19.02.2021,IOW Catchment Partnership,Advertising & Publicity,83.33,COUNTRY LAND AND BUSINESS
Revenue,Childrens Services,Children's & Education Services,Children Looked After,5400002937,26.02.2021,Leaving Care Costs,Payments to/Aid Provided to Clients,150.00,COUNTRYWIDE RESIDENTIAL LETTINGS
Revenue,Adult Services,Housing Services,Homelessness,5105666485,19.02.2021,Homeless Shelter (Barton),Professional Services,"1,772.50",COWAN CONSULTANCY LTD
Revenue,Adult Services,Housing Services,Homelessness,5105666483,17.02.2021,Homeless Shelter (Barton),Professional Services,"-1,772.50",COWAN CONSULTANCY LTD
Revenue,Adult Services,Housing Services,Homelessness,5105665690,17.02.2021,Homeless Shelter (Barton),Professional Services,"1,772.50",COWAN CONSULTANCY LTD
Revenue,Neighbourhoods,Highways and Transport Services,"Airports, Harbours & Toll Facilities",5105667162,24.02.2021,Ferry Operation,Payment to Private Contractors,"10,187.10",COWES HARBOUR COMMISSION
Revenue,Neighbourhoods,Highways and Transport Services,"Airports, Harbours & Toll Facilities",5105665206,03.02.2021,Newport Harbour Account,Payment to Private Contractors,71.40,COWES HARBOUR COMMISSION
Revenue,Adult Services,Adult Social Care,Assistive Equipment & Technology,5105665216,03.02.2021,Community Equipment Store,Operational Equipment,"2,725.00",CURA PRODUCTS LIMITED
Revenue,Adult Services,Adult Social Care,Commissioning & Service Delivery,5105666328,17.02.2021,CHC Residential Care,Charges from Independent Providers,"10,677.52",CYGNET LEARNING DISABILITIES
Revenue,Adult Services,Adult Social Care,Commissioning & Service Delivery,5105666328,17.02.2021,CHC Residential Care,Charges from Independent Providers,675.64,CYGNET LEARNING DISABILITIES
Revenue,Childrens Services,Children's & Education Services,Children Looked After,5105667309,26.02.2021,Children placed with Family&Friends,Boarding Out Allowances,244.47,REDACTED PERSONAL DATA
Revenue,Childrens Services,Children's & Education Services,Children Looked After,5105667309,26.02.2021,Children placed with Family&Friends,Boarding Out Allowances,244.47,REDACTED PERSONAL DATA
Revenue,Childrens Services,Children's & Education Services,Children Looked After,5105667309,26.02.2021,Children placed with Family&Friends,Boarding Out Allowances,286.47,REDACTED PERSONAL DATA
Revenue,Childrens Services,Children's & Education Services,Children Looked After,5105665385,05.02.2021,Children placed with Family&Friends,Boarding Out Allowances,244.47,REDACTED PERSONAL DATA
Revenue,Childrens Services,Children's & Education Services,Children Looked After,5105665385,05.02.2021,Children placed with Family&Friends,Boarding Out Allowances,244.47,REDACTED PERSONAL DATA
Revenue,Childrens Services,Children's & Education Services,Children Looked After,5105665385,05.02.2021,Children placed with Family&Friends,Boarding Out Allowances,286.47,REDACTED PERSONAL DATA
Revenue,Childrens Services,Children's & Education Services,Children Looked After,5105666608,19.02.2021,Children placed with Family&Friends,Boarding Out Allowances,244.47,REDACTED PERSONAL DATA
Revenue,Childrens Services,Children's & Education Services,Children Looked After,5105666608,19.02.2021,Children placed with Family&Friends,Boarding Out Allowances,244.47,REDACTED PERSONAL DATA
Revenue,Childrens Services,Children's & Education Services,Children Looked After,5105666608,19.02.2021,Children placed with Family&Friends,Boarding Out Allowances,286.47,REDACTED PERSONAL DATA
Revenue,Childrens Services,Children's & Education Services,Children Looked After,5105666017,12.02.2021,Children placed with Family&Friends,Boarding Out Allowances,244.47,REDACTED PERSONAL DATA
Revenue,Childrens Services,Children's & Education Services,Children Looked After,5105666017,12.02.2021,Children placed with Family&Friends,Boarding Out Allowances,244.47,REDACTED PERSONAL DATA
Revenue,Childrens Services,Children's & Education Services,Children Looked After,5105666017,12.02.2021,Children placed with Family&Friends,Boarding Out Allowances,286.47,REDACTED PERSONAL DATA
Revenue,Adult Services,Housing Services,Homelessness,5105666814,19.02.2021,Private Rented Sector Leasing Scheme,Accommodation Costs - Leaseholder Payments,859.95,REDACTED PERSONAL DATA
Revenue,Childrens Services,Children's & Education Services,Children Looked After,5105665954,12.02.2021,Adoption Costs,Support Children,207.73,REDACTED PERSONAL DATA
Revenue,Childrens Services,Children's & Education Services,Children Looked After,5105667247,26.02.2021,Adoption Costs,Support Children,207.73,REDACTED PERSONAL DATA
Revenue,Childrens Services,Children's & Education Services,Children Looked After,5105665322,05.02.2021,Adoption Costs,Support Children,207.73,REDACTED PERSONAL DATA
Revenue,Childrens Services,Children's & Education Services,Children Looked After,5105666545,19.02.2021,Adoption Costs,Support Children,207.73,REDACTED PERSONAL DATA
Revenue,Adult Services,Housing Services,Homelessness,5105666817,19.02.2021,Private Rented Sector Leasing Scheme,Accommodation Costs - Leaseholder Payments,788.67,REDACTED PERSONAL DATA
Revenue,Childrens Services,Children's & Education Services,Children Looked After,5105665943,12.02.2021,Adoption Costs,Support Children,168.39,REDACTED PERSONAL DATA
Revenue,Childrens Services,Children's & Education Services,Children Looked After,5105667236,26.02.2021,Adoption Costs,Support Children,168.39,REDACTED PERSONAL DATA
Revenue,Childrens Services,Children's & Education Services,Children Looked After,5105665311,05.02.2021,Adoption Costs,Support Children,168.39,REDACTED PERSONAL DATA
Revenue,Childrens Services,Children's & Education Services,Children Looked After,5105666534,19.02.2021,Adoption Costs,Support Children,168.39,REDACTED PERSONAL DATA
Revenue,Childrens Services,Children's & Education Services,Children Looked After,5105666534,19.02.2021,Special Guardianship Order Costs,Support Children,228.53,REDACTED PERSONAL DATA
Revenue,Childrens Services,Children's & Education Services,Children Looked After,5105665943,12.02.2021,Special Guardianship Order Costs,Support Children,228.53,REDACTED PERSONAL DATA
Revenue,Childrens Services,Children's & Education Services,Children Looked After,5105665311,05.02.2021,Special Guardianship Order Costs,Support Children,228.53,REDACTED PERSONAL DATA
Revenue,Childrens Services,Children's & Education Services,Children Looked After,5105667236,26.02.2021,Special Guardianship Order Costs,Support Children,228.53,REDACTED PERSONAL DATA
Revenue,Adult Services,Housing Services,Homelessness,5105666834,19.02.2021,Private Rented Sector Leasing Scheme,Accommodation Costs - Leaseholder Payments,678.90,REDACTED PERSONAL DATA
Revenue,Adult Services,Housing Services,Homelessness,5105666816,19.02.2021,Private Rented Sector Leasing Scheme,Accommodation Costs - Leaseholder Payments,814.71,REDACTED PERSONAL DATA
Revenue,Adult Services,Housing Services,Homelessness,5105666816,19.02.2021,Private Rented Sector Leasing Scheme,Accommodation Costs - Leaseholder Payments,888.33,REDACTED PERSONAL DATA
Revenue,Childrens Services,Children's & Education Services,Children Looked After,5105667340,26.02.2021,In-house Fostering,Boarding Out Allowances,286.47,REDACTED PERSONAL DATA
Revenue,Childrens Services,Children's & Education Services,Children Looked After,5105667340,26.02.2021,In-house Fostering,Boarding Out Allowances,244.47,REDACTED PERSONAL DATA
Revenue,Childrens Services,Children's & Education Services,Children Looked After,5105665415,05.02.2021,In-house Fostering,Boarding Out Allowances,244.47,REDACTED PERSONAL DATA
Revenue,Childrens Services,Children's & Education Services,Children Looked After,5105665415,05.02.2021,In-house Fostering,Boarding Out Allowances,244.47,REDACTED PERSONAL DATA
Revenue,Childrens Services,Children's & Education Services,Children Looked After,5105666047,12.02.2021,In-house Fostering,Boarding Out Allowances,286.47,REDACTED PERSONAL DATA
Revenue,Childrens Services,Children's & Education Services,Children Looked After,5105666047,12.02.2021,In-house Fostering,Boarding Out Allowances,244.47,REDACTED PERSONAL DATA
Revenue,Childrens Services,Children's & Education Services,Children Looked After,5105666638,19.02.2021,In-house Fostering,Boarding Out Allowances,286.47,REDACTED PERSONAL DATA
Revenue,Childrens Services,Children's & Education Services,Children Looked After,5105666638,19.02.2021,In-house Fostering,Boarding Out Allowances,244.47,REDACTED PERSONAL DATA
Revenue,Neighbourhoods,Highways and Transport Services,"Airports, Harbours & Toll Facilities",5105666725,19.02.2021,Newport Harbour Account,Payment to Private Contractors,220.00,DARES LTD
Revenue,Neighbourhoods,Cultural and Related Services,Open Spaces,5105665552,19.02.2021,Parks Mtce Miscellaneous,Property Services - Day to day Maintenance,240.00,DARES LTD
Revenue,Neighbourhoods,Cultural and Related Services,Open Spaces,5105665814,10.02.2021,Client Management Unit - Grounds Maintenance,Vehicle Maintenance Costs,10.00,DASHWITNESS LTD
